{"text_format":"1","workbook":"xlsx","n_sheets":18,"sheets":["1. Information Sheet","2. Table of Contents","3. Rate Class Selection","4. Current Tariff Schedule","4. Hidden","5. 2013 Continuity Schedule","6. Billing Det. for Def-Var","6. hidden","7. Allocating Def-Var Balances","8. Calculation of Def-Var RR","9. Rev2Cost_GDPIPI","9. hidden","10. Other Charges & LF","11. Proposed Rates","12. Summary Sheet","13. Final Tariff Schedule","14. Bill Impacts","lists"],"not_rendered":{"charts":0,"images":2,"macros":1,"external_links":8,"defined_names":355,"comments":0,"pivot_tables":0},"unopened":[],"bounds":{"document_bytes":16777216,"sheet_cells":100000,"rows_first":2000,"rows_last":500,"rows_between":2000,"halvings":0,"cell_chars":16384,"cell_head_chars":4096},"cells_cut":0,"cells_raw":0,"read":"whole","date_system":"1900"}

{"sheet":"1. Information Sheet","index":0,"n_rows":35,"n_cols":14,"rows_kept":35,"cut":false,"hidden":false,"merged":[[21,5,21,9],[19,5,19,9],[13,5,13,11],[15,5,15,9],[17,5,17,9],[30,2,30,11],[32,2,32,13],[34,2,34,12],[25,5,25,7],[23,5,23,9]]}
[]
[]
[]
[]
[]
[]
[]
[]
[]
[]
[]
[null,null,null,null,null,null,null,null,null,null,null,null,"Version",2.2999999999999998]
[]
[null,null,null,null,"Utility Name   ","Orangeville Hydro Limited"]
[]
[null,null,null,null,"Service Territory","(if applicable)"]
[]
[null,null,null,null,"Assigned EB Number","EB-2012-0155"]
[]
[null,null,null,null,"Name of Contact and Title","Jan Howard, Manager of Finance & Rates"]
[]
[null,null,null,null,"Phone Number   ","(519)942-8000"]
[]
[null,null,null,null,"Email Address   ","jhoward@orangevillehydro.on.ca"]
[]
[null,null,null,null,"We are applying for rates effective   ","2013-05-01"]
[]
[]
[null,"Notes"]
[]
[null,null,"Pale green cells represent input cells."]
[]
[null,null,"Pale blue cells represent drop-down lists.  The applicant should select the appropriate item from the drop-down list."]
[]
[null,null,"White cells contain fixed values, automatically generated values or formulae. "]

{"sheet":"2. Table of Contents","index":1,"n_rows":20,"n_cols":8,"rows_kept":20,"cut":false,"hidden":false,"merged":[]}
[]
[]
[]
[]
[]
[]
[]
[]
[]
[]
[]
[]
[]
[null,null,null,"1. Information Sheet",null,null,null,"8. Calculation of Def-Var RR"]
[null,null,null,"2. Table of Contents",null,null,null,"9. Rev2Cost_GDPIPI"]
[null,null,null,"3. Rate Class Selection",null,null,null,"10. Other Charges & LF"]
[null,null,null,"4. Current Tariff Schedule",null,null,null,"11. Proposed Rates"]
[null,null,null,"5. 2013 Continuity Schedule",null,null,null,"12. Summary Sheet"]
[null,null,null,"6. Billing Det. for Def-Var",null,null,null,"13. Final Tariff Schedule"]
[null,null,null,"7. Cost Allocation for Def-Var",null,null,null,"14. Bill Impacts"]

{"sheet":"3. Rate Class Selection","index":2,"n_rows":25,"n_cols":10,"rows_kept":25,"cut":false,"hidden":false,"merged":[[21,1,21,9],[22,1,22,9],[23,1,23,9],[24,1,24,9],[11,0,11,13],[18,1,18,9],[17,1,17,9],[19,1,19,9],[20,1,20,9]]}
[]
[]
[]
[]
[]
[]
[]
[]
[]
[]
[]
["Select the appropriate rate classes as they appear on your most recent Board-Approved Tariff of Rates and Charges, including the MicroFit Class."]
[]
["How many classes are listed on your most recent Board-Approved Tariff of Rates and Charges?",null,null,null,null,null,null,null,null,7]
[]
["Select Your Rate Classes from the Blue Cells below.  Please ensure that a rate class is assigned to each shaded cell."]
[]
[null,"Rate Class Classification"]
[1,"Residential"]
[2,"General Service Less Than 50 kW"]
[3,"General Service 50 to 4,999 kW"]
[4,"Unmetered Scattered Load"]
[5,"Sentinel Lighting"]
[6,"Street Lighting"]
[7,"MicroFit"]

{"sheet":"4. Current Tariff Schedule","index":3,"n_rows":456,"n_cols":28,"rows_kept":456,"cut":false,"hidden":false,"merged":[[451,1,451,6],[452,1,452,6],[453,1,453,6],[454,1,454,6],[455,1,455,6],[446,1,446,6],[447,1,447,6],[448,1,448,6],[449,1,449,6],[450,1,450,6],[441,1,441,6],[442,1,442,6],[443,1,443,6],[444,1,444,6],[445,1,445,6],[436,1,436,6],[437,1,437,6],[438,1,438,6],[439,1,439,6],[440,1,440,6],[431,1,431,6],[432,1,432,6],[433,1,433,6],[434,1,434,6],[435,1,435,6],[426,1,426,6],[427,1,427,6],[428,1,428,6],[429,1,429,6],[430,1,430,6],[388,1,388,6],[389,1,389,6],[390,1,390,6],[391,1,391,6],[392,1,392,6],[383,1,383,6],[384,1,384,6],[385,1,385,6],[386,1,386,6],[387,1,387,6],[378,1,378,6],[379,1,379,6],[380,1,380,6],[381,1,381,6],[382,1,382,6],[329,1,329,6],[363,1,363,6],[364,1,364,6],[365,1,365,6],[366,1,366,6],[374,1,374,6],[375,1,375,6],[376,1,376,6],[377,1,377,6],[340,1,345,8],[348,1,350,8],[351,1,354,8],[355,1,357,8],[358,1,361,8],[332,1,332,6],[333,1,333,6],[334,1,334,6],[335,1,335,6],[369,1,369,6],[324,1,324,6],[325,1,325,6],[326,1,326,6],[327,1,327,6],[328,1,328,6],[319,1,319,6],[320,1,320,6],[321,1,321,6],[322,1,322,6],[323,1,323,6],[314,1,314,6],[315,1,315,6],[316,1,316,6],[317,1,317,6],[318,1,318,6],[265,1,265,6],[266,1,266,6],[300,1,300,6],[301,1,301,6],[302,1,302,6],[275,1,275,8],[303,1,303,6],[304,1,304,6],[305,1,305,6],[306,1,306,6],[307,1,307,6],[308,1,308,6],[309,1,309,6],[310,1,310,6],[311,1,311,6],[312,1,312,6],[313,1,313,6],[277,1,282,8],[285,1,287,8],[261,1,261,6],[262,1,262,6],[263,1,263,6],[264,1,264,6],[255,1,255,6],[256,1,256,6],[257,1,257,6],[258,1,258,6],[259,1,259,6],[159,1,161,8],[196,1,196,6],[197,1,197,6],[198,1,198,6],[199,1,199,6],[200,1,200,6],[191,1,191,6],[192,1,192,6],[193,1,193,6],[194,1,194,6],[195,1,195,6],[162,1,165,8],[166,1,168,8],[169,1,172,8],[370,1,370,6],[371,1,371,6],[372,1,372,6],[373,1,373,6],[186,1,186,6],[187,1,187,6],[188,1,188,6],[189,1,189,6],[190,1,190,6],[250,1,250,6],[251,1,251,6],[252,1,252,6],[253,1,253,6],[254,1,254,6],[201,1,201,6],[202,1,202,6],[203,1,203,6],[237,1,237,6],[238,1,238,6],[206,1,206,6],[207,1,207,6],[208,1,208,6],[209,1,209,6],[288,1,291,8],[123,1,123,6],[124,1,124,6],[125,1,125,6],[338,1,338,8],[367,1,367,6],[368,1,368,6],[137,1,137,6],[138,1,138,6],[139,1,139,6],[140,1,140,6],[174,1,174,6],[149,1,149,8],[175,1,175,6],[176,1,176,6],[177,1,177,6],[178,1,178,6],[179,1,179,6],[180,1,180,6],[181,1,181,6],[182,1,182,6],[183,1,183,6],[184,1,184,6],[185,1,185,6],[151,1,156,8],[114,1,114,6],[115,1,115,6],[116,1,116,6],[117,1,117,6],[118,1,118,6],[119,1,119,6],[120,1,120,6],[121,1,121,6],[122,1,122,6],[403,1,408,8],[411,1,413,8],[414,1,417,8],[418,1,420,8],[421,1,424,8],[395,1,395,6],[396,1,396,6],[397,1,397,6],[398,1,398,6],[401,1,401,8],[292,1,294,8],[295,1,298,8],[269,1,269,6],[270,1,270,6],[271,1,271,6],[272,1,272,6],[212,1,212,8],[239,1,239,6],[240,1,240,6],[241,1,241,6],[242,1,242,6],[243,1,243,6],[244,1,244,6],[245,1,245,6],[246,1,246,6],[247,1,247,6],[248,1,248,6],[249,1,249,6],[214,1,219,8],[222,1,224,8],[225,1,228,8],[229,1,231,8],[232,1,235,8],[260,1,260,6],[143,1,143,6],[144,1,144,6],[145,1,145,6],[146,1,146,6],[86,1,86,8],[126,1,126,6],[127,1,127,6],[128,1,128,6],[129,1,129,6],[130,1,130,6],[131,1,131,6],[132,1,132,6],[133,1,133,6],[134,1,134,6],[135,1,135,6],[136,1,136,6],[88,1,93,8],[96,1,98,8],[99,1,102,8],[103,1,105,8],[106,1,109,8],[111,1,111,6],[112,1,112,6],[113,1,113,6],[11,1,17,8],[72,1,72,6],[48,1,48,6],[57,1,57,6],[20,1,20,8],[21,1,21,8],[23,1,23,8],[49,1,49,6],[53,1,53,6],[54,1,54,6],[55,1,55,6],[56,1,56,6],[58,1,58,6],[59,1,59,6],[50,1,50,6],[51,1,51,6],[60,1,60,6],[61,1,61,6],[69,1,69,6],[70,1,70,6],[64,1,64,6],[65,1,65,6],[62,1,62,6],[63,1,63,6],[73,1,73,6],[71,1,71,6],[52,1,52,6],[25,1,30,8],[33,1,35,8],[36,1,39,8],[40,1,42,8],[43,1,46,8],[83,1,83,6],[77,1,77,6],[80,1,80,6],[81,1,81,6],[82,1,82,6],[76,1,76,6],[75,1,75,6],[74,1,74,6],[66,1,66,6],[67,1,67,6],[68,1,68,6]]}
[null,null,null,null,null,null,null,null,null,null,null,null,null,null,null,null,null,null,null,null,null,null,null,null,null,3,"January","≥"]
[null,null,null,null,null,null,null,null,null,null,null,null,null,null,null,null,null,null,null,null,null,null,null,null,null,null,"February"]
[null,null,null,null,null,null,null,null,null,null,null,null,null,null,null,null,null,null,null,null,null,null,null,null,null,null,"March"]
[null,null,null,null,null,null,null,null,null,null,null,null,null,null,null,null,null,null,null,null,null,null,null,null,null,null,"April"]
[null,null,null,null,null,null,null,null,null,null,null,null,null,null,null,null,null,null,null,null,null,null,null,null,null,null,"May"]
[null,null,null,null,null,null,null,null,null,null,null,null,null,null,null,null,null,null,null,null,null,null,null,null,null,null,"June"]
[null,null,null,null,null,null,null,null,null,null,null,null,null,null,null,null,null,null,null,null,null,null,null,null,null,null,"July"]
[null,null,null,null,null,null,null,null,null,null,null,null,null,null,null,null,null,null,null,null,null,null,null,null,null,null,"August"]
[null,null,null,null,null,null,null,null,null,null,null,null,null,null,null,null,null,null,null,null,null,null,null,null,null,null,"September"]
[null,null,null,null,null,null,null,null,null,null,null,null,null,null,null,null,null,null,null,null,null,null,null,null,null,null,"October"]
[null,null,null,null,null,null,null,null,null,null,null,null,null,null,null,null,null,null,null,null,null,null,null,null,null,null,"November"]
[null,"For each class, Applicants are required to copy and paste the class descriptions (located directly under the class name) and the description of the applicability of those rates (description is found under the class name and directly under the word \"APPLICATION\").  By using the drop-down lists located under the column labeled \"Rate Description\", please select the descriptions of the rates and charges that BEST MATCHES the descriptions on your most recent Board-Approved Tariff of Rates and Charges.  If the description is not found in the drop-down list, please enter the description in the green cells under the correct class exactly as it appears on the tariff.   Please do not enter more than one \"Service Charge\" for each class for which a base monthly fixed charge applies.  **Note:  If the current RRRP consists of only one line on the current tariff schedule, enter the same rate for \"Rural Rate Protection Charge - effective until April 30, 2012\" and \"Rural Rate Protection Charge - effective on and after May 1, 2012\".",null,null,null,null,null,null,null,null,null,null,null,null,null,null,null,null,null,null,null,null,null,null,null,null,"December"]
[]
[]
[]
[]
[]
[]
[]
[]
[null,{"$f":"IF(ISBLANK('1. Information Sheet'!F14), \"Please Choose Distributor Name on Sheet 1\", '1. Information Sheet'!F14)","v":"Orangeville Hydro Limited"}]
["Embedded Distributor","TARIFF OF RATES AND CHARGES"]
[]
["Residential","Residential Service Classification"]
["Residential"]
["Residential","This classification refers to the supply of electrical energy to residential customers residing in detached, semi detached, townhouse (freehold or condominium) dwelling units duplexes or triplexes.  Basic connection is defined as\n100 amp 12/240 volt overhead service.  Further servicing details are available in the distributor’s Conditions of\nService.\n"]
["Residential"]
["Residential"]
["Residential"]
["Residential"]
["Residential"]
["Residential","APPLICATION"]
["Residential"]
["Residential","The application of these rates and charges shall be in accordance with the Licence of the Distributor and any Code or Order of the Board, and amendments thereto as approved by the Board, which may be applicable to the administration of this schedule."]
["Residential"]
["Residential"]
["Residential","No rates and charges for the distribution of electricity and charges to meet the costs of any work or service done or furnished for the purpose of the distribution of electricity shall be made except as permitted by this schedule, unless required by the Distributor’s Licence or a Code or Order of the Board, and amendments thereto as approved by the Board, or as specified herein."]
["Residential"]
["Residential"]
["Residential"]
["Residential","Unless specifically noted, this schedule does not contain any charges for the electricity commodity, be it under the\nRegulated Price Plan, a contract with a retailer or the wholesale market price, as applicable.\n"]
["Residential"]
["Residential"]
["Residential","It should be noted that this schedule does not list any charges, assessments or credits that are required by law to be invoiced by a distributor and that are not subject to Board approval, such as the Debt Retirement Charge, the Global Adjustment, the Ontario Clean Energy Benefit and the HST."]
["Residential"]
["Residential"]
["Residential"]
["Residential","MONTHLY RATES AND CHARGES - Delivery Component      (If applicable, Effective Date MUST be included in rate description)"]
["Residential","Service Charge",null,null,null,null,null,"$",16.260000000000002,null,"1_C_MSC"]
["Residential","Distribution Volumetric Rate",null,null,null,null,null,"$/kWh",1.4E-2,null,"1_C_VC"]
["Residential","Low Voltage Service Rate",null,null,null,null,null,"$/kWh",1.1000000000000001E-3,null,"1_C_LVrate"]
["Residential","Rate Rider for Deferral/Variance Account Disposition (2010) – Effective until April 30, 2014",null,null,null,null,null,"$/kWh",-1.2999999999999999E-3,null,"1_C_VC_Rate_Rider_kWh_1","2014-04-30"]
["Residential","Rate Rider for Deferral/Variance Account Disposition (2012) – Effective until April 30, 2013",null,null,null,null,null,"$/kWh",null,null,"1_C_VC_Rate_Rider_kWh_2","2013-04-30"]
["Residential","Rate Rider for Global Adjustment Sub-Account Disposition (2012) – Effective until April 30, 2013 Applicable only for Non-RPP Customers",null,null,null,null,null,"$/kWh",1.6999999999999999E-3,null,"1_C_VC_GA_Rate_Rider_kWh_1","2013-04-30"]
["Residential","Rate Rider for Tax Adjustments - Effective until April 30, 2013",null,null,null,null,null,"$/kWh",-2.9999999999999997E-4,null,"1_C_VC_Rate_Rider_kWh_3","2013-04-30"]
["Residential","Retail Transmission Rate - Network Service Rate",null,null,null,null,null,"$/kWh",5.5999999999999999E-3,null,"1_C_RTSR_Network"]
["Residential","Retail Transmission Rate - Line and Transformation Connection Service Rate",null,null,null,null,null,"$/kWh",3.2000000000000002E-3,null,"1_C_RTSR_Connection"]
["Residential"]
["Residential"]
["Residential"]
["Residential"]
["Residential"]
["Residential"]
["Residential"]
["Residential"]
["Residential"]
["Residential"]
["Residential"]
["Residential"]
["Residential"]
["Residential"]
["Residential"]
["Residential","Rider for Disposition of Residual Historical Smart Meter Costs – effective until April 30, 2013",null,null,null,null,null,"$",-1.21,null,"1_C_MSC_Rate_Rider_1","2013-04-30"]
["Residential","Rate Rider for Smart Meter Incremental Revenue Requirement – in effect until the effective date of the\nnext cost of service-based rate order\n",null,null,null,null,null,"$",2.84,null,"1_C_MSC_Rate_Rider_2"]
["Residential"]
["Residential"]
["Residential"]
["Residential"]
["Residential","MONTHLY RATES AND CHARGES - Regulatory Component"]
["Residential"]
["Residential","Wholesale Market Service Rate",null,null,null,null,null,"$/kWh",5.1999999999999998E-3,null,"1_C_WMSR"]
["Residential","Rural Rate Protection Charge - effective until April 30, 2012",null,null,null,null,null,null,null,null,"1_C_RRPC_untilApril302012","2012-04-30"]
["Residential","Rural Rate Protection Charge - effective on and after May 1, 2012",null,null,null,null,null,"$/kWh",1.1000000000000001E-3,null,"1_C_RRPC_AfterMay12012","2012-05-01"]
["Residential","Standard Supply Service - Administrative Charge (if applicable)",null,null,null,null,null,"$",0.25,null,"1_C_SSS"]
[]
[]
["General Service Less Than 50 kW","General Service Less Than 50 kW Service Classification"]
["General Service Less Than 50 kW"]
["General Service Less Than 50 kW","This classification refers to a non-residential account taking electricity at 750 volts or less whose monthly peak demand is less than or expected to be less than 50 kW.  Further servicing details are available in our Conditions of Service."]
["General Service Less Than 50 kW"]
["General Service Less Than 50 kW"]
["General Service Less Than 50 kW"]
["General Service Less Than 50 kW"]
["General Service Less Than 50 kW"]
["General Service Less Than 50 kW","APPLICATION"]
["General Service Less Than 50 kW"]
["General Service Less Than 50 kW","The application of these rates and charges shall be in accordance with the Licence of the Distributor and any Code or Order of the Board, and amendments thereto as approved by the Board, which may be applicable to the administration of this schedule."]
["General Service Less Than 50 kW"]
["General Service Less Than 50 kW"]
["General Service Less Than 50 kW","No rates and charges for the distribution of electricity and charges to meet the costs of any work or service done or furnished for the purpose of the distribution of electricity shall be made except as permitted by this schedule, unless required by the Distributor’s Licence or a Code or Order of the Board, and amendments thereto as approved by the Board, or as specified herein."]
["General Service Less Than 50 kW"]
["General Service Less Than 50 kW"]
["General Service Less Than 50 kW"]
["General Service Less Than 50 kW","Unless specifically noted, this schedule does not contain any charges for the electricity commodity, be it under the Regulated Price Plan, a contract with a retailer or the wholesale market price, as applicable."]
["General Service Less Than 50 kW"]
["General Service Less Than 50 kW"]
["General Service Less Than 50 kW","It should be noted that this schedule does not list any charges, assessments or credits that are required by law to be invoiced by a distributor and that are not subject to Board approval, such as the Debt Retirement Charge, the Global Adjustment, the Ontario Clean Energy Benefit and the HST."]
["General Service Less Than 50 kW"]
["General Service Less Than 50 kW"]
["General Service Less Than 50 kW"]
["General Service Less Than 50 kW","MONTHLY RATES AND CHARGES - Delivery Component      (If applicable, Effective Date MUST be included in rate description)"]
["General Service Less Than 50 kW","Service Charge",null,null,null,null,null,"$",33.11,null,"2_C_MSC"]
["General Service Less Than 50 kW","Distribution Volumetric Rate",null,null,null,null,null,"$/kWh",1.01E-2,null,"2_C_VC"]
["General Service Less Than 50 kW","Low Voltage Service Rate",null,null,null,null,null,"$/kWh",1E-3,null,"2_C_LVrate"]
["General Service Less Than 50 kW","Rate Rider for Deferral/Variance Account Disposition (2010) – Effective until April 30, 2014",null,null,null,null,null,"$/kWh",-1.2999999999999999E-3,null,"2_C_VC_Rate_Rider_kWh_1","2014-04-30"]
["General Service Less Than 50 kW","Rate Rider for Deferral/Variance Account Disposition (2012) – Effective until April 30, 2013",null,null,null,null,null,"$/kWh",-8.9999999999999998E-4,null,"2_C_VC_Rate_Rider_kWh_2","2013-04-30"]
["General Service Less Than 50 kW","Rate Rider for Global Adjustment Sub-Account Disposition (2012) – Effective until April 30, 2013 Applicable only for Non-RPP Customers",null,null,null,null,null,"$/kWh",1.6999999999999999E-3,null,"2_C_VC_GA_Rate_Rider_kWh_1","2013-04-30"]
["General Service Less Than 50 kW","Rate Rider for Tax Adjustments - Effective until April 30, 2013",null,null,null,null,null,"$/kWh",-2.0000000000000001E-4,null,"2_C_VC_Rate_Rider_kWh_3","2013-04-30"]
["General Service Less Than 50 kW","Retail Transmission Rate - Network Service Rate",null,null,null,null,null,"$/kWh",5.1999999999999998E-3,null,"2_C_RTSR_Network"]
["General Service Less Than 50 kW","Retail Transmission Rate - Line and Transformation Connection Service Rate",null,null,null,null,null,"$/kWh",2.8999999999999998E-3,null,"2_C_RTSR_Connection"]
["General Service Less Than 50 kW"]
["General Service Less Than 50 kW"]
["General Service Less Than 50 kW"]
["General Service Less Than 50 kW"]
["General Service Less Than 50 kW"]
["General Service Less Than 50 kW"]
["General Service Less Than 50 kW"]
["General Service Less Than 50 kW"]
["General Service Less Than 50 kW"]
["General Service Less Than 50 kW"]
["General Service Less Than 50 kW"]
["General Service Less Than 50 kW"]
["General Service Less Than 50 kW"]
["General Service Less Than 50 kW"]
["General Service Less Than 50 kW"]
["General Service Less Than 50 kW","Rate Rider for Disposition of Residual Historical Smart Meter Costs – effective until April 30, 2013                   ",null,null,null,null,null,"$",5.77,null,"2_C_MSC_Rate_Rider_1","2013-04-30"]
["General Service Less Than 50 kW","Rate Rider for Smart Meter Incremental Revenue Requirement – in effect until the effective date of the\nnext cost of service-based rate order\n",null,null,null,null,null,"$",7.02,null,"2_C_MSC_Rate_Rider_2"]
["General Service Less Than 50 kW"]
["General Service Less Than 50 kW"]
["General Service Less Than 50 kW"]
["General Service Less Than 50 kW"]
["General Service Less Than 50 kW","MONTHLY RATES AND CHARGES - Regulatory Component"]
["General Service Less Than 50 kW"]
["General Service Less Than 50 kW","Wholesale Market Service Rate",null,null,null,null,null,"$/kWh",5.1999999999999998E-3,null,"2_C_WMSR"]
["General Service Less Than 50 kW","Rural Rate Protection Charge - effective until April 30, 2012",null,null,null,null,null,null,null,null,"2_C_RRPC_untilApril302012","2012-04-30"]
["General Service Less Than 50 kW","Rural Rate Protection Charge - effective on and after May 1, 2012",null,null,null,null,null,"$/kWh",1.1000000000000001E-3,null,"2_C_RRPC_AfterMay12012","2012-05-01"]
["General Service Less Than 50 kW","Standard Supply Service - Administrative Charge (if applicable)",null,null,null,null,null,"$",0.25,null,"2_C_SSS"]
[]
[]
["General Service 50 to 4,999 kW","General Service 50 to 4,999 kW Service Classification"]
["General Service 50 to 4,999 kW"]
["General Service 50 to 4,999 kW","This classification refers to a non-residential account whose monthly average peak demand is equal to or greater than, or is expected to be equal to or greater than, 50 kW but less than 5000 kW.  Further servicing details are available in our Conditions of Service."]
["General Service 50 to 4,999 kW"]
["General Service 50 to 4,999 kW"]
["General Service 50 to 4,999 kW"]
["General Service 50 to 4,999 kW"]
["General Service 50 to 4,999 kW"]
["General Service 50 to 4,999 kW","APPLICATION"]
["General Service 50 to 4,999 kW"]
["General Service 50 to 4,999 kW","The application of these rates and charges shall be in accordance with the Licence of the Distributor and any Code or Order of the Board, and amendments thereto as approved by the Board, which may be applicable to the administration of this schedule."]
["General Service 50 to 4,999 kW"]
["General Service 50 to 4,999 kW"]
["General Service 50 to 4,999 kW","No rates and charges for the distribution of electricity and charges to meet the costs of any work or service done or furnished for the purpose of the distribution of electricity shall be made except as permitted by this schedule, unless required by the Distributor’s Licence or a Code or Order of the Board, and amendments thereto as approved by the Board, or as specified herein."]
["General Service 50 to 4,999 kW"]
["General Service 50 to 4,999 kW"]
["General Service 50 to 4,999 kW"]
["General Service 50 to 4,999 kW","Unless specifically noted, this schedule does not contain any charges for the electricity commodity, be it under the Regulated Price Plan, a contract with a retailer or the wholesale market price, as applicable."]
["General Service 50 to 4,999 kW"]
["General Service 50 to 4,999 kW"]
["General Service 50 to 4,999 kW","It should be noted that this schedule does not list any charges, assessments or credits that are required by law to be invoiced by a distributor and that are not subject to Board approval, such as the Debt Retirement Charge, the Global Adjustment, the Ontario Clean Energy Benefit and the HST."]
["General Service 50 to 4,999 kW"]
["General Service 50 to 4,999 kW"]
["General Service 50 to 4,999 kW"]
["General Service 50 to 4,999 kW","MONTHLY RATES AND CHARGES - Delivery Component      (If applicable, Effective Date MUST be included in rate description)"]
["General Service 50 to 4,999 kW","Service Charge",null,null,null,null,null,"$",185.34,null,"3_C_MSC"]
["General Service 50 to 4,999 kW","Distribution Volumetric Rate",null,null,null,null,null,"$/kW",2.1821999999999999,null,"3_C_VC"]
["General Service 50 to 4,999 kW","Low Voltage Service Rate",null,null,null,null,null,"$/kW",0.39989999999999998,null,"3_C_LVrate"]
["General Service 50 to 4,999 kW","Rate Rider for Deferral/Variance Account Disposition (2010) – Effective until April 30, 2014",null,null,null,null,null,"$/kW",-0.50539999999999996,null,"3_C_VC_Rate_Rider_kW_1","2014-04-30"]
["General Service 50 to 4,999 kW","Rate Rider for Deferral/Variance Account Disposition (2012) – Effective until April 30, 2013",null,null,null,null,null,"$/kW",-0.76349999999999996,null,"3_C_VC_Rate_Rider_kW_2","2013-04-30"]
["General Service 50 to 4,999 kW","Rate Rider for Global Adjustment Sub-Account Disposition (2012) – Effective until April 30, 2013 Applicable only for Non-RPP Customers",null,null,null,null,null,"$/kW",0.72350000000000003,null,"3_C_VC_GA_Rate_Rider_kW_1","2013-04-30"]
["General Service 50 to 4,999 kW","Rate Rider for Tax Adjustments - Effective until April 30, 2013",null,null,null,null,null,"$/kW",-2.86E-2,null,"3_C_VC_Rate_Rider_kW_3","2013-04-30"]
["General Service 50 to 4,999 kW","Retail Transmission Rate - Network Service Rate",null,null,null,null,null,"$/kW",2.1107999999999998,null,"3_C_RTSR_Network"]
["General Service 50 to 4,999 kW","Retail Transmission Rate - Line and Transformation Connection Service Rate",null,null,null,null,null,"$/kW",1.1463000000000001,null,"3_C_RTSR_Connection"]
["General Service 50 to 4,999 kW"]
["General Service 50 to 4,999 kW"]
["General Service 50 to 4,999 kW"]
["General Service 50 to 4,999 kW"]
["General Service 50 to 4,999 kW"]
["General Service 50 to 4,999 kW"]
["General Service 50 to 4,999 kW"]
["General Service 50 to 4,999 kW"]
["General Service 50 to 4,999 kW"]
["General Service 50 to 4,999 kW"]
["General Service 50 to 4,999 kW"]
["General Service 50 to 4,999 kW"]
["General Service 50 to 4,999 kW"]
["General Service 50 to 4,999 kW"]
["General Service 50 to 4,999 kW"]
["General Service 50 to 4,999 kW"]
["General Service 50 to 4,999 kW"]
["General Service 50 to 4,999 kW"]
["General Service 50 to 4,999 kW"]
["General Service 50 to 4,999 kW"]
["General Service 50 to 4,999 kW"]
["General Service 50 to 4,999 kW","MONTHLY RATES AND CHARGES - Regulatory Component"]
["General Service 50 to 4,999 kW"]
["General Service 50 to 4,999 kW","Wholesale Market Service Rate",null,null,null,null,null,{"$f":"H81","v":"$/kWh"},{"$f":"I81","v":5.1999999999999998E-3},null,"3_C_WMSR"]
["General Service 50 to 4,999 kW","Rural Rate Protection Charge - effective until April 30, 2012",null,null,null,null,null,null,null,null,"3_C_RRPC_untilApril302012","2012-04-30"]
["General Service 50 to 4,999 kW","Rural Rate Protection Charge - effective on and after May 1, 2012",null,null,null,null,null,{"$f":"H83","v":"$/kWh"},{"$f":"I83","v":1.1000000000000001E-3},null,"3_C_RRPC_AfterMay12012","2012-05-01"]
["General Service 50 to 4,999 kW","Standard Supply Service - Administrative Charge (if applicable)",null,null,null,null,null,{"$f":"H84","v":"$"},{"$f":"I84","v":0.25},null,"3_C_SSS"]
[]
[]
["Unmetered Scattered Load","Unmetered Scattered Load Service Classification"]
["Unmetered Scattered Load"]
["Unmetered Scattered Load","This classification refers to an account taking electricity at 750 volts or less whose average monthly maximum demand is less than, or is forecast to be less than, 50 kW and the consumption is unmetered.  Such connections include cable TV power packs, bus shelters, telephone booths, traffic lights, railway crossings, etc.  The level of the consumption will be agreed to by the distributor and the customer, based on detailed manufacturer information/documentation with regard to electrical consumption of the unmetered load or periodic monitoring of actual consumption.  Further servicing details are available in our Conditions of Service."]
["Unmetered Scattered Load"]
["Unmetered Scattered Load"]
["Unmetered Scattered Load"]
["Unmetered Scattered Load"]
["Unmetered Scattered Load"]
["Unmetered Scattered Load","APPLICATION"]
["Unmetered Scattered Load"]
["Unmetered Scattered Load","The application of these rates and charges shall be in accordance with the Licence of the Distributor and any Code or Order of the Board, and amendments thereto as approved by the Board, which may be applicable to the administration of this schedule."]
["Unmetered Scattered Load"]
["Unmetered Scattered Load"]
["Unmetered Scattered Load","No rates and charges for the distribution of electricity and charges to meet the costs of any work or service done or furnished for the purpose of the distribution of electricity shall be made except as permitted by this schedule, unless required by the Distributor’s Licence or a Code or Order of the Board, and amendments thereto as approved by the Board, or as specified herein."]
["Unmetered Scattered Load"]
["Unmetered Scattered Load"]
["Unmetered Scattered Load"]
["Unmetered Scattered Load","Unless specifically noted, this schedule does not contain any charges for the electricity commodity, be it under the Regulated Price Plan, a contract with a retailer or the wholesale market price, as applicable."]
["Unmetered Scattered Load"]
["Unmetered Scattered Load"]
["Unmetered Scattered Load","It should be noted that this schedule does not list any charges, assessments or credits that are required by law to be invoiced by a distributor and that are not subject to Board approval, such as the Debt Retirement Charge, the Global Adjustment, the Ontario Clean Energy Benefit and the HST."]
["Unmetered Scattered Load"]
["Unmetered Scattered Load"]
["Unmetered Scattered Load"]
["Unmetered Scattered Load","MONTHLY RATES AND CHARGES - Delivery Component      (If applicable, Effective Date MUST be included in rate description)"]
["Unmetered Scattered Load","Service Charge (per connection)",null,null,null,null,null,"$",6.31,null,"4_C_MSC"]
["Unmetered Scattered Load","Distribution Volumetric Rate",null,null,null,null,null,"$/kWh",8.8999999999999999E-3,null,"4_C_VC"]
["Unmetered Scattered Load","Low Voltage Service Charge",null,null,null,null,null,"$/kWh",1E-3,null,"4_C_LVrate"]
["Unmetered Scattered Load","Rate Rider for Deferral/Variance Account Disposition (2010) – Effective until April 30, 2014",null,null,null,null,null,"$/kWh",-1E-3,null,"4_C_VC_Rate_Rider_kWh_1","2014-04-30"]
["Unmetered Scattered Load","Rate Rider for Deferral/Variance Account Disposition (2012) – Effective until April 30, 2013",null,null,null,null,null,"$/kWh",2.0000000000000001E-4,null,"4_C_VC_Rate_Rider_kWh_2","2013-04-30"]
["Unmetered Scattered Load","Rate Rider for Tax Adjustments - Effective until April 30, 2013",null,null,null,null,null,"$/kWh",-4.0000000000000002E-4,null,"4_C_VC_Rate_Rider_kWh_3","2013-04-30"]
["Unmetered Scattered Load","Retail Transmission Rate - Network Service Rate",null,null,null,null,null,"$/kWh",5.1999999999999998E-3,null,"4_C_RTSR_Network"]
["Unmetered Scattered Load","Retail Transmission Rate - Line and Transformation Connection Service Rate",null,null,null,null,null,"$/kWh",2.8999999999999998E-3,null,"4_C_RTSR_Connection"]
["Unmetered Scattered Load"]
["Unmetered Scattered Load"]
["Unmetered Scattered Load"]
["Unmetered Scattered Load"]
["Unmetered Scattered Load"]
["Unmetered Scattered Load"]
["Unmetered Scattered Load"]
["Unmetered Scattered Load"]
["Unmetered Scattered Load"]
["Unmetered Scattered Load"]
["Unmetered Scattered Load"]
["Unmetered Scattered Load"]
["Unmetered Scattered Load"]
["Unmetered Scattered Load"]
["Unmetered Scattered Load"]
["Unmetered Scattered Load"]
["Unmetered Scattered Load"]
["Unmetered Scattered Load"]
["Unmetered Scattered Load"]
["Unmetered Scattered Load"]
["Unmetered Scattered Load"]
["Unmetered Scattered Load"]
["Unmetered Scattered Load","MONTHLY RATES AND CHARGES - Regulatory Component"]
["Unmetered Scattered Load"]
["Unmetered Scattered Load","Wholesale Market Service Rate",null,null,null,null,null,"$/kWh",5.1999999999999998E-3,null,"4_C_WMSR"]
["Unmetered Scattered Load","Rural Rate Protection Charge - effective until April 30, 2012",null,null,null,null,null,null,null,null,"4_C_RRPC_untilApril302012","2012-04-30"]
["Unmetered Scattered Load","Rural Rate Protection Charge - effective on and after May 1, 2012",null,null,null,null,null,"$/kWh",1.1000000000000001E-3,null,"4_C_RRPC_AfterMay12012","2012-05-01"]
["Unmetered Scattered Load","Standard Supply Service - Administrative Charge (if applicable)",null,null,null,null,null,"$",0.25,null,"4_C_SSS"]
[]
[]
["Sentinel Lighting","Sentinel Lighting Service Classification"]
["Sentinel Lighting"]
["Sentinel Lighting","This classification refers to accounts that are an unmetered lighting load supplied to a sentinel light.  Further servicing details are available in the distributor’s Conditions of Service."]
["Sentinel Lighting"]
["Sentinel Lighting"]
["Sentinel Lighting"]
["Sentinel Lighting"]
["Sentinel Lighting"]
["Sentinel Lighting","APPLICATION"]
["Sentinel Lighting"]
["Sentinel Lighting","The application of these rates and charges shall be in accordance with the Licence of the Distributor and any Code or Order of the Board, and amendments thereto as approved by the Board, which may be applicable to the administration of this schedule."]
["Sentinel Lighting"]
["Sentinel Lighting"]
["Sentinel Lighting","No rates and charges for the distribution of electricity and charges to meet the costs of any work or service done or furnished for the purpose of the distribution of electricity shall be made except as permitted by this schedule, unless required by the Distributor’s Licence or a Code or Order of the Board, and amendments thereto as approved by the Board, or as specified herein."]
["Sentinel Lighting"]
["Sentinel Lighting"]
["Sentinel Lighting"]
["Sentinel Lighting","Unless specifically noted, this schedule does not contain any charges for the electricity commodity, be it under the Regulated Price Plan, a contract with a retailer or the wholesale market price, as applicable."]
["Sentinel Lighting"]
["Sentinel Lighting"]
["Sentinel Lighting","It should be noted that this schedule does not list any charges, assessments or credits that are required by law to be invoiced by a distributor and that are not subject to Board approval, such as the Debt Retirement Charge,  the Global Adjustment, the Ontario Clean Energy Benefit and the HST."]
["Sentinel Lighting"]
["Sentinel Lighting"]
["Sentinel Lighting"]
["Sentinel Lighting","MONTHLY RATES AND CHARGES - Delivery Component      (If applicable, Effective Date MUST be included in rate description)"]
["Sentinel Lighting","Service Charge (per connection)",null,null,null,null,null,"$",2.81,null,"5_C_MSC"]
["Sentinel Lighting","Distribution Volumetric Rate",null,null,null,null,null,"$/kW",10.9656,null,"5_C_VC"]
["Sentinel Lighting","Low Voltage Service Charge",null,null,null,null,null,"$/kW",0.31559999999999999,null,"5_C_LVrate"]
["Sentinel Lighting","Rate Rider for Deferral/Variance Account Disposition (2010) – Effective until April 30, 2014",null,null,null,null,null,"$/kW",-0.48330000000000001,null,"5_C_VC_Rate_Rider_kW_1","2014-04-30"]
["Sentinel Lighting","Rate Rider for Deferral/Variance Account Disposition (2012) – Effective until April 30, 2013",null,null,null,null,null,"$/kW",0.29770000000000002,null,"5_C_VC_Rate_Rider_kW_2","2013-04-30"]
["Sentinel Lighting","Rate Rider for Global Adjustment Sub-Account Disposition (2012) – Effective until April 30, 2013 Applicable only for Non-RPP Customers",null,null,null,null,null,"$/kW",0.62429999999999997,null,"5_C_VC_GA_Rate_Rider_kW_1","2013-04-30"]
["Sentinel Lighting","Rate Rider for Tax Adjustments - Effective until April 30, 2013",null,null,null,null,null,"$/kW",-0.2029,null,"5_C_VC_Rate_Rider_kW_3","2013-04-30"]
["Sentinel Lighting","Retail Transmission Rate - Network Service Rate",null,null,null,null,null,"$/kW",1.5999000000000001,null,"5_C_RTSR_Network"]
["Sentinel Lighting","Retail Transmission Rate - Line and Transformation Connection Service Rate",null,null,null,null,null,"$/kW",0.90480000000000005,null,"5_C_RTSR_Connection"]
["Sentinel Lighting"]
["Sentinel Lighting"]
["Sentinel Lighting"]
["Sentinel Lighting"]
["Sentinel Lighting"]
["Sentinel Lighting"]
["Sentinel Lighting"]
["Sentinel Lighting"]
["Sentinel Lighting"]
["Sentinel Lighting"]
["Sentinel Lighting"]
["Sentinel Lighting"]
["Sentinel Lighting"]
["Sentinel Lighting"]
["Sentinel Lighting"]
["Sentinel Lighting"]
["Sentinel Lighting"]
["Sentinel Lighting"]
["Sentinel Lighting"]
["Sentinel Lighting"]
["Sentinel Lighting"]
["Sentinel Lighting","MONTHLY RATES AND CHARGES - Regulatory Component"]
["Sentinel Lighting"]
["Sentinel Lighting","Wholesale Market Service Rate",null,null,null,null,null,"$/kWh",5.1999999999999998E-3,null,"5_C_WMSR"]
["Sentinel Lighting","Rural Rate Protection Charge - effective until April 30, 2012",null,null,null,null,null,null,null,null,"5_C_RRPC_untilApril302012","2012-04-30"]
["Sentinel Lighting","Rural Rate Protection Charge - effective on and after May 1, 2012",null,null,null,null,null,"$/kWh",1.1000000000000001E-3,null,"5_C_RRPC_AfterMay12012","2012-05-01"]
["Sentinel Lighting","Standard Supply Service - Administrative Charge (if applicable)",null,null,null,null,null,"$",0.25,null,"5_C_SSS"]
[]
[]
["Street Lighting","Street Lighting Service Classification"]
["Street Lighting"]
["Street Lighting","This classification refers to accounts concerning roadway lighting for a Municipality, Regional Municipality, and/or the Ministry of Transportation.  This lighting will be controlled by photocells.  The consumption for these customers will be based on the calculated connected load times as established in the approved OEB Street Lighting Load Shape Template.  Further servicing details are available in the distributor’s Conditions of Service."]
["Street Lighting"]
["Street Lighting"]
["Street Lighting"]
["Street Lighting"]
["Street Lighting"]
["Street Lighting","APPLICATION"]
["Street Lighting"]
["Street Lighting","The application of these rates and charges shall be in accordance with the Licence of the Distributor and any Code or Order of the Board, and amendments thereto as approved by the Board, which may be applicable to the administration of this schedule."]
["Street Lighting"]
["Street Lighting"]
["Street Lighting","No rates and charges for the distribution of electricity and charges to meet the costs of any work or service done or furnished for the purpose of the distribution of electricity shall be made except as permitted by this schedule, unless required by the Distributor’s Licence or a Code or Order of the Board, and amendments thereto as approved by the Board, or as specified herein."]
["Street Lighting"]
["Street Lighting"]
["Street Lighting"]
["Street Lighting","Unless specifically noted, this schedule does not contain any charges for the electricity commodity, be it under the Regulated Price Plan, a contract with a retailer or the wholesale market price, as applicable."]
["Street Lighting"]
["Street Lighting"]
["Street Lighting","It should be noted that this schedule does not list any charges, assessments or credits that are required by law to be invoiced by a distributor and that are not subject to Board approval, such as the Debt Retirement Charge, charges for Ministry of Energy Conservation and Renewable Energy Program, the Global Adjustment, the Ontario Clean Energy Benefit and the HST."]
["Street Lighting"]
["Street Lighting"]
["Street Lighting"]
["Street Lighting","MONTHLY RATES AND CHARGES - Delivery Component      (If applicable, Effective Date MUST be included in rate description)"]
["Street Lighting","Service Charge (per connection)",null,null,null,null,null,"$",1.26,null,"6_C_MSC"]
["Street Lighting","Distribution Volumetric Rate",null,null,null,null,null,"$/kW",6.9657,null,"6_C_VC"]
["Street Lighting","Low Voltage Service Charge",null,null,null,null,null,"$/kW",0.30909999999999999,null,"6_C_LVrate"]
["Street Lighting","Rate Rider for Deferral/Variance Account Disposition (2012) – Effective until April 30, 2013",null,null,null,null,null,"$/kW",-0.44919999999999999,null,"6_C_VC_Rate_Rider_kW_1","2013-04-30"]
["Street Lighting","Rate Rider for Deferral/Variance Account Disposition (2012) – Effective until April 30, 2013",null,null,null,null,null,"$/kW",-0.2056,null,"6_C_VC_Rate_Rider_kW_2","2013-04-30"]
["Street Lighting","Rate Rider for Global Adjustment Sub-Account Disposition (2012) – Effective until April 30, 2014 Applicable only for Non-RPP Customers",null,null,null,null,null,"$/kW",0.60880000000000001,null,"6_C_VC_GA_Rate_Rider_kW_1","2014-04-30"]
["Street Lighting","Rate Rider for Tax Adjustments - Effective until April 30, 2013",null,null,null,null,null,"$/kW",-0.1108,null,"6_C_VC_Rate_Rider_kW_3","2013-04-30"]
["Street Lighting","Retail Transmission Rate - Network Service Rate",null,null,null,null,null,"$/kW",1.5919000000000001,null,"6_C_RTSR_Network"]
["Street Lighting","Retail Transmission Rate - Line and Transformation Connection Service Rate",null,null,null,null,null,"$/kW",0.8861,null,"6_C_RTSR_Connection"]
["Street Lighting"]
["Street Lighting"]
["Street Lighting"]
["Street Lighting"]
["Street Lighting"]
["Street Lighting"]
["Street Lighting"]
["Street Lighting"]
["Street Lighting"]
["Street Lighting"]
["Street Lighting"]
["Street Lighting"]
["Street Lighting"]
["Street Lighting"]
["Street Lighting"]
["Street Lighting"]
["Street Lighting"]
["Street Lighting"]
["Street Lighting"]
["Street Lighting"]
["Street Lighting"]
["Street Lighting","MONTHLY RATES AND CHARGES - Regulatory Component"]
["Street Lighting"]
["Street Lighting","Wholesale Market Service Rate",null,null,null,null,null,"$/kWh",5.1999999999999998E-3,null,"6_C_WMSR"]
["Street Lighting","Rural Rate Protection Charge - effective until April 30, 2012",null,null,null,null,null,null,null,null,"6_C_RRPC_untilApril302012","2012-04-30"]
["Street Lighting","Rural Rate Protection Charge - effective on and after May 1, 2012",null,null,null,null,null,"$/kWh",1.1000000000000001E-3,null,"6_C_RRPC_AfterMay12012","2012-05-01"]
["Street Lighting","Standard Supply Service - Administrative Charge (if applicable)",null,null,null,null,null,"$",0.25,null,"6_C_SSS"]
[]
[]
["MicroFit","MicroFit Service Classification"]
["MicroFit"]
["MicroFit","This classification applies to an electricity generation facility contracted under the Ontario Power Authority’s microFIT program and connected to the distributor’s distribution system.  Further servicing details are available in the distributor’s Conditions of Service."]
["MicroFit"]
["MicroFit"]
["MicroFit"]
["MicroFit"]
["MicroFit"]
["MicroFit","APPLICATION"]
["MicroFit"]
["MicroFit","The application of these rates and charges shall be in accordance with the Licence of the Distributor and any Code or Order of the Board, and amendments thereto as approved by the Board, which may be applicable to the administration of this schedule."]
["MicroFit"]
["MicroFit"]
["MicroFit","No rates and charges for the distribution of electricity and charges to meet the costs of any work or service done or furnished for the purpose of the distribution of electricity shall be made except as permitted by this schedule, unless required by the Distributor’s Licence or a Code or Order of the Board, and amendments thereto as approved by the Board, or as specified herein."]
["MicroFit"]
["MicroFit"]
["MicroFit"]
["MicroFit","Unless specifically noted, this schedule does not contain any charges for the electricity commodity, be it under the Regulated Price Plan, a contract with a retailer or the wholesale market price, as applicable."]
["MicroFit"]
["MicroFit"]
["MicroFit","It should be noted that this schedule does not list any charges, assessments or credits that are required by law to be invoiced by a distributor and that are not subject to Board approval, such as the Debt Retirement Charge, the Global Adjustment, the Ontario Clean Energy Benefit and the HST."]
["MicroFit"]
["MicroFit"]
["MicroFit"]
["MicroFit","MONTHLY RATES AND CHARGES - Delivery Component      (If applicable, Effective Date MUST be included in rate description)"]
["MicroFit","Service Charge",null,null,null,null,null,"$",5.25,null,"7_C_MSC"]
["MicroFit"]
["MicroFit"]
["MicroFit"]
["MicroFit"]
["MicroFit"]
["MicroFit"]
["MicroFit"]
["MicroFit"]
["MicroFit"]
["MicroFit"]
["MicroFit"]
["MicroFit"]
["MicroFit"]
["MicroFit"]
["MicroFit"]
["MicroFit"]
["MicroFit"]
["MicroFit"]
["MicroFit"]
["MicroFit"]
["MicroFit"]
["MicroFit"]
["MicroFit"]
["MicroFit"]
["MicroFit"]
["MicroFit"]
["MicroFit"]
["MicroFit"]
["MicroFit"]

{"sheet":"4. Hidden","index":4,"n_rows":456,"n_cols":18,"rows_kept":456,"cut":false,"hidden":true,"merged":[[455,1,455,6],[450,1,450,6],[451,1,451,6],[452,1,452,6],[453,1,453,6],[454,1,454,6],[445,1,445,6],[446,1,446,6],[447,1,447,6],[448,1,448,6],[449,1,449,6],[440,1,440,6],[441,1,441,6],[442,1,442,6],[443,1,443,6],[444,1,444,6],[435,1,435,6],[436,1,436,6],[437,1,437,6],[438,1,438,6],[439,1,439,6],[430,1,430,6],[431,1,431,6],[432,1,432,6],[433,1,433,6],[434,1,434,6],[421,1,424,8],[426,1,426,6],[427,1,427,6],[428,1,428,6],[429,1,429,6],[401,1,401,8],[403,1,408,8],[411,1,413,8],[414,1,417,8],[418,1,420,8],[392,1,392,6],[395,1,395,6],[396,1,396,6],[397,1,397,6],[398,1,398,6],[387,1,387,6],[388,1,388,6],[389,1,389,6],[390,1,390,6],[391,1,391,6],[382,1,382,6],[383,1,383,6],[384,1,384,6],[385,1,385,6],[386,1,386,6],[377,1,377,6],[378,1,378,6],[379,1,379,6],[380,1,380,6],[381,1,381,6],[372,1,372,6],[373,1,373,6],[374,1,374,6],[375,1,375,6],[376,1,376,6],[367,1,367,6],[368,1,368,6],[369,1,369,6],[370,1,370,6],[371,1,371,6],[358,1,361,8],[363,1,363,6],[364,1,364,6],[365,1,365,6],[366,1,366,6],[338,1,338,8],[340,1,345,8],[348,1,350,8],[351,1,354,8],[355,1,357,8],[329,1,329,6],[332,1,332,6],[333,1,333,6],[334,1,334,6],[335,1,335,6],[324,1,324,6],[325,1,325,6],[326,1,326,6],[327,1,327,6],[328,1,328,6],[319,1,319,6],[320,1,320,6],[321,1,321,6],[322,1,322,6],[323,1,323,6],[314,1,314,6],[315,1,315,6],[316,1,316,6],[317,1,317,6],[318,1,318,6],[309,1,309,6],[310,1,310,6],[311,1,311,6],[312,1,312,6],[313,1,313,6],[304,1,304,6],[305,1,305,6],[306,1,306,6],[307,1,307,6],[308,1,308,6],[295,1,298,8],[300,1,300,6],[301,1,301,6],[302,1,302,6],[303,1,303,6],[275,1,275,8],[277,1,282,8],[285,1,287,8],[288,1,291,8],[292,1,294,8],[266,1,266,6],[269,1,269,6],[270,1,270,6],[271,1,271,6],[272,1,272,6],[261,1,261,6],[262,1,262,6],[263,1,263,6],[264,1,264,6],[265,1,265,6],[256,1,256,6],[257,1,257,6],[258,1,258,6],[259,1,259,6],[260,1,260,6],[251,1,251,6],[252,1,252,6],[253,1,253,6],[254,1,254,6],[255,1,255,6],[246,1,246,6],[247,1,247,6],[248,1,248,6],[249,1,249,6],[250,1,250,6],[241,1,241,6],[242,1,242,6],[243,1,243,6],[244,1,244,6],[245,1,245,6],[232,1,235,8],[237,1,237,6],[238,1,238,6],[239,1,239,6],[240,1,240,6],[212,1,212,8],[214,1,219,8],[222,1,224,8],[225,1,228,8],[229,1,231,8],[203,1,203,6],[206,1,206,6],[207,1,207,6],[208,1,208,6],[209,1,209,6],[198,1,198,6],[199,1,199,6],[200,1,200,6],[201,1,201,6],[202,1,202,6],[193,1,193,6],[194,1,194,6],[195,1,195,6],[196,1,196,6],[197,1,197,6],[188,1,188,6],[189,1,189,6],[190,1,190,6],[191,1,191,6],[192,1,192,6],[183,1,183,6],[184,1,184,6],[185,1,185,6],[186,1,186,6],[187,1,187,6],[178,1,178,6],[179,1,179,6],[180,1,180,6],[181,1,181,6],[182,1,182,6],[169,1,172,8],[174,1,174,6],[175,1,175,6],[176,1,176,6],[177,1,177,6],[149,1,149,8],[151,1,156,8],[159,1,161,8],[162,1,165,8],[166,1,168,8],[140,1,140,6],[143,1,143,6],[144,1,144,6],[145,1,145,6],[146,1,146,6],[135,1,135,6],[136,1,136,6],[137,1,137,6],[138,1,138,6],[139,1,139,6],[130,1,130,6],[131,1,131,6],[132,1,132,6],[133,1,133,6],[134,1,134,6],[125,1,125,6],[126,1,126,6],[127,1,127,6],[128,1,128,6],[129,1,129,6],[120,1,120,6],[121,1,121,6],[122,1,122,6],[123,1,123,6],[124,1,124,6],[115,1,115,6],[116,1,116,6],[117,1,117,6],[118,1,118,6],[119,1,119,6],[106,1,109,8],[111,1,111,6],[112,1,112,6],[113,1,113,6],[114,1,114,6],[86,1,86,8],[88,1,93,8],[96,1,98,8],[99,1,102,8],[103,1,105,8],[65,1,65,6],[23,1,23,8],[25,1,30,8],[33,1,35,8],[36,1,39,8],[40,1,42,8],[53,1,53,6],[54,1,54,6],[55,1,55,6],[56,1,56,6],[59,1,59,6],[60,1,60,6],[61,1,61,6],[62,1,62,6],[63,1,63,6],[64,1,64,6],[57,1,57,6],[58,1,58,6],[43,1,46,8],[77,1,77,6],[80,1,80,6],[81,1,81,6],[82,1,82,6],[83,1,83,6],[48,1,48,6],[49,1,49,6],[50,1,50,6],[51,1,51,6],[52,1,52,6],[76,1,76,6],[66,1,66,6],[67,1,67,6],[68,1,68,6],[69,1,69,6],[70,1,70,6],[71,1,71,6],[72,1,72,6],[73,1,73,6],[74,1,74,6],[75,1,75,6]]}
[null,null,null,null,null,null,null,null,null,null,null,null,"Current Rate Classes","Changed to Rate Classes","Values in A that are NOT in B","Values in B that are Not in A","Count of A","Count of B"]
[null,null,null,null,null,null,null,null,null,null,null,null,"Residential","Residential",null,null,7,7]
[null,null,null,null,null,null,null,null,null,null,null,null,"General Service Less Than 50 kW","General Service Less Than 50 kW"]
[null,null,null,null,null,null,null,null,null,null,null,null,"General Service 50 to 4,999 kW","General Service 50 to 4,999 kW"]
[null,null,null,null,null,null,null,null,null,null,null,null,"Unmetered Scattered Load","Unmetered Scattered Load"]
[null,null,null,null,null,null,null,null,null,null,null,null,"Sentinel Lighting","Sentinel Lighting"]
[null,null,null,null,null,null,null,null,null,null,null,null,"Street Lighting","Street Lighting"]
[null,null,null,null,null,null,null,null,null,null,null,null,"MicroFit","MicroFit"]
[]
[]
[]
[]
[]
[]
[]
[]
[]
[]
[]
[]
[]
[]
[]
["Residential","Residential Service Classification"]
["Residential"]
["Residential","This classification refers to the supply of electrical energy to residential customers residing in detached, semi detached, townhouse (freehold or condominium) dwelling units duplexes or triplexes.  Basic connection is defined as\n100 amp 12/240 volt overhead service.  Further servicing details are available in the distributor’s Conditions of\nService.\n"]
["Residential"]
["Residential"]
["Residential"]
["Residential"]
["Residential"]
["Residential","APPLICATION"]
["Residential"]
["Residential","The application of these rates and charges shall be in accordance with the Licence of the Distributor and any Code or Order of the Board, and amendments thereto as approved by the Board, which may be applicable to the administration of this schedule."]
["Residential"]
["Residential"]
["Residential","No rates and charges for the distribution of electricity and charges to meet the costs of any work or service done or furnished for the purpose of the distribution of electricity shall be made except as permitted by this schedule, unless required by the Distributor’s Licence or a Code or Order of the Board, and amendments thereto as approved by the Board, or as specified herein."]
["Residential"]
["Residential"]
["Residential"]
["Residential","Unless specifically noted, this schedule does not contain any charges for the electricity commodity, be it under the\nRegulated Price Plan, a contract with a retailer or the wholesale market price, as applicable.\n"]
["Residential"]
["Residential"]
["Residential","It should be noted that this schedule does not list any charges, assessments or credits that are required by law to be invoiced by a distributor and that are not subject to Board approval, such as the Debt Retirement Charge, the Global Adjustment, the Ontario Clean Energy Benefit and the HST."]
["Residential"]
["Residential"]
["Residential"]
["Residential","MONTHLY RATES AND CHARGES - Delivery Component      (If applicable, Effective Date MUST be included in rate description)"]
["Residential","Service Charge",null,null,null,null,null,"$",16.260000000000002]
["Residential","Distribution Volumetric Rate",null,null,null,null,null,"$/kWh",1.4E-2]
["Residential","Low Voltage Service Rate",null,null,null,null,null,"$/kWh",1.1000000000000001E-3]
["Residential","Rate Rider for Deferral/Variance Account Disposition (2010) – Effective until April 30, 2014",null,null,null,null,null,"$/kWh",-1.2999999999999999E-3]
["Residential","Rate Rider for Deferral/Variance Account Disposition (2012) – Effective until April 30, 2013",null,null,null,null,null,"$/kWh",0]
["Residential","Rate Rider for Global Adjustment Sub-Account Disposition (2012) – Effective until April 30, 2013 Applicable only for Non-RPP Customers",null,null,null,null,null,"$/kWh",1.6999999999999999E-3]
["Residential","Rate Rider for Tax Adjustments - Effective until April 30, 2013",null,null,null,null,null,"$/kWh",-2.9999999999999997E-4]
["Residential","Retail Transmission Rate - Network Service Rate",null,null,null,null,null,"$/kWh",5.5999999999999999E-3]
["Residential","Retail Transmission Rate - Line and Transformation Connection Service Rate",null,null,null,null,null,"$/kWh",3.2000000000000002E-3]
["Residential"]
["Residential"]
["Residential"]
["Residential"]
["Residential"]
["Residential"]
["Residential"]
["Residential"]
["Residential"]
["Residential"]
["Residential"]
["Residential"]
["Residential"]
["Residential"]
["Residential"]
["Residential","Rider for Disposition of Residual Historical Smart Meter Costs – effective until April 30, 2013",null,null,null,null,null,"$",-1.21]
["Residential","Rate Rider for Smart Meter Incremental Revenue Requirement – in effect until the effective date of the\nnext cost of service-based rate order\n",null,null,null,null,null,"$",2.84]
["Residential"]
["Residential"]
["Residential"]
["Residential"]
["Residential","MONTHLY RATES AND CHARGES - Regulatory Component"]
["Residential"]
["Residential","Wholesale Market Service Rate",null,null,null,null,null,"$/kWh",5.1999999999999998E-3]
["Residential","Rural Rate Protection Charge - effective until April 30, 2012"]
["Residential","Rural Rate Protection Charge - effective on and after May 1, 2012",null,null,null,null,null,"$/kWh",1.1000000000000001E-3]
["Residential","Standard Supply Service - Administrative Charge (if applicable)",null,null,null,null,null,"$",0.25]
[]
[]
["General Service Less Than 50 kW","General Service Less Than 50 kW Service Classification"]
["General Service Less Than 50 kW"]
["General Service Less Than 50 kW","This classification refers to a non-residential account taking electricity at 750 volts or less whose monthly peak demand is less than or expected to be less than 50 kW.  Further servicing details are available in our Conditions of Service."]
["General Service Less Than 50 kW"]
["General Service Less Than 50 kW"]
["General Service Less Than 50 kW"]
["General Service Less Than 50 kW"]
["General Service Less Than 50 kW"]
["General Service Less Than 50 kW","APPLICATION"]
["General Service Less Than 50 kW"]
["General Service Less Than 50 kW","The application of these rates and charges shall be in accordance with the Licence of the Distributor and any Code or Order of the Board, and amendments thereto as approved by the Board, which may be applicable to the administration of this schedule."]
["General Service Less Than 50 kW"]
["General Service Less Than 50 kW"]
["General Service Less Than 50 kW","No rates and charges for the distribution of electricity and charges to meet the costs of any work or service done or furnished for the purpose of the distribution of electricity shall be made except as permitted by this schedule, unless required by the Distributor’s Licence or a Code or Order of the Board, and amendments thereto as approved by the Board, or as specified herein."]
["General Service Less Than 50 kW"]
["General Service Less Than 50 kW"]
["General Service Less Than 50 kW"]
["General Service Less Than 50 kW","Unless specifically noted, this schedule does not contain any charges for the electricity commodity, be it under the Regulated Price Plan, a contract with a retailer or the wholesale market price, as applicable."]
["General Service Less Than 50 kW"]
["General Service Less Than 50 kW"]
["General Service Less Than 50 kW","It should be noted that this schedule does not list any charges, assessments or credits that are required by law to be invoiced by a distributor and that are not subject to Board approval, such as the Debt Retirement Charge, the Global Adjustment, the Ontario Clean Energy Benefit and the HST."]
["General Service Less Than 50 kW"]
["General Service Less Than 50 kW"]
["General Service Less Than 50 kW"]
["General Service Less Than 50 kW","MONTHLY RATES AND CHARGES - Delivery Component      (If applicable, Effective Date MUST be included in rate description)"]
["General Service Less Than 50 kW","Service Charge",null,null,null,null,null,"$",33.11]
["General Service Less Than 50 kW","Distribution Volumetric Rate",null,null,null,null,null,"$/kWh",1.01E-2]
["General Service Less Than 50 kW","Low Voltage Service Rate",null,null,null,null,null,"$/kWh",1E-3]
["General Service Less Than 50 kW","Rate Rider for Deferral/Variance Account Disposition (2010) – Effective until April 30, 2014",null,null,null,null,null,"$/kWh",-1.2999999999999999E-3]
["General Service Less Than 50 kW","Rate Rider for Deferral/Variance Account Disposition (2012) – Effective until April 30, 2013",null,null,null,null,null,"$/kWh",-8.9999999999999998E-4]
["General Service Less Than 50 kW","Rate Rider for Global Adjustment Sub-Account Disposition (2012) – Effective until April 30, 2013 Applicable only for Non-RPP Customers",null,null,null,null,null,"$/kWh",1.6999999999999999E-3]
["General Service Less Than 50 kW","Rate Rider for Tax Adjustments - Effective until April 30, 2013",null,null,null,null,null,"$/kWh",-2.0000000000000001E-4]
["General Service Less Than 50 kW","Retail Transmission Rate - Network Service Rate",null,null,null,null,null,"$/kWh",5.1999999999999998E-3]
["General Service Less Than 50 kW","Retail Transmission Rate - Line and Transformation Connection Service Rate",null,null,null,null,null,"$/kWh",2.8999999999999998E-3]
["General Service Less Than 50 kW"]
["General Service Less Than 50 kW"]
["General Service Less Than 50 kW"]
["General Service Less Than 50 kW"]
["General Service Less Than 50 kW"]
["General Service Less Than 50 kW"]
["General Service Less Than 50 kW"]
["General Service Less Than 50 kW"]
["General Service Less Than 50 kW"]
["General Service Less Than 50 kW"]
["General Service Less Than 50 kW"]
["General Service Less Than 50 kW"]
["General Service Less Than 50 kW"]
["General Service Less Than 50 kW"]
["General Service Less Than 50 kW"]
["General Service Less Than 50 kW","Rate Rider for Disposition of Residual Historical Smart Meter Costs – effective until April 30, 2013                   ",null,null,null,null,null,"$",5.77]
["General Service Less Than 50 kW","Rate Rider for Smart Meter Incremental Revenue Requirement – in effect until the effective date of the\nnext cost of service-based rate order\n",null,null,null,null,null,"$",7.02]
["General Service Less Than 50 kW"]
["General Service Less Than 50 kW"]
["General Service Less Than 50 kW"]
["General Service Less Than 50 kW"]
["General Service Less Than 50 kW","MONTHLY RATES AND CHARGES - Regulatory Component"]
["General Service Less Than 50 kW"]
["General Service Less Than 50 kW","Wholesale Market Service Rate",null,null,null,null,null,{"$f":"H81","v":"$/kWh"},{"$f":"I81","v":5.1999999999999998E-3}]
["General Service Less Than 50 kW","Rural Rate Protection Charge - effective until April 30, 2012"]
["General Service Less Than 50 kW","Rural Rate Protection Charge - effective on and after May 1, 2012",null,null,null,null,null,{"$f":"H83","v":"$/kWh"},{"$f":"I83","v":1.1000000000000001E-3}]
["General Service Less Than 50 kW","Standard Supply Service - Administrative Charge (if applicable)",null,null,null,null,null,{"$f":"H84","v":"$"},{"$f":"I84","v":0.25}]
[]
[]
["General Service  50 to 2,499 kW","General Service  50 to 2,499 kW Service Classification"]
["General Service  50 to 2,499 kW"]
["General Service  50 to 2,499 kW","This classification refers to a non-residential account whose monthly average peak demand is equal to or greater than, or is expected to be equal to or greater than, 50 kW but less than 5000 kW.  Further servicing details are available in our Conditions of Service."]
["General Service  50 to 2,499 kW"]
["General Service  50 to 2,499 kW"]
["General Service  50 to 2,499 kW"]
["General Service  50 to 2,499 kW"]
["General Service  50 to 2,499 kW"]
["General Service  50 to 2,499 kW","APPLICATION"]
["General Service  50 to 2,499 kW"]
["General Service  50 to 2,499 kW","The application of these rates and charges shall be in accordance with the Licence of the Distributor and any Code or Order of the Board, and amendments thereto as approved by the Board, which may be applicable to the administration of this schedule."]
["General Service  50 to 2,499 kW"]
["General Service  50 to 2,499 kW"]
["General Service  50 to 2,499 kW","No rates and charges for the distribution of electricity and charges to meet the costs of any work or service done or furnished for the purpose of the distribution of electricity shall be made except as permitted by this schedule, unless required by the Distributor’s Licence or a Code or Order of the Board, and amendments thereto as approved by the Board, or as specified herein."]
["General Service  50 to 2,499 kW"]
["General Service  50 to 2,499 kW"]
["General Service  50 to 2,499 kW"]
["General Service  50 to 2,499 kW","Unless specifically noted, this schedule does not contain any charges for the electricity commodity, be it under the Regulated Price Plan, a contract with a retailer or the wholesale market price, as applicable."]
["General Service  50 to 2,499 kW"]
["General Service  50 to 2,499 kW"]
["General Service  50 to 2,499 kW","It should be noted that this schedule does not list any charges, assessments or credits that are required by law to be invoiced by a distributor and that are not subject to Board approval, such as the Debt Retirement Charge, the Global Adjustment, the Ontario Clean Energy Benefit and the HST."]
["General Service  50 to 2,499 kW"]
["General Service  50 to 2,499 kW"]
["General Service  50 to 2,499 kW"]
["General Service  50 to 2,499 kW","MONTHLY RATES AND CHARGES - Delivery Component      (If applicable, Effective Date MUST be included in rate description)"]
["General Service  50 to 2,499 kW","Service Charge",null,null,null,null,null,"$",33.11]
["General Service  50 to 2,499 kW","Distribution Volumetric Rate",null,null,null,null,null,"$/kWh",1.01E-2]
["General Service  50 to 2,499 kW","Low Voltage Service Rate"]
["General Service  50 to 2,499 kW"]
["General Service  50 to 2,499 kW"]
["General Service  50 to 2,499 kW"]
["General Service  50 to 2,499 kW"]
["General Service  50 to 2,499 kW"]
["General Service  50 to 2,499 kW"]
["General Service  50 to 2,499 kW"]
["General Service  50 to 2,499 kW"]
["General Service  50 to 2,499 kW"]
["General Service  50 to 2,499 kW"]
["General Service  50 to 2,499 kW"]
["General Service  50 to 2,499 kW"]
["General Service  50 to 2,499 kW"]
["General Service  50 to 2,499 kW"]
["General Service  50 to 2,499 kW"]
["General Service  50 to 2,499 kW"]
["General Service  50 to 2,499 kW"]
["General Service  50 to 2,499 kW"]
["General Service  50 to 2,499 kW"]
["General Service  50 to 2,499 kW"]
["General Service  50 to 2,499 kW"]
["General Service  50 to 2,499 kW","Rate Rider for Disposition of Residual Historical Smart Meter Costs – effective until April 30, 2013                   ",null,null,null,null,null,"$",5.77]
["General Service  50 to 2,499 kW","Rate Rider for Smart Meter Incremental Revenue Requirement – in effect until the effective date of the\nnext cost of service-based rate order\n",null,null,null,null,null,"$",7.02]
["General Service  50 to 2,499 kW"]
["General Service  50 to 2,499 kW"]
["General Service  50 to 2,499 kW"]
["General Service  50 to 2,499 kW"]
["General Service  50 to 2,499 kW","MONTHLY RATES AND CHARGES - Regulatory Component"]
["General Service  50 to 2,499 kW"]
["General Service  50 to 2,499 kW","Wholesale Market Service Rate",null,null,null,null,null,{"$f":"H81","v":"$/kWh"},5.1999999999999998E-3]
["General Service  50 to 2,499 kW","Rural Rate Protection Charge - effective until April 30, 2012",null,null,null,null,null,0,0]
["General Service  50 to 2,499 kW","Rural Rate Protection Charge - effective on and after May 1, 2012",null,null,null,null,null,"$/kWh",1.1000000000000001E-3]
["General Service  50 to 2,499 kW","Standard Supply Service - Administrative Charge (if applicable)",null,null,null,null,null,"$",0.25]
[]
[]
["Unmetered Scattered Load","Unmetered Scattered Load Service Classification"]
["Unmetered Scattered Load"]
["Unmetered Scattered Load"]
["Unmetered Scattered Load"]
["Unmetered Scattered Load"]
["Unmetered Scattered Load"]
["Unmetered Scattered Load"]
["Unmetered Scattered Load"]
["Unmetered Scattered Load","APPLICATION"]
["Unmetered Scattered Load"]
["Unmetered Scattered Load"]
["Unmetered Scattered Load"]
["Unmetered Scattered Load"]
["Unmetered Scattered Load"]
["Unmetered Scattered Load"]
["Unmetered Scattered Load"]
["Unmetered Scattered Load"]
["Unmetered Scattered Load"]
["Unmetered Scattered Load"]
["Unmetered Scattered Load"]
["Unmetered Scattered Load"]
["Unmetered Scattered Load"]
["Unmetered Scattered Load"]
["Unmetered Scattered Load"]
["Unmetered Scattered Load","MONTHLY RATES AND CHARGES - Delivery Component      (If applicable, Effective Date MUST be included in rate description)"]
["Unmetered Scattered Load"]
["Unmetered Scattered Load"]
["Unmetered Scattered Load"]
["Unmetered Scattered Load"]
["Unmetered Scattered Load"]
["Unmetered Scattered Load"]
["Unmetered Scattered Load"]
["Unmetered Scattered Load"]
["Unmetered Scattered Load"]
["Unmetered Scattered Load"]
["Unmetered Scattered Load"]
["Unmetered Scattered Load"]
["Unmetered Scattered Load"]
["Unmetered Scattered Load"]
["Unmetered Scattered Load"]
["Unmetered Scattered Load"]
["Unmetered Scattered Load"]
["Unmetered Scattered Load"]
["Unmetered Scattered Load"]
["Unmetered Scattered Load"]
["Unmetered Scattered Load"]
["Unmetered Scattered Load"]
["Unmetered Scattered Load"]
["Unmetered Scattered Load"]
["Unmetered Scattered Load"]
["Unmetered Scattered Load"]
["Unmetered Scattered Load"]
["Unmetered Scattered Load"]
["Unmetered Scattered Load"]
["Unmetered Scattered Load"]
["Unmetered Scattered Load","MONTHLY RATES AND CHARGES - Regulatory Component"]
["Unmetered Scattered Load"]
["Unmetered Scattered Load","Wholesale Market Service Rate",null,null,null,null,null,{"$f":"H81","v":"$/kWh"},5.1999999999999998E-3]
["Unmetered Scattered Load","Rural Rate Protection Charge - effective until April 30, 2012",null,null,null,null,null,0,0]
["Unmetered Scattered Load","Rural Rate Protection Charge - effective on and after May 1, 2012",null,null,null,null,null,"$/kWh",1.1000000000000001E-3]
["Unmetered Scattered Load","Standard Supply Service - Administrative Charge (if applicable)",null,null,null,null,null,"$",0.25]
[]
[]
["Sentinel Lighting","Sentinel Lighting Service Classification"]
["Sentinel Lighting"]
["Sentinel Lighting"]
["Sentinel Lighting"]
["Sentinel Lighting"]
["Sentinel Lighting"]
["Sentinel Lighting"]
["Sentinel Lighting"]
["Sentinel Lighting","APPLICATION"]
["Sentinel Lighting"]
["Sentinel Lighting"]
["Sentinel Lighting"]
["Sentinel Lighting"]
["Sentinel Lighting"]
["Sentinel Lighting"]
["Sentinel Lighting"]
["Sentinel Lighting"]
["Sentinel Lighting"]
["Sentinel Lighting"]
["Sentinel Lighting"]
["Sentinel Lighting"]
["Sentinel Lighting"]
["Sentinel Lighting"]
["Sentinel Lighting"]
["Sentinel Lighting","MONTHLY RATES AND CHARGES - Delivery Component      (If applicable, Effective Date MUST be included in rate description)"]
["Sentinel Lighting"]
["Sentinel Lighting"]
["Sentinel Lighting"]
["Sentinel Lighting"]
["Sentinel Lighting"]
["Sentinel Lighting"]
["Sentinel Lighting"]
["Sentinel Lighting"]
["Sentinel Lighting"]
["Sentinel Lighting"]
["Sentinel Lighting"]
["Sentinel Lighting"]
["Sentinel Lighting"]
["Sentinel Lighting"]
["Sentinel Lighting"]
["Sentinel Lighting"]
["Sentinel Lighting"]
["Sentinel Lighting"]
["Sentinel Lighting"]
["Sentinel Lighting"]
["Sentinel Lighting"]
["Sentinel Lighting"]
["Sentinel Lighting"]
["Sentinel Lighting"]
["Sentinel Lighting"]
["Sentinel Lighting"]
["Sentinel Lighting"]
["Sentinel Lighting"]
["Sentinel Lighting"]
["Sentinel Lighting"]
["Sentinel Lighting","MONTHLY RATES AND CHARGES - Regulatory Component"]
["Sentinel Lighting"]
["Sentinel Lighting","Wholesale Market Service Rate",null,null,null,null,null,{"$f":"H81","v":"$/kWh"},5.1999999999999998E-3]
["Sentinel Lighting","Rural Rate Protection Charge - effective until April 30, 2012",null,null,null,null,null,0,0]
["Sentinel Lighting","Rural Rate Protection Charge - effective on and after May 1, 2012",null,null,null,null,null,"$/kWh",1.1000000000000001E-3]
["Sentinel Lighting","Standard Supply Service - Administrative Charge (if applicable)",null,null,null,null,null,"$",0.25]
[]
[]
["Street Lighting","Street Lighting Service Classification"]
["Street Lighting"]
["Street Lighting"]
["Street Lighting"]
["Street Lighting"]
["Street Lighting"]
["Street Lighting"]
["Street Lighting"]
["Street Lighting","APPLICATION"]
["Street Lighting"]
["Street Lighting"]
["Street Lighting"]
["Street Lighting"]
["Street Lighting"]
["Street Lighting"]
["Street Lighting"]
["Street Lighting"]
["Street Lighting"]
["Street Lighting"]
["Street Lighting"]
["Street Lighting"]
["Street Lighting"]
["Street Lighting"]
["Street Lighting"]
["Street Lighting","MONTHLY RATES AND CHARGES - Delivery Component      (If applicable, Effective Date MUST be included in rate description)"]
["Street Lighting"]
["Street Lighting"]
["Street Lighting"]
["Street Lighting"]
["Street Lighting"]
["Street Lighting"]
["Street Lighting"]
["Street Lighting"]
["Street Lighting"]
["Street Lighting"]
["Street Lighting"]
["Street Lighting"]
["Street Lighting"]
["Street Lighting"]
["Street Lighting"]
["Street Lighting"]
["Street Lighting"]
["Street Lighting"]
["Street Lighting"]
["Street Lighting"]
["Street Lighting"]
["Street Lighting"]
["Street Lighting"]
["Street Lighting"]
["Street Lighting"]
["Street Lighting"]
["Street Lighting"]
["Street Lighting"]
["Street Lighting"]
["Street Lighting"]
["Street Lighting","MONTHLY RATES AND CHARGES - Regulatory Component"]
["Street Lighting"]
["Street Lighting","Wholesale Market Service Rate",null,null,null,null,null,{"$f":"H81","v":"$/kWh"},5.1999999999999998E-3]
["Street Lighting","Rural Rate Protection Charge - effective until April 30, 2012",null,null,null,null,null,0,0]
["Street Lighting","Rural Rate Protection Charge - effective on and after May 1, 2012",null,null,null,null,null,"$/kWh",1.1000000000000001E-3]
["Street Lighting","Standard Supply Service - Administrative Charge (if applicable)",null,null,null,null,null,"$",0.25]
[]
[]
["MicroFit","MicroFit Service Classification"]
["MicroFit"]
["MicroFit"]
["MicroFit"]
["MicroFit"]
["MicroFit"]
["MicroFit"]
["MicroFit"]
["MicroFit","APPLICATION"]
["MicroFit"]
["MicroFit"]
["MicroFit"]
["MicroFit"]
["MicroFit"]
["MicroFit"]
["MicroFit"]
["MicroFit"]
["MicroFit"]
["MicroFit"]
["MicroFit"]
["MicroFit"]
["MicroFit"]
["MicroFit"]
["MicroFit"]
["MicroFit","MONTHLY RATES AND CHARGES - Delivery Component      (If applicable, Effective Date MUST be included in rate description)"]
["MicroFit"]
["MicroFit"]
["MicroFit"]
["MicroFit"]
["MicroFit"]
["MicroFit"]
["MicroFit"]
["MicroFit"]
["MicroFit"]
["MicroFit"]
["MicroFit"]
["MicroFit"]
["MicroFit"]
["MicroFit"]
["MicroFit"]
["MicroFit"]
["MicroFit"]
["MicroFit"]
["MicroFit"]
["MicroFit"]
["MicroFit"]
["MicroFit"]
["MicroFit"]
["MicroFit"]
["MicroFit"]
["MicroFit"]
["MicroFit"]
["MicroFit"]
["MicroFit"]
["MicroFit"]

{"sheet":"5. 2013 Continuity Schedule","index":5,"n_rows":58,"n_cols":86,"rows_kept":58,"cut":false,"hidden":false,"merged":[[14,2,14,3],[50,2,51,3],[19,8,21,8],[19,21,21,21],[19,22,21,22],[19,7,21,7],[19,13,21,13],[19,11,21,11],[19,12,21,12],[19,18,21,18],[19,19,21,19],[19,81,21,81],[19,82,21,82],[19,83,21,83],[19,84,21,84],[19,65,21,65],[19,66,21,66],[19,67,21,67],[19,68,21,68],[19,51,21,51],[19,85,21,85],[19,75,21,75],[19,76,21,76],[19,77,21,77],[19,78,21,78],[19,79,21,79],[19,80,21,80],[19,69,21,69],[19,70,21,70],[19,71,21,71],[19,72,21,72],[19,73,21,73],[19,74,21,74],[19,57,21,57],[19,63,21,63],[19,64,21,64],[19,52,21,52],[19,53,21,53],[19,54,21,54],[19,55,21,55],[19,56,21,56],[19,62,21,62],[19,58,21,58],[19,59,21,59],[19,60,21,60],[19,61,21,61],[19,45,21,45],[19,46,21,46],[19,47,21,47],[19,48,21,48],[19,49,21,49],[19,40,21,40],[19,41,21,41],[19,42,21,42],[19,43,21,43],[19,44,21,44],[19,26,21,26],[19,2,21,2],[19,3,21,3],[19,5,21,5],[19,6,21,6],[19,24,21,24],[19,25,21,25],[19,4,21,4],[19,23,21,23],[19,20,21,20],[19,14,21,14],[19,15,21,15],[19,16,21,16],[19,17,21,17],[19,9,21,9],[19,10,21,10],[18,77,18,80],[18,81,18,83],[18,34,18,43],[18,44,18,53],[18,4,18,13],[18,14,18,23],[18,24,18,33],[19,38,21,38],[19,27,21,27],[19,28,21,28],[18,54,18,63],[18,64,18,76],[19,29,21,29],[19,30,21,30],[19,31,21,31],[19,32,21,32],[19,33,21,33],[19,34,21,34],[19,35,21,35],[19,36,21,36],[19,37,21,37],[19,50,21,50],[19,39,21,39]]}
[]
[]
[]
[]
[]
[]
[]
[]
[]
[]
[]
[]
[]
[]
[null,null,"Please complete the following continuity schedule for the following Deferral / Variance Accounts.  Enter information into green cells only.  \n\nIf you have received approval to dispose of balances from prior years, the starting point for entries in the 2013 DVA schedule below will be the balance sheet date as per your G/L for which you received approval.  For example, if in the 2012 EDR process (CoS or IRM) you received approval for the December 31, 2010 balances, the starting point for your entries below should be the adjustment column BF for principal and column BK for interest.  This will allow for the correct starting point for the 2011 opening balance columns (for both principal and interest) without requiring entries dating back to the beginning of the continuity schedule ie: Jan 1, 2005. \n\nPlease refer to the footnotes for further instructions.\n"]
[]
[]
[]
[null,null,null,null,2005,null,null,null,null,null,null,null,null,null,2006,null,null,null,null,null,null,null,null,null,2007,null,null,null,null,null,null,null,null,null,2008,null,null,null,null,null,null,null,null,null,2009,null,null,null,null,null,null,null,null,null,2010,null,null,null,null,null,null,null,null,null,2011,null,null,null,null,null,null,null,null,null,null,null,null,2012,null,null,null,"Projected Interest on Dec-31-11 Balances",null,null,"2.1.7 RRR"]
[null,null,"Account Descriptions","Account Number","Opening Principal Amounts as of Jan-1-05","Transactions Debit / (Credit) during 2005 excluding interest and adjustments 2","Board-Approved Disposition during 2005","Adjustments during 2005 - other 2","Closing Principal Balance as of Dec-31-05","Opening Interest Amounts as of Jan-1-05","Interest Jan-1 to Dec-31-05","Board-Approved Disposition during 2005","Adjustments during 2005 - other 2","Closing Interest Amounts as of Dec-31-05","Opening Principal Amounts as of Jan-1-06 ","Transactions Debit / (Credit) during 2006 excluding interest and adjustments 2","Board-Approved Disposition during 2006","Adjustments during 2006 - other 2","Closing Principal Balance as of Dec-31-06","Opening Interest Amounts as of Jan-1-06","Interest Jan-1 to Dec-31-06","Board-Approved Disposition during 2006  1","Adjustments during 2006 - other 2","Closing Interest Amounts as of Dec-31-06","Opening Principal Amounts as of Jan-1-07 ","Transactions Debit / (Credit) during 2007 excluding interest and adjustments 2","Board-Approved Disposition during 2007","Adjustments during 2007 - other 1","Closing Principal Balance as of Dec-31-07","Opening Interest Amounts as of Jan-1-07","Interest Jan-1 to Dec-31-07","Board-Approved Disposition during 2007","Adjustments during 2007 - other 1","Closing Interest Amounts as of Dec-31-07","Opening Principal Amounts as of Jan-1-08 ","Transactions Debit / (Credit) during 2008 excluding interest and adjustments 2","Board-Approved Disposition during 2008","Adjustments during 2008 - other 1","Closing Principal Balance as of Dec-31-08","Opening Interest Amounts as of Jan-1-08","Interest Jan-1 to Dec-31-08","Board-Approved Disposition during 2008","Adjustments during 2008 - other 1","Closing Interest Amounts as of Dec-31-08","Opening Principal Amounts as of Jan-1-09","Transactions Debit / (Credit) during 2009 excluding interest and adjustments 2","Board-Approved Disposition during 2009","Adjustments during 2009 - other 1","Closing Principal Balance as of Dec-31-09","Opening Interest Amounts as of Jan-1-09","Interest Jan-1 to Dec-31-09","Board-Approved Disposition during 2009","Adjustments during 2009 - other 1","Closing Interest Amounts as of Dec-31-09","Opening Principal Amounts as of Jan-1-10","Transactions Debit / (Credit) during 2010 excluding interest and adjustments 2","Board-Approved Disposition during 2010","Adjustments during 2010 - other 1","Closing Principal Balance as of Dec-31-10","Opening Interest Amounts as of Jan-1-10","Interest Jan-1 to Dec-31-10","Board-Approved Disposition during 2010","Adjustments during 2010 - other 2","Closing Interest Amounts as of Dec-31-10","Opening Principal Amounts as of Jan-1-11","Transactions Debit / (Credit) during 2011 excluding interest and adjustments 2","Board-Approved Disposition during 2011","Other 1 Adjustments during Q1 2011","Other 1 Adjustments during Q2 2011","Other 1 Adjustments during Q3 2011","Other 1 Adjustments during Q4 2011","Closing Principal Balance as of Dec-31-11","Opening Interest Amounts as of Jan-1-11","Interest Jan-1 to Dec-31-11","Board-Approved Disposition during 2011","Adjustments during 2011 - other 1","Closing Interest Amounts as of Dec-31-11","Principal Disposition during 2012 - instructed by Board","Interest Disposition during 2012 - instructed by Board","Closing Principal Balances as of Dec 31-11 Adjusted for Dispositions during 2012","Closing Interest Balances as of Dec 31-11 Adjusted for Dispositions during 2012","Projected Interest from Jan 1, 2012 to December 31, 2012 on Dec 31 -11 balance adjusted for disposition during 2012 3","Projected Interest from January 1, 2013 to April 30, 2013 on Dec 31 -11 balance adjusted for disposition during 2012  3","Total Claim","As of Dec 31-11","Variance                           RRR vs. 2011 Balance                        (Principal + Interest)"]
[]
[null,null,null,null,null,null,null,null,null,null,null,null,null,null,null,null,null,null,null,null,null,null,null,null,null,null,null,null,null,null,null,null,null,null,null,null,null,null,null,null,null,null,null,null,null,null,null,null,null,null,null,null,null,null,null,null,null,null,null,null,null,null,null,null,null,null,null,null,null,null,null,null,null,null,null,null,null,null,null,null,null,null,null,"Claim before Forecasted Transactions"]
[null,null,"Group 1 Accounts"]
[1,null,"LV Variance Account",1550,null,null,null,null,{"$f":"E24+F24-G24+H24","v":0},null,null,null,null,{"$f":"J24+K24-L24+M24","v":0},{"$f":"I24","v":0},null,null,null,{"$f":"O24+P24-Q24+R24","v":0},{"$f":"N24","v":0},null,null,null,{"$f":"T24+U24-V24+W24","v":0},{"$f":"S24","v":0},null,null,null,{"$f":"Y24+Z24-AA24+AB24","v":0},{"$f":"X24","v":0},null,null,null,{"$f":"AD24+AE24-AF24+AG24","v":0},{"$f":"AC24","v":0},null,null,null,{"$f":"AI24+AJ24-AK24+AL24","v":0},{"$f":"AH24","v":0},null,null,null,{"$f":"AN24+AO24-AP24+AQ24","v":0},{"$f":"AM24","v":0},null,null,null,{"$f":"AS24+AT24-AU24+AV24","v":0},{"$f":"AR24","v":0},null,null,null,{"$f":"AX24+AY24-AZ24+BA24","v":0},{"$f":"AW24","v":0},null,null,{"$f":"[4]Sheet1!$G7","v":-198282},{"$f":"BC24+BD24-BE24+BF24","v":-198282},{"$f":"BB24","v":0},null,null,{"$f":"[4]Sheet1!$H7","v":-1984.9459510000015},{"$f":"BH24+BI24-BJ24+BK24","v":-1984.9459510000015},{"$f":"BG24","v":-198282},{"$f":"[5]Sheet1!$L$34-[5]Sheet1!$K$35","v":118229.49},null,null,null,null,null,{"$f":"BM24+BN24-BO24+SUM(BP24:BS24)","v":-80052.509999999995},{"$f":"BL24","v":-1984.9459510000015},{"$f":"[5]Sheet1!$L$36","v":-1961.05},null,null,{"$f":"BU24+BV24-BW24+BX24","v":-3945.9959510000017},{"$f":"[6]Sheet1!$H7","v":-198282},{"$f":"[6]Sheet1!$K7","v":-5871},{"$f":"BT24-BZ24","v":118229.49},{"$f":"BY24-CA24","v":1925.0040489999983},{"$f":"CB24*1.47%","v":1737.9735029999999},{"$f":"CD24/12*4","v":579.32450099999994},{"$f":"SUM(CB24:CE24)","v":122471.792053},{"$f":"-83998.14","v":-83998.14},{"$f":"CG24-SUM(BT24,BY24)","v":0.3659509999997681}]
[2,null,"RSVA - Wholesale Market Service Charge",1580,null,null,null,null,0,null,null,null,null,{"$f":"J25+K25-L25+M25","v":0},{"$f":"I25","v":0},null,null,null,{"$f":"O25+P25-Q25+R25","v":0},{"$f":"N25","v":0},null,null,null,{"$f":"T25+U25-V25+W25","v":0},{"$f":"S25","v":0},null,null,null,{"$f":"Y25+Z25-AA25+AB25","v":0},{"$f":"X25","v":0},null,null,null,{"$f":"AD25+AE25-AF25+AG25","v":0},{"$f":"AC25","v":0},null,null,null,{"$f":"AI25+AJ25-AK25+AL25","v":0},{"$f":"AH25","v":0},null,null,null,{"$f":"AN25+AO25-AP25+AQ25","v":0},{"$f":"AM25","v":0},null,null,null,{"$f":"AS25+AT25-AU25+AV25","v":0},{"$f":"AR25","v":0},null,null,null,{"$f":"AX25+AY25-AZ25+BA25","v":0},{"$f":"AW25","v":0},null,null,{"$f":"[4]Sheet1!$G8","v":-315051},{"$f":"BC25+BD25-BE25+SUM(BF25:BF25)","v":-315051},{"$f":"BB25","v":0},null,null,{"$f":"[4]Sheet1!$H8","v":1040.7473763934831},{"$f":"BH25+BI25-BJ25+BK25","v":1040.7473763934831},{"$f":"BG25","v":-315051},{"$f":"[5]Sheet1!$L$5-[5]Sheet1!$K$6","v":-252218.59000000003},null,null,null,null,null,{"$f":"BM25+BN25-BO25+SUM(BP25:BS25)","v":-567269.59000000008},{"$f":"BL25","v":1040.7473763934831},{"$f":"[5]Sheet1!$L$8","v":-6510.21},null,null,{"$f":"BU25+BV25-BW25+BX25","v":-5469.4626236065169},{"$f":"[6]Sheet1!$H8","v":-315051},{"$f":"[6]Sheet1!$K8","v":-5134},{"$f":"BT25-BZ25","v":-252218.59000000008},{"$f":"BY25-CA25","v":-335.4626236065169},-3707.6132730000013,{"$f":"CD25/12*4","v":-1235.8710910000004},{"$f":"SUM(CB25:CE25)","v":-257497.53698760661},-572738.80000000005,{"$f":"CG25-SUM(BT25,BY25)","v":0.2526236065896228}]
[3,null,"RSVA - Retail Transmission Network Charge",1584,null,null,null,null,0,null,null,null,null,0,0,null,null,null,0,0,null,null,null,0,0,null,null,null,0,0,null,null,null,0,0,null,null,null,0,0,null,null,null,0,0,null,null,null,0,0,null,null,null,0,0,null,null,{"$f":"[4]Sheet1!$G9","v":-104307},-104307,0,null,null,{"$f":"[4]Sheet1!$H9","v":-225.76000000000204},-225.76000000000204,-104307,{"$f":"[5]Sheet1!$L$12-[5]Sheet1!$K$14","v":45312.820000000007},null,null,null,null,null,-58994.179999999993,-225.76000000000204,{"$f":"[5]Sheet1!$L$16","v":-1189.05},null,null,-1414.810000000002,{"$f":"[6]Sheet1!$H9","v":-104307},{"$f":"[6]Sheet1!$K9","v":-2270},45312.820000000007,855.18999999999801,666.09845400000006,222.03281800000002,47056.141272000001,-60391.18,17.809999999997672]
[4,null,"RSVA - Retail Transmission Connection Charge",1586,null,null,null,null,{"$f":"E27+F27-G27+H27","v":0},null,null,null,null,0,0,null,null,null,0,0,null,null,null,0,0,null,null,null,0,0,null,null,null,0,0,null,null,null,0,0,null,null,null,0,0,null,null,null,0,0,null,null,null,0,0,null,null,{"$f":"[4]Sheet1!$G10","v":-55452},-55452,0,null,null,{"$f":"[4]Sheet1!$H10","v":2645.6906096926687},2645.6906096926687,-55452,{"$f":"[5]Sheet1!$L$19-[5]Sheet1!$K$21","v":6746.4100000000326},null,null,null,null,null,-48705.589999999967,2645.6906096926687,{"$f":"[5]Sheet1!$L$23","v":-766},null,null,1879.6906096926687,{"$f":"[6]Sheet1!$H10","v":-55452},{"$f":"[6]Sheet1!$K10","v":-1559},6746.4100000000326,3438.6906096926687,99.172227000000476,33.057409000000156,10317.330245692703,-46826.51,-0.61060969270329224]
[5,null,"RSVA - Power (excluding Global Adjustment)",1588,null,null,null,null,0,null,null,null,null,0,0,null,null,null,0,0,null,null,null,0,0,null,null,null,0,0,null,null,null,0,0,null,null,null,0,0,null,null,null,0,0,null,null,null,0,0,null,null,null,0,0,null,null,{"$f":"[4]Sheet1!$G11","v":126334},126334,0,null,null,{"$f":"[4]Sheet1!$H11","v":5408.1344141848003},5408.1344141848003,126334,{"$f":"[5]Sheet1!$L$26-[5]Sheet1!$K$27","v":-56056.419999999984},null,null,null,null,null,70277.580000000016,5408.1344141848003,{"$f":"[7]RSVAs!$O$104","v":-1684.3451352930708},null,null,3723.7892788917297,{"$f":"[6]Sheet1!$H11","v":126334},{"$f":"[6]Sheet1!$K11","v":-7884},-56056.419999999984,11607.789278891731,-824.02937399999973,-274.67645799999991,-45547.336553108253,74001,-0.36927889173966832]
[6,null,"RSVA - Power - Sub-account - Global Adjustment",1588,null,null,null,null,0,null,null,null,null,0,0,null,null,null,0,0,null,null,null,0,0,null,null,null,0,0,null,null,null,0,0,null,null,null,0,0,null,null,null,0,0,null,null,null,0,0,null,null,null,0,0,null,null,{"$f":"[4]Sheet1!$G12","v":252342},252342,0,null,null,{"$f":"[4]Sheet1!$H12","v":-1500.9850535902888},-1500.9850535902888,252342,{"$f":"[5]Sheet1!$L$29","v":174952.78},null,null,null,null,null,427294.78,-1500.9850535902888,{"$f":"[5]Sheet1!$L$31-BV28","v":7451.4551352930703},null,null,{"$f":"BU29+BV29-BW29+BX29","v":5950.4700817027815},{"$f":"[6]Sheet1!$H12","v":252342},{"$f":"[6]Sheet1!$K12","v":-3445},174952.78000000003,9395.4700817027806,2571.8058660000002,857.26862200000005,187777.32456970282,433244,-1.2500817028339952]
[7,null,"Recovery of Regulatory Asset Balances",1590,null,null,null,null,0,null,null,null,null,0,0,null,null,null,0,0,null,null,null,0,0,null,null,null,0,0,null,null,null,0,0,null,null,null,0,0,null,null,null,0,0,null,null,null,0,0,null,null,null,0,0,null,null,null,0,0,null,null,null,0,0,null,null,null,null,null,null,0,0,null,null,null,{"$f":"BU30+BV30-BW30+BX30","v":0},null,null,0,0,0,0,0,null,0]
[8,null,"Disposition and Recovery/Refund of Regulatory Balances (2008)5",1595,null,null,null,null,0,null,null,null,null,0,{"$f":"I31","v":0},null,null,null,0,{"$f":"N31","v":0},null,null,null,0,{"$f":"S31","v":0},null,null,null,0,{"$f":"X31","v":0},null,null,null,0,{"$f":"AC31","v":0},null,null,null,0,{"$f":"AH31","v":0},null,null,null,0,{"$f":"AM31","v":0},null,null,null,0,{"$f":"AR31","v":0},null,null,null,0,{"$f":"AW31","v":0},null,null,null,0,{"$f":"BB31","v":0},null,null,null,0,{"$f":"BG31","v":0},null,null,null,null,null,null,0,{"$f":"BL31","v":0},null,null,null,0,null,null,0,0,0,0,0,null,0]
[9,null,"Disposition and Recovery/Refund of Regulatory Balances (2009)5",1595,null,null,null,null,0,null,null,null,null,0,0,null,null,null,0,0,null,null,null,0,0,null,null,null,0,0,null,null,null,0,0,null,null,null,0,0,null,null,null,0,0,null,null,null,0,0,null,null,null,0,0,null,null,null,0,0,null,null,null,0,{"$f":"BG32","v":0},null,null,null,null,null,null,0,{"$f":"BL32","v":0},null,null,null,0,null,null,0,0,0,0,0,null,0]
[9,null,"Disposition and Recovery/Refund of Regulatory Balances (2010)5",1595,null,null,null,null,{"$f":"E33+F33-G33+H33","v":0},null,null,null,null,{"$f":"J33+K33-L33+M33","v":0},{"$f":"I33","v":0},null,null,null,{"$f":"O33+P33-Q33+R33","v":0},{"$f":"N33","v":0},null,null,null,{"$f":"T33+U33-V33+W33","v":0},{"$f":"S33","v":0},null,null,null,{"$f":"Y33+Z33-AA33+AB33","v":0},{"$f":"X33","v":0},null,null,null,{"$f":"AD33+AE33-AF33+AG33","v":0},{"$f":"AC33","v":0},null,null,null,{"$f":"AI33+AJ33-AK33+AL33","v":0},{"$f":"AH33","v":0},null,null,null,{"$f":"AN33+AO33-AP33+AQ33","v":0},{"$f":"AM33","v":0},null,null,null,{"$f":"AS33+AT33-AU33+AV33","v":0},{"$f":"AR33","v":0},null,null,null,{"$f":"AX33+AY33-AZ33+BA33","v":0},{"$f":"AW33","v":0},null,null,null,0,{"$f":"BB33","v":0},null,null,null,{"$f":"BH33+BI33-BJ33+BK33","v":0},{"$f":"BG33","v":0},null,null,null,null,null,null,{"$f":"BM33+BN33-BO33+SUM(BP33:BS33)","v":0},{"$f":"BL33","v":0},null,null,null,{"$f":"BU33+BV33-BW33+BX33","v":0},null,null,{"$f":"BT33-BZ33","v":0},{"$f":"BY33-CA33","v":0},0,{"$f":"CD33/12*4","v":0},0,null,{"$f":"CG33-SUM(BT33,BY33)","v":0}]
[]
[null,null,"Group 1 Sub-Total (including Account 1588 - Global Adjustment)",null,{"$f":"SUM(E24:E33)","v":0},{"$f":"SUM(F24:F33)","v":0},0,0,0,0,0,0,0,0,0,0,0,0,0,0,0,0,0,0,0,0,0,0,0,0,0,0,0,0,0,0,0,0,0,0,0,0,0,0,0,0,0,0,0,0,0,0,0,0,0,0,0,-294416,-294416,0,0,0,5382.8813956806598,5382.8813956806598,-294416,36966.49000000002,0,0,0,{"$f":"SUM(BR24:BR33)","v":0},0,-257449.51,5382.8813956806598,-4659.2000000000007,0,0,723.68139568065999,-294416,-26163,36966.489999999991,26886.681395680658,543.4074029999997,181.1358009999999,64577.714599680679,-256709.63000000012,16.198604319310107]
[null,null,"Group 1 Sub-Total (excluding Account 1588 - Global Adjustment)",null,{"$f":"E35-E37","v":0},{"$f":"F35-F37","v":0},{"$f":"G35-G37","v":0},0,0,0,0,{"$f":"L35-L37","v":0},{"$f":"M35-M37","v":0},0,0,0,0,0,0,0,0,{"$f":"V35-V37","v":0},{"$f":"W35-W37","v":0},{"$f":"X35-X37","v":0},0,0,0,0,0,0,0,{"$f":"AF35-AF37","v":0},{"$f":"AG35-AG37","v":0},{"$f":"AH35-AH37","v":0},0,0,0,0,0,0,0,{"$f":"AP35-AP37","v":0},{"$f":"AQ35-AQ37","v":0},{"$f":"AR35-AR37","v":0},0,0,0,0,0,0,0,{"$f":"AZ35-AZ37","v":0},{"$f":"BA35-BA37","v":0},{"$f":"BB35-BB37","v":0},0,0,0,-546758,-546758,0,0,0,6883.8664492709486,6883.8664492709486,-546758,-137986.28999999998,0,0,0,0,{"$f":"BS35-BS37","v":0},-684744.29,6883.8664492709486,-12110.655135293071,0,0,-5226.7886860221215,-546758,-22718,-137986.29000000004,17491.211313977878,-2028.3984630000004,-676.13282100000015,-123199.60997002217,{"$f":"CG35-CG37","v":-689953.63000000012},17.448686022078618]
[null,null,{"$f":"C29","v":"RSVA - Power - Sub-account - Global Adjustment"},1588,{"$f":"E29","v":0},{"$f":"F29","v":0},{"$f":"G29","v":0},0,0,0,0,{"$f":"L29","v":0},{"$f":"M29","v":0},0,0,0,0,0,0,0,0,0,0,0,0,0,0,0,0,0,0,0,0,0,0,0,0,0,0,0,0,{"$f":"AP29","v":0},{"$f":"AQ29","v":0},{"$f":"AR29","v":0},0,0,0,0,0,0,0,0,0,0,0,0,0,252342,252342,0,0,0,-1500.9850535902888,-1500.9850535902888,252342,174952.78,0,0,0,0,{"$f":"BS29","v":0},427294.78,-1500.9850535902888,{"$f":"BV29","v":7451.4551352930703},0,0,5950.4700817027815,252342,-3445,174952.78000000003,9395.4700817027806,2571.8058660000002,857.26862200000005,187777.32456970282,{"$f":"CG29","v":433244},-1.2500817028339952]
[]
[]
[31,null,"Deferred Payments in Lieu of Taxes",1562,null,null,null,null,{"$f":"E40+F40-G40+H40","v":0},null,null,null,null,{"$f":"J40+K40-L40+M40","v":0},{"$f":"I40","v":0},null,null,null,{"$f":"O40+P40-Q40+R40","v":0},{"$f":"N40","v":0},null,null,null,{"$f":"T40+U40-V40+W40","v":0},{"$f":"S40","v":0},null,null,null,{"$f":"Y40+Z40-AA40+AB40","v":0},{"$f":"X40","v":0},null,null,null,{"$f":"AD40+AE40-AF40+AG40","v":0},{"$f":"AC40","v":0},null,null,null,{"$f":"AI40+AJ40-AK40+AL40","v":0},{"$f":"AH40","v":0},null,null,null,{"$f":"AN40+AO40-AP40+AQ40","v":0},{"$f":"AM40","v":0},null,null,null,{"$f":"AS40+AT40-AU40+AV40","v":0},{"$f":"AR40","v":0},null,null,null,{"$f":"AX40+AY40-AZ40+BA40","v":0},{"$f":"AW40","v":0},null,null,{"$f":"[4]Sheet1!$G$17","v":220202},{"$f":"BC40+BD40-BE40+SUM(BF40:BF40)","v":220202},{"$f":"BB40","v":0},null,null,{"$f":"[4]Sheet1!$H$17+[4]Sheet1!$I$17+[4]Sheet1!$J$17","v":81972.059799999988},{"$f":"BH40+BI40-BJ40+BK40","v":81972.059799999988},{"$f":"BG40","v":220202},null,null,null,null,null,null,{"$f":"BM40+BN40-BO40+SUM(BP40:BS40)","v":220202},{"$f":"BL40","v":81972.059799999988},null,null,null,{"$f":"BU40+BV40-BW40+BX40","v":81972.059799999988},{"$f":"[4]Sheet1!$G$17","v":220202},{"$f":"[4]Sheet1!$H$17+[4]Sheet1!$I$17+[4]Sheet1!$J$17","v":81972.059799999988},{"$f":"BT40-BZ40","v":0},{"$f":"BY40-CA40","v":0},{"$f":"CB40*1.47%","v":0},{"$f":"CB40*1.47%","v":0},0,56420.02,-245754.0398]
[null,null,null,null,null,null,null,null,null,null,null,null,null,null,null,null,null,null,null,null,null,null,null,null,null,null,null,null,null,null,null,null,null,null,null,null,null,null,null,null,null,null,null,null,null,null,null,null,null,null,null,null,null,null,null,null,null,null,null,null,null,null,null,null,null,null,null,null,null,null,null,null,null,null,null,null,null,null,null,null,null,null,null,null,null,0]
[null,null,"Total of Group 1 and Account 1562",null,{"$f":"SUM(E40,E35)","v":0},{"$f":"SUM(F40,F35)","v":0},{"$f":"SUM(G40,G35)","v":0},0,0,0,0,0,0,0,0,0,0,0,0,0,0,0,0,0,0,0,0,0,0,0,0,0,0,0,0,0,0,0,0,0,0,0,0,0,0,0,0,0,0,0,0,0,0,0,0,0,0,-74214,-74214,0,0,0,87354.941195680643,87354.941195680643,-74214,36966.49000000002,0,0,0,0,{"$f":"SUM(BS40,BS35)","v":0},-37247.510000000009,87354.941195680643,-4659.2000000000007,0,0,82695.741195680646,-74214,55809.059799999988,36966.489999999991,26886.681395680658,543.4074029999997,181.1358009999999,64577.714599680679,-200289.61000000013,-245737.8411956807]
[]
[34,null,"Special Purpose Charge Assessment Variance Account4",1521,null,null,null,null,null,null,null,null,null,null,null,null,null,null,null,null,null,null,null,null,null,null,null,null,null,null,null,null,null,null,null,null,null,null,null,null,null,null,null,null,null,null,null,null,null,null,null,null,null,null,null,null,null,31793.9,{"$f":"BC44+BD44-BE44+SUM(BF44:BF44)","v":31793.9},0,260,null,null,{"$f":"BH44+BI44-BJ44+BK44","v":260},{"$f":"BG44","v":31793.9},-32972.629999999997,null,null,null,null,null,{"$f":"BM44+BN44-BO44+SUM(BP44:BS44)","v":-1178.7299999999959},{"$f":"BL44","v":260},99.47,null,null,{"$f":"BU44+BV44-BW44+BX44","v":359.47},{"$f":"[8]Sheet1!$G$13","v":-10266},{"$f":"[8]Sheet1!$H$13+[8]Sheet1!$I$13+[8]Sheet1!$J$13","v":-88.303400000000011},{"$f":"BT44-BZ44","v":9087.2700000000041},{"$f":"BY44-CA44","v":447.77340000000004},-6,null,0,-801.93,17.329999999995948]
[]
[null,null,"LRAM Variance Account",1568,null,null,null,null,null,null,null,null,null,null,null,null,null,null,null,null,null,null,null,null,null,null,null,null,null,null,null,null,null,null,null,null,null,null,null,null,null,null,null,null,null,null,null,null,null,null,null,null,null,null,null,null,null,null,{"$f":"BC46+BD46-BE46+SUM(BF46:BF46)","v":0},null,null,null,null,{"$f":"BH46+BI46-BJ46+BK46","v":0},{"$f":"BG46","v":0},null,null,null,null,null,null,{"$f":"BM46+BN46-BO46+SUM(BP46:BS46)","v":0},{"$f":"BL46","v":0},null,null,null,{"$f":"BU46+BV46-BW46+BX46","v":0},null,null,{"$f":"BT46-BZ46","v":0},{"$f":"BY46-CA46","v":0},{"$f":"CB46*1.47%","v":0},{"$f":"CC46*1.47%","v":0},{"$f":"SUM(CB46:CE46)","v":0},null,{"$f":"CG46-SUM(BT46,BY46)","v":0}]
[]
[null,null,"Total including Accounts 1562, 1521 and 1568",null,{"$f":"E44+E42+E46","v":0},{"$f":"F44+F42+F46","v":0},{"$f":"G44+G42+G46","v":0},0,0,0,0,0,0,0,0,0,0,0,0,0,0,0,0,0,0,0,0,0,0,0,0,0,0,0,0,0,0,0,0,0,0,0,0,0,0,0,0,0,0,0,0,0,0,0,0,0,0,-42420.1,-42420.1,0,260,0,87354.941195680643,87614.941195680643,-42420.1,3993.8600000000224,0,0,0,0,{"$f":"BS44+BS42+BS46","v":0},-38426.240000000005,87614.941195680643,-4559.7300000000005,0,0,83055.211195680648,-84480,55720.756399999991,46053.759999999995,27334.454795680656,537.4074029999997,181.1358009999999,64577.714599680679,-201091.54000000012,-245720.51119568071]
[]
[]
[null,null,"For all Board-Approved dispositions, please ensure that the disposition amount has the same sign (e.g: debit balances are to have a positive figure and credit balance are to have a negative figure) as per the related Board decision."]
[]
[]
[null,1,"Please provide explanations for the nature of the adjustments.  If the adjustment relates to previously Board Approved disposed balances, please provide amounts for adjustments and include supporting documentations."]
[null,2,"For RSVA accounts only, report the net variance to the account during the year.  For all other accounts, record the transactions during the year."]
[null,3,"If the LDC’s 2013 rate year begins January 1, 2013, the projected interest is recorded from January 1, 2012 to December 31, 2012 on the December 31, 2011 balance adjusted for the disposed balances approved by the Board in the 2012 rate decision.  If the LDC’s 2013 rate year begins May 1, 2013 the projected interest is recorded from January 1, 2012 to April 30, 2013 on the December 31, 2011 balance adjusted for the disposed balances approved by the Board in the 2012 rate decision."]
[null,4,"Applicants that did not have the balance in Account 1521 cleared by the Board in the 2012 rate proceedings are expected to file to dispose of Account 1521 in the 2013 rate proceedings.  No Account 1521 balance is to be filed for clearance in the 2013 rate proceedings for those distributors that had account 1521 cleared by the Board in the 2012 rate proceedings.\n\nIn accordance with section 8 of the Special Purpose Charge (“SPC”) Regulation, Ontario Regulation 66/10, distributors were required to apply to the Board no later than April 15, 2012 for an order authorizing the distributor to clear the balance in Account 1521.  As per the Board’s April 23, 2010 letter, the Board stated that it expected that requests for disposition of the balance in Account 1521 were to be addressed as part of the proceedings to set rates for the 2012 rate year, except in cases where this approach would result in non-compliance with the timeline set out in section 8 of the SPC Regulation."]
[null,5,"Include Account 1595 as part of Group 1 accounts (lines 31, 32 and 33) for review and disposition if the recovery (or refund) period has been completed. If the recovery (or refund) period has not been completed, do not include the respective balance in Account 1595 for disposition at this time."]

{"sheet":"6. Billing Det. for Def-Var","index":6,"n_rows":39,"n_cols":12,"rows_kept":39,"cut":false,"hidden":false,"merged":[[37,0,37,7],[38,0,38,7],[29,1,29,2],[30,1,30,2],[31,1,31,2],[31,3,32,7],[35,0,36,7],[14,11,15,11],[12,0,12,7],[14,4,15,4],[14,10,15,10],[14,6,15,6],[14,9,15,9],[14,5,15,5],[14,7,15,7],[14,8,15,8]]}
[]
[]
[]
[]
[]
[]
[]
[]
[]
[]
[]
[]
["In the green shaded cells, enter the most recent Board Approved volumetric forecast.  If there is a material difference between the latest Board-approved volumetric forecast and the most recent 12-month actual volumetric data, use the most recent 12-month actual data.  Do not enter data for the MicroFit class."]
[]
[null,null,null,null,"Billed kWh for Non-RPP Customers","Estimated kW for Non-RPP Customers","Distribution Revenue 1","1590 Recovery Share Proportion*","1595 Recovery Share Proportion (2008) 2","1595 Recovery Share Proportion (2009) 2","1595 Recovery Share Proportion (2010) 2","1568 LRAM Variance Account Class Allocation                           ($ amounts)"]
["Rate Class","Unit","Metered kWh","Metered kW"]
["Residential","$/kWh",85739256,null,15872031,{"$f":"IF(ISERROR(D17/C17*E17), 0, D17/C17*E17)","v":0},3154030]
["General Service Less Than 50 kW","$/kWh",38644867,null,6146063,0,812424]
["General Service 50 to 4,999 kW","$/kW",123337329,294391,118258039,282267.36091592355,838255]
["Unmetered Scattered Load","$/kWh",374473,null,null,0,14621]
["Sentinel Lighting","$/kW",129053,357,9001,24.899514153099886,6384]
["Street Lighting","$/kW",1787017,5069,1682166,4771.5827292073891,47858]
["MicroFit"]
[]
[null,"Total",{"$f":"SUM(C17:C23)","v":250011995},{"$f":"SUM(D17:D23)","v":299817},141967300,287063.84315928404,4873572,0,0,0,0,0]
[null,null,null,null,null,null,null,null,null,null,"Balance as per Sheet 5",{"$f":"'5. 2013 Continuity Schedule'!CF46","v":0}]
[null,null,null,null,null,null,null,null,null,null,"Variance",{"$f":"L25-L26","v":0}]
[]
["Threshold Test"]
["Total Claim (including Account 1521, 1562 and 1568)",{"$f":"'5. 2013 Continuity Schedule'!CF48","v":64577.714599680679}]
["Total Claim for Threshold Test (All Group 1 Accounts)",{"$f":"'5. 2013 Continuity Schedule'!CF35","v":64577.714599680679}]
["Threshold Test (Total claim per kWh) 3",{"$f":"IF(ISERROR(B31/C25), 0, B31/C25)","v":2.582984652383606E-4},null,{"$f":"IF(AND(B32>-0.001,B32<0.001),\"Claim does not meet the threshold test.  If data has been entered on Sheet 5 for Accounts 1521 and 1562, the model will only dispose of Accounts 1521 and 1562.\",\"\")","v":"Claim does not meet the threshold test.  If data has been entered on Sheet 5 for Accounts 1521 and 1562, the model will only dispose of Accounts 1521 and 1562."}]
[]
[]
[]
["1 For Account 1562, the allocation to customer classes should be performed on the basis of the test year distribution revenue allocation to customer classes found in the Applicant’s Cost of Service application that was most recently approved at the time of disposition of the 1562 account balances"]
[]
["2 Residual Account balance to be allocated to rate classes in proportion to the recovery share as established when rate riders were implemented."]
["3 The Threshold Test does not include the amount in 1521, 1562 nor 1568."]

{"sheet":"6. hidden","index":7,"n_rows":9,"n_cols":12,"rows_kept":9,"cut":false,"hidden":true,"merged":[[0,10,1,10],[0,11,1,11],[0,4,1,4],[0,5,1,5],[0,6,1,6],[0,7,1,7],[0,8,1,8],[0,9,1,9]]}
[null,null,null,null,"Billed kWh for Non-RPP Customers","Estimated kW for Non-RPP Customers","Distribution Revenue 1","1590 Recovery Share Proportion*","1595 Recovery Share Proportion (2008) 2","1595 Recovery Share Proportion (2009) 2","1595 Recovery Share Proportion (2010) 2","1568 LRAM Variance Account Class Allocation"]
["Rate Class","Unit","Metered kWh","Metered kW"]
["Residential","$/kWh",85739256,0,15872031,null,3154030,0,0,0,0,0]
["General Service Less Than 50 kW","$/kWh",38644867,0,6146063,null,812424,0,0,0,0,0]
["General Service 50 to 4,999 kW","$/kW",123337329,294391,118258039,null,838255,0,0,0,0,0]
["Unmetered Scattered Load","$/kWh",374473,0,0,null,14621,0,0,0,0,0]
["Sentinel Lighting","$/kW",129053,357,9001,null,6384,0,0,0,0,0]
["Street Lighting","$/kW",1787017,5069,1682166,null,47858,0,0,0,0,0]
["MicroFit",0,0,0,0,null,0,0,0,0,0,0]

{"sheet":"7. Allocating Def-Var Balances","index":8,"n_rows":30,"n_cols":18,"rows_kept":30,"cut":false,"hidden":false,"merged":[[15,17,16,17],[12,0,13,8],[15,12,16,12],[15,13,16,13],[15,15,16,15],[15,14,16,14],[15,16,16,16],[15,3,16,3],[15,4,16,4],[15,2,16,2]]}
[]
[]
[]
[]
[]
[]
[]
[]
[]
[]
[]
[]
["No input required.  This workshseet allocates the deferral/variance account balances (Group 1, 1521, 1588 GA, 1562 and 1568) to the appropriate classes as per the EDDVAR Report dated July 31, 2009"]
[]
["Allocation of Group 1 Accounts (including Accounts 1521, 1562, 1568)"]
[null,null,"% of  Total kWh","% of  Total non-RPP kWh","% of Total Distribution Revenue",null,null,null,null,null,null,null,"1595                          (2008)","1595                            (2009)","1595                            (2010)",1521,1562,1568]
["Rate Class",null,null,null,null,1550,1580,1584,1586,"1588*","1588 GA",1590]
[]
["Residential",null,{"$f":"VLOOKUP(A19, '6. Billing Det. for Def-Var'!#REF!, 3,0)/'6. Billing Det. for Def-Var'!#REF!","v":{"$error":"#REF!"}},{"$f":"VLOOKUP(A19, '6. Billing Det. for Def-Var'!#REF!, 5,0)/'6. Billing Det. for Def-Var'!#REF!","v":{"$error":"#REF!"}},{"$f":"VLOOKUP(A19, '6. Billing Det. for Def-Var'!#REF!, 7,0)/'6. Billing Det. for Def-Var'!#REF!","v":{"$error":"#REF!"}},0,0,0,0,0,0,0,0,0,0,{"$f":"C19* '5. 2013 Continuity Schedule'!CF44","v":{"$error":"#REF!"}},{"$f":"E19* '5. 2013 Continuity Schedule'!CF40","v":{"$error":"#REF!"}},{"$f":"'6. Billing Det. for Def-Var'!#REF!","v":{"$error":"#REF!"}}]
["General Service Less Than 50 kW",null,{"$f":"VLOOKUP(A20, '6. Billing Det. for Def-Var'!#REF!, 3,0)/'6. Billing Det. for Def-Var'!#REF!","v":{"$error":"#REF!"}},{"$f":"VLOOKUP(A20, '6. Billing Det. for Def-Var'!#REF!, 5,0)/'6. Billing Det. for Def-Var'!#REF!","v":{"$error":"#REF!"}},{"$f":"VLOOKUP(A20, '6. Billing Det. for Def-Var'!#REF!, 7,0)/'6. Billing Det. for Def-Var'!#REF!","v":{"$error":"#REF!"}},0,0,0,0,0,0,0,0,0,0,{"$f":"C20* '5. 2013 Continuity Schedule'!CF44","v":{"$error":"#REF!"}},{"$f":"E20* '5. 2013 Continuity Schedule'!CF40","v":{"$error":"#REF!"}},{"$f":"'6. Billing Det. for Def-Var'!#REF!","v":{"$error":"#REF!"}}]
["General Service 50 to 4,999 kW",null,{"$f":"VLOOKUP(A21, '6. Billing Det. for Def-Var'!#REF!, 3,0)/'6. Billing Det. for Def-Var'!#REF!","v":{"$error":"#REF!"}},{"$f":"VLOOKUP(A21, '6. Billing Det. for Def-Var'!#REF!, 5,0)/'6. Billing Det. for Def-Var'!#REF!","v":{"$error":"#REF!"}},{"$f":"VLOOKUP(A21, '6. Billing Det. for Def-Var'!#REF!, 7,0)/'6. Billing Det. for Def-Var'!#REF!","v":{"$error":"#REF!"}},0,0,0,0,0,0,0,0,0,0,{"$f":"C21* '5. 2013 Continuity Schedule'!CF44","v":{"$error":"#REF!"}},{"$f":"E21* '5. 2013 Continuity Schedule'!CF40","v":{"$error":"#REF!"}},{"$f":"'6. Billing Det. for Def-Var'!#REF!","v":{"$error":"#REF!"}}]
["Unmetered Scattered Load",null,{"$f":"VLOOKUP(A22, '6. Billing Det. for Def-Var'!#REF!, 3,0)/'6. Billing Det. for Def-Var'!#REF!","v":{"$error":"#REF!"}},{"$f":"VLOOKUP(A22, '6. Billing Det. for Def-Var'!#REF!, 5,0)/'6. Billing Det. for Def-Var'!#REF!","v":{"$error":"#REF!"}},{"$f":"VLOOKUP(A22, '6. Billing Det. for Def-Var'!#REF!, 7,0)/'6. Billing Det. for Def-Var'!#REF!","v":{"$error":"#REF!"}},0,0,0,0,0,0,0,0,0,0,{"$f":"C22* '5. 2013 Continuity Schedule'!CF44","v":{"$error":"#REF!"}},{"$f":"E22* '5. 2013 Continuity Schedule'!CF40","v":{"$error":"#REF!"}},{"$f":"'6. Billing Det. for Def-Var'!#REF!","v":{"$error":"#REF!"}}]
["Sentinel Lighting",null,{"$f":"VLOOKUP(A23, '6. Billing Det. for Def-Var'!#REF!, 3,0)/'6. Billing Det. for Def-Var'!#REF!","v":{"$error":"#REF!"}},{"$f":"VLOOKUP(A23, '6. Billing Det. for Def-Var'!#REF!, 5,0)/'6. Billing Det. for Def-Var'!#REF!","v":{"$error":"#REF!"}},{"$f":"VLOOKUP(A23, '6. Billing Det. for Def-Var'!#REF!, 7,0)/'6. Billing Det. for Def-Var'!#REF!","v":{"$error":"#REF!"}},0,0,0,0,0,0,0,0,0,0,{"$f":"C23* '5. 2013 Continuity Schedule'!CF44","v":{"$error":"#REF!"}},{"$f":"E23* '5. 2013 Continuity Schedule'!CF40","v":{"$error":"#REF!"}},{"$f":"'6. Billing Det. for Def-Var'!#REF!","v":{"$error":"#REF!"}}]
["Street Lighting",null,{"$f":"VLOOKUP(A24, '6. Billing Det. for Def-Var'!#REF!, 3,0)/'6. Billing Det. for Def-Var'!#REF!","v":{"$error":"#REF!"}},{"$f":"VLOOKUP(A24, '6. Billing Det. for Def-Var'!#REF!, 5,0)/'6. Billing Det. for Def-Var'!#REF!","v":{"$error":"#REF!"}},{"$f":"VLOOKUP(A24, '6. Billing Det. for Def-Var'!#REF!, 7,0)/'6. Billing Det. for Def-Var'!#REF!","v":{"$error":"#REF!"}},0,0,0,0,0,0,0,0,0,0,{"$f":"C24* '5. 2013 Continuity Schedule'!CF44","v":{"$error":"#REF!"}},{"$f":"E24* '5. 2013 Continuity Schedule'!CF40","v":{"$error":"#REF!"}},{"$f":"'6. Billing Det. for Def-Var'!#REF!","v":{"$error":"#REF!"}}]
["MicroFit",null,0,0,0,0,0,0,0,0,0,0,0,0,0,{"$f":"C25* '5. 2013 Continuity Schedule'!CF44","v":0},{"$f":"E25* '5. 2013 Continuity Schedule'!CF40","v":0},{"$f":"'6. Billing Det. for Def-Var'!#REF!","v":{"$error":"#REF!"}}]
[]
["Total",null,{"$f":"SUM(C19:C25)","v":{"$error":"#REF!"}},{"$error":"#REF!"},{"$error":"#REF!"},0,0,0,0,0,0,0,0,0,0,{"$error":"#REF!"},{"$error":"#REF!"},{"$error":"#REF!"}]
[]
[]
["* RSVA - Power (Excluding Global Adjustment)"]

{"sheet":"8. Calculation of Def-Var RR","index":9,"n_rows":27,"n_cols":9,"rows_kept":27,"cut":false,"hidden":false,"merged":[[11,0,12,5],[16,4,17,4],[16,5,17,5],[16,8,17,8],[16,7,17,7],[16,6,17,6]]}
[]
[]
[]
[]
[]
[]
[]
[]
[]
[]
[]
["Input required at cell C15 only.  This workshseet calculates rate riders related to the Deferral/Variance Account Disposition (if applicable) and associated rate riders for the global adjustment sub-account.  Rate Riders will not be generated for the MicroFit class."]
[]
[]
[" Please indicate the Rate Rider Recovery Period (in years)",null,1]
[]
[null,null,null,null," Balance of Accounts Allocated by kWh/kW (RPP) or Distribution Revenue","Deferral/Variance Account Rate Rider","Allocation of Balance in Account 1588 Global Adjustment Sub-Account","Billed kWh or Estimated kW for Non-RPP Customers","Global Adjustment Rate Rider"]
["Rate Class","Unit","Billed kWh","Billed kW        or kVA"]
[]
["Residential","$/kWh",85739256,null,{"$f":"SUM('7. Allocating Def-Var Balances'!F19:J19)+SUM('7. Allocating Def-Var Balances'!L19:R19)","v":{"$error":"#REF!"}},0,0,15872031,0]
["General Service Less Than 50 kW","$/kWh",38644867,null,{"$f":"SUM('7. Allocating Def-Var Balances'!F20:J20)+SUM('7. Allocating Def-Var Balances'!L20:R20)","v":{"$error":"#REF!"}},0,0,6146063,0]
["General Service 50 to 4,999 kW","$/kW",123337329,294391,{"$f":"SUM('7. Allocating Def-Var Balances'!F21:J21)+SUM('7. Allocating Def-Var Balances'!L21:R21)","v":{"$error":"#REF!"}},0,0,282267.36091592355,0]
["Unmetered Scattered Load","$/kWh",374473,null,{"$f":"SUM('7. Allocating Def-Var Balances'!F22:J22)+SUM('7. Allocating Def-Var Balances'!L22:R22)","v":{"$error":"#REF!"}},0,0,null,0]
["Sentinel Lighting","$/kW",129053,357,{"$f":"SUM('7. Allocating Def-Var Balances'!F23:J23)+SUM('7. Allocating Def-Var Balances'!L23:R23)","v":{"$error":"#REF!"}},0,0,24.899514153099886,0]
["Street Lighting","$/kW",1787017,5069,{"$f":"SUM('7. Allocating Def-Var Balances'!F24:J24)+SUM('7. Allocating Def-Var Balances'!L24:R24)","v":{"$error":"#REF!"}},0,0,4771.5827292073891,0]
["MicroFit"]
["Total",null,{"$f":"SUM(C20:C26)","v":250011995},{"$f":"SUM(D20:D26)","v":299817},{"$f":"SUM(E20:E26)","v":{"$error":"#REF!"}},null,{"$f":"SUM(G20:G26)","v":0},{"$f":"SUM(H20:H26)","v":22305157.843159288}]

{"sheet":"9. Rev2Cost_GDPIPI","index":10,"n_rows":28,"n_cols":26,"rows_kept":28,"cut":false,"hidden":false,"merged":[[18,5,19,5],[18,7,19,7],[11,0,12,6],[18,2,19,2],[18,1,19,1],[18,3,19,3],[18,6,19,6],[18,4,19,4]]}
[null,null,null,null,null,null,null,null,null,null,null,null,null,null,null,null,null,null,null,null,null,null,null,null,null,0]
[]
[]
[]
[]
[]
[]
[]
[]
[]
[]
["If applicable, please enter any adjustments related to the revenue to cost ratio model into columns C and E. \nThe Price Escalator has been set at the 2012 values and will be updated by Board staff.  The Stretch Factor Value will also be updated by Board staff."]
[]
[]
["Price Escalator",1.6E-2,"Choose Stretch Factor Group",null,"II"]
["Productivity Factor",7.1999999999999998E-3,"Associated Stretch Factor Value",null,{"$f":"IF(ISBLANK(E15)=TRUE, \"\", IF(E15=\"I\", 0.002, IF(E15=\"II\", 0.004, 0.006)))","v":4.0000000000000001E-3}]
["Price Cap Index",{"$f":"B15-B16-E16","v":4.8000000000000004E-3}]
[]
[null,"Current MFC","MFC Adjustment from R/C Model","Current  Volumetric Charge","DVR Adjustment from R/C Model","Price Cap Index to be Applied to MFC and DVR","Proposed MFC","Proposed Volumetric Charge"]
["Rate Class"]
[]
["Residential",16.260000000000002,-0.08,1.4E-2,-1E-4,{"$f":"$B$17","v":4.8000000000000004E-3},{"$f":"ROUND(SUM(B22,C22)*(1+F22),2)","v":16.260000000000002},{"$f":"ROUND(SUM(D22,E22)*(1+F22),4)","v":1.4E-2}]
["General Service Less Than 50 kW",33.11,null,1.01E-2,null,4.8000000000000004E-3,33.270000000000003,1.01E-2]
["General Service 50 to 4,999 kW",185.34,null,2.1821999999999999,null,4.8000000000000004E-3,186.23,2.1926999999999999]
["Unmetered Scattered Load",6.31,null,8.8999999999999999E-3,null,4.8000000000000004E-3,6.34,8.8999999999999999E-3]
["Sentinel Lighting",2.81,0.49,10.9656,1.9194,4.8000000000000004E-3,3.32,12.9468]
["Street Lighting",1.26,0.24,6.9657,1.3505,4.8000000000000004E-3,1.51,8.3560999999999996]
["MicroFit",5.25,null,null,null,null,5.25]

{"sheet":"9. hidden","index":11,"n_rows":8,"n_cols":3,"rows_kept":8,"cut":false,"hidden":true,"merged":[]}
["Rate Class","MFC Adjustment from R/C Model","DVR Adjustment from R/C Model"]
["Residential",-0.08,-1E-4]
["General Service Less Than 50 kW",0,0]
["General Service 50 to 4,999 kW",0,0]
["Unmetered Scattered Load",0,0]
["Sentinel Lighting",0.49,1.9194]
["Street Lighting",0.24,1.3505]
["MicroFit",0,0]

{"sheet":"10. Other Charges & LF","index":12,"n_rows":150,"n_cols":8,"rows_kept":150,"cut":false,"hidden":false,"merged":[[10,0,12,1]]}
[]
[]
[]
[]
[]
[]
[]
[]
[]
[]
["Please enter the following charges as found on your most recent Board-Approved Tariff Schedule.  The standard Allowance rates have been included as default entries.  If you have different rates, please make the appropriate corrections in the applicable cells below.  As well, please enter the current Specific Service Charges below.  The standard Retail Service Charges have been entered below.  If you have different rates, please make the appropriate corrections in columns A, C or D as applicable (cells are unlocked)."]
[]
[null,null,"UNIT","CURRENT"]
[]
["ALLOWANCES"]
[]
["Transformer Allowance for Ownership - per kW of billing demand/month",null,"$/kW",-0.6]
[]
[]
["Primary Metering Allowance for transformer losses – applied to measured demand and energy",null,"%",-1]
[]
["SPECIFIC SERVICE CHARGES"]
[]
["APPLICATION"]
[]
["The application of these rates and charges shall be in accordance with the Licence of the Distributor and any Code or"]
["Order of the Board, and amendments thereto as approved by the Board, which may be applicable to the "]
["administration of this schedule"]
[]
["No charges to meet the costs of any work or service done or furnished for the purpose of the distribution of electricity"]
["shall be made except as permitted by this schedule, unless required by the Distributor’s Licence or a Code or Order"]
["of the Board, and amendments thereto as approved by the Board, or as specified herein. "]
[]
["It should be noted that this schedule does not list any charges, assessments, or credits that are required by law to be"]
["invoiced by a distributor and that are not subject to Board approval, such as the Debt Retirement Charge, charges for"]
["the Ministry of Energy Conservation and Renewable Energy Program, the Global Adjustment, the Ontario Clean "]
["Energy Benefit and the HST.   "]
[]
["Customer Administration"]
[]
["Arrears certificate",null,"$",15]
["Pulling Post Dated Cheques",null,"$",15]
["Notification charge",null,"$",15]
["Account History",null,"$",15]
["Credit Reference/credit check (plus credit agency costs)",null,"$",15]
["Returned cheque charge (plus bank charges)",null,"$",15]
["Charge to certify cheque",null,"$",15]
["Account set up charge/change of occupancy charge (plus credit agency costs if applicable – Residential)",null,"$",30]
["Meter dispute charge plus Measurement Canada fees (if meter found correct)",null,"$",30]
["Special meter reads",null,"$",30]
[]
[]
[]
[]
[]
[]
[]
[]
[]
[]
[]
[]
[]
[]
[]
[]
[]
[]
[]
[]
[]
[]
[]
[]
[]
[]
["Non-Payment of Account"]
[]
["Late Payment – per month",null,"%",1.5]
["Late Payment – per annum",null,"%",19.559999999999999]
["Collection of account charge – no disconnection",null,"$",30]
["Disconnect/Reconnect at meter – during regular hours",null,"$",65]
["Disconnect/Reconnect at meter – after regular hours",null,"$",185]
["Disconnect/Reconnect at pole – during regular hours",null,"$",185]
["Disconnect/Reconnect Charge – At Pole – After Hours",null,"$",415]
["Temporary Service – Install & remove – overhead – no transformer",null,"$",500]
["Temporary Service Install & Remove – Underground – No Transformer",null,"$",300]
["Temporary service installation and removal – overhead – with transformer",null,"$",1000]
["Specific Charge for Access to the Power Poles - $/pole/year",null,"$",22.35]
[]
[]
[]
[]
[]
[]
[]
[]
[]
[]
[]
[]
[]
[]
[]
[]
[]
["RETAIL SERVICE CHARGES (if applicable)"]
[]
["The application of these rates and charges shall be in accordance with the Licence of the Distributor and any Code or"]
["Order of the Board, and amendments thereto as approved by the Board, which may be applicable to the "]
["administration of this schedule."]
[]
["No rates and charges for the distribution of electricity and charges to meet the costs of any work or service done or"]
["furnished for the purpose of the distribution of electricity shall be made except as permitted by this schedule, unless "]
["required by the Distributor’s Licence or a Code or Order of the Board, and amendments thereto as approved by the "]
["Board, or as specified herein. "]
[]
["Unless specifically noted, this schedule does not contain any charges for the electricity commodity, be it under the"]
["Regulated Price Plan, a contract with a retailer or the wholesale market price, as applicable"]
[]
["It should be noted that this schedule does not list any charges, assessments, or credits that are required by law to be"]
["invoiced by a distributor and that are not subject to Board approval, such as the Debt Retirement Charge, charges for"]
["the Ministry of Energy Conservation and Renewable Energy Program, the Global Adjustment, the Ontario Clean "]
["Energy Benefit and the HST.   "]
[]
["Retail Service Charges refer to services provided by a distributor to retailers or customers related  "]
["to the supply of competitive electricity"]
[]
[]
["One-time charge, per retailer, to establish the service agreement between the distributor and the retailer",null,"$",100]
["Monthly Fixed Charge, per retailer",null,"$",20]
["Monthly Variable Charge, per customer, per retailer",null,"$/cust.",0.5]
["Distributor-consolidated billing charge, per customer, per retailer",null,"$/cust.",0.3]
["Retailer-consolidated billing credit, per customer, per retailer",null,"$/cust.",-0.3]
["Service Transaction Requests (STR) "]
["Request fee, per request, applied to the requesting party",null,"$",0.25]
["Processing fee, per request, applied to the requesting party",null,"$",0.5]
["Request for customer information as outlined in Section 10.6.3 and Chapter 11 of the Retail"]
["Settlement Code directly to retailers and customers, if not delivered electronically through the"]
["Electronic Business Transaction (EBT) system, applied to the requesting party "]
["Up to twice a year",null,"$","no charge"]
["More than twice a year, per request (plus incremental delivery costs)",null,"$",2]
[]
["LOSS FACTORS"]
[]
["If the distributor is not capable of prorating changed loss factors jointly with distribution rates, the revised loss factors"]
["will be implemented upon the first subsequent billing for each billing cycle."]
[]
["Total Loss Factor – Secondary Metered Customer < 5,000 kW",null,null,1.0468,null,null,null,"TLF_Secondary_LT_5000kW"]
["Total Loss Factor – Primary Metered Customer < 5,000 kW",null,null,1.0363,null,null,null,"TLF_Primary_LT_5000kW"]

{"sheet":"11. Proposed Rates","index":13,"n_rows":238,"n_cols":27,"rows_kept":238,"cut":false,"hidden":false,"merged":[[262,0,262,5],[257,0,257,5],[258,0,258,5],[259,0,259,5],[260,0,260,5],[261,0,261,5],[252,0,252,5],[253,0,253,5],[254,0,254,5],[255,0,255,5],[256,0,256,5],[247,0,247,5],[248,0,248,5],[249,0,249,5],[250,0,250,5],[251,0,251,5],[242,0,242,5],[243,0,243,5],[244,0,244,5],[245,0,245,5],[246,0,246,5],[237,0,237,5],[238,0,238,5],[239,0,239,5],[240,0,240,5],[241,0,241,5],[230,0,230,5],[231,0,231,5],[232,0,232,5],[233,0,233,5],[234,0,234,5],[224,0,224,5],[225,0,225,5],[226,0,226,5],[228,0,228,5],[229,0,229,5],[219,0,219,5],[220,0,220,5],[221,0,221,5],[222,0,222,5],[223,0,223,5],[214,0,214,5],[215,0,215,5],[216,0,216,5],[217,0,217,5],[218,0,218,5],[208,0,208,5],[210,0,210,5],[211,0,211,5],[212,0,212,5],[213,0,213,5],[204,0,204,5],[205,0,205,5],[206,0,206,5],[209,0,209,5],[207,0,207,5],[197,0,197,5],[198,0,198,5],[201,0,201,5],[202,0,202,5],[203,0,203,5],[192,0,192,5],[193,0,193,5],[194,0,194,5],[195,0,195,5],[196,0,196,5],[186,0,186,5],[187,0,187,5],[188,0,188,5],[189,0,189,5],[190,0,190,5],[181,0,181,5],[182,0,182,5],[183,0,183,5],[184,0,184,5],[185,0,185,5],[176,0,176,5],[177,0,177,5],[178,0,178,5],[179,0,179,5],[180,0,180,5],[170,0,170,5],[172,0,172,5],[173,0,173,5],[174,0,174,5],[175,0,175,5],[166,0,166,5],[167,0,167,5],[168,0,168,5],[171,0,171,5],[169,0,169,5],[159,0,159,5],[160,0,160,5],[161,0,161,5],[162,0,162,5],[165,0,165,5],[153,0,153,5],[154,0,154,5],[156,0,156,5],[157,0,157,5],[158,0,158,5],[148,0,148,5],[149,0,149,5],[150,0,150,5],[151,0,151,5],[152,0,152,5],[143,0,143,5],[144,0,144,5],[145,0,145,5],[146,0,146,5],[147,0,147,5],[138,0,138,5],[139,0,139,5],[140,0,140,5],[141,0,141,5],[142,0,142,5],[133,0,133,5],[134,0,134,5],[135,0,135,5],[136,0,136,5],[137,0,137,5],[126,0,126,5],[129,0,129,5],[130,0,130,5],[131,0,131,5],[132,0,132,5],[121,0,121,5],[122,0,122,5],[123,0,123,5],[124,0,124,5],[125,0,125,5],[115,0,115,5],[116,0,116,5],[117,0,117,5],[118,0,118,5],[120,0,120,5],[110,0,110,5],[111,0,111,5],[112,0,112,5],[113,0,113,5],[114,0,114,5],[105,0,105,5],[106,0,106,5],[107,0,107,5],[108,0,108,5],[109,0,109,5],[100,0,100,5],[101,0,101,5],[102,0,102,5],[103,0,103,5],[104,0,104,5],[95,0,95,5],[96,0,96,5],[99,0,99,5],[97,0,97,5],[98,0,98,5],[88,0,88,5],[89,0,89,5],[90,0,90,5],[93,0,93,5],[94,0,94,5],[82,0,82,5],[84,0,84,5],[85,0,85,5],[86,0,86,5],[87,0,87,5],[77,0,77,5],[78,0,78,5],[79,0,79,5],[80,0,80,5],[81,0,81,5],[72,0,72,5],[73,0,73,5],[74,0,74,5],[75,0,75,5],[76,0,76,5],[67,0,67,5],[68,0,68,5],[69,0,69,5],[70,0,70,5],[71,0,71,5],[62,0,62,5],[63,0,63,5],[64,0,64,5],[65,0,65,5],[66,0,66,5],[57,0,57,5],[58,0,58,5],[59,0,59,5],[60,0,60,5],[61,0,61,5],[44,0,44,5],[45,0,45,5],[46,0,46,5],[51,0,51,5],[52,0,52,5],[49,0,49,5],[50,0,50,5],[34,0,34,5],[41,0,41,5],[42,0,42,5],[54,0,54,5],[11,0,17,7],[48,0,48,5],[21,0,21,5],[22,0,22,5],[23,0,23,5],[24,0,24,5],[27,0,27,5],[43,0,43,5],[26,0,26,5],[29,0,29,5],[36,0,36,5],[37,0,37,5],[38,0,38,5],[39,0,39,5],[40,0,40,5],[25,0,25,5],[28,0,28,5],[30,0,30,5],[31,0,31,5],[32,0,32,5],[53,0,53,5],[33,0,33,5],[35,0,35,5]]}
[null,null,null,null,null,null,null,null,null,null,null,null,null,null,null,null,null,null,null,null,null,null,null,null,0,3,"≥"]
[null,null,null,null,null,null,null,null,null,null,null,null,null,null,null,null,null,null,null,null,null,null,null,null,null,"February"]
[null,null,null,null,null,null,null,null,null,null,null,null,null,null,null,null,null,null,null,null,null,null,null,null,null,"March"]
[null,null,null,null,null,null,null,null,null,null,null,null,null,null,null,null,null,null,null,null,null,null,null,null,null,"April"]
[null,null,null,null,null,null,null,null,null,null,null,null,null,null,null,null,null,null,null,null,null,null,null,null,null,"May"]
[null,null,null,null,null,null,null,null,null,null,null,null,null,null,null,null,null,null,null,null,null,null,null,null,null,"June"]
[null,null,null,null,null,null,null,null,null,null,null,null,null,null,null,null,null,null,null,null,null,null,null,null,null,"July"]
[null,null,null,null,null,null,null,null,null,null,null,null,null,null,null,null,null,null,null,null,null,null,null,null,null,"August"]
[null,null,null,null,null,null,null,null,null,null,null,null,null,null,null,null,null,null,null,null,null,null,null,null,null,"September"]
[null,null,null,null,null,null,null,null,null,null,null,null,null,null,null,null,null,null,null,null,null,null,null,null,null,"October"]
[null,null,null,null,null,null,null,null,null,null,null,null,null,null,null,null,null,null,null,null,null,null,null,null,null,"November"]
["Below is a listing of the proposed Monthly Fixed Charges, proposed Distribution Volumetric Rates, proposed Deferral and Variance account Rate Riders and all unexpired volumetric rates that were entered on Sheet 4.  In the green cells (column A) below, please enter any additional rates being proposed (eg:  LRAM/SSM, Tax Adjustments, etc). Please ensure that the word \"Rider\" or \"Adder\" is included in the description (as applicable).  Note:  All rates with expired effective dates have been removed.  As well, the Current RTSR-Network and RTSR-Connection rate descriptions entered on Sheet 4 can be found below.  The associated rates have been removed from this sheet, giving the applicant the opportunity to enter updated rates (from Sheet 13 in the Board-Approved RTSR model into the cells in column I.",null,null,null,null,null,null,null,null,null,null,null,null,null,null,null,null,null,null,null,null,null,null,null,null,"December"]
[]
[]
[]
[]
[]
[]
[]
["RESIDENTIAL SERVICE CLASSIFICATION"]
["MONTHLY RATES AND CHARGES - Delivery Component"]
["Service Charge",null,null,null,null,null,null,"$",16.260000000000002,null,"1_P_MSC"]
["Distribution Volumetric Rate",null,null,null,null,null,null,"$/kWh",1.4E-2,null,"1_P_VC"]
["Low Voltage Service Rate",null,null,null,null,null,null,"$/kWh",1.1000000000000001E-3,null,"1_P_LVrate"]
["Rate Rider for Deferral/Variance Account Disposition (2010) – Effective until April 30, 2014",null,null,null,null,null,null,"$/kWh",-1.2999999999999999E-3,null,"1_P_VC_Rate_Rider_kWh_1"]
["Retail Transmission Rate - Network Service Rate",null,null,null,null,null,null,"$/kWh",6.4999999999999997E-3,null,"1_P_RTSR_Network"]
["Retail Transmission Rate - Line and Transformation Connection Service Rate",null,null,null,null,null,null,"$/kWh",3.3999999999999998E-3,null,"1_P_RTSR_Connection"]
["Rate Rider for Smart Meter Incremental Revenue Requirement – in effect until the effective date of the\nnext cost of service-based rate order\n",null,null,null,null,null,null,"$",2.84,null,"1_P_MSC_Rate_Rider_1"]
["Rate Rider for Tax Change (2013) - effective until April 30, 2014",null,null,null,null,null,null,"$/kWh",-2.9999999999999997E-4,null,"1_P_VC_Rate_Rider_kWh_2"]
["Rate Rider for Smart Metering Entity Charge - effective until October 31, 2018",null,null,null,null,null,null,"$",0.79,null,"1_P_MSC_Rate_Rider_2"]
[]
[]
[]
[]
[]
[]
[]
[]
[]
[]
[]
[]
[]
[]
[]
[]
[]
["MONTHLY RATES AND CHARGES - Regulatory Component"]
["Wholesale Market Service Rate",null,null,null,null,null,null,"$/kWh",4.4000000000000003E-3,null,"1_P_WMSR"]
["Rural Rate Protection Charge",null,null,null,null,null,null,"$/kWh",1.1999999999999999E-3,null,"1_P_RRPC"]
["Standard Supply Service - Administrative Charge (if applicable)",null,null,null,null,null,null,"$",0.25,null,"1_P_SSS"]
[]
[]
[]
[]
["GENERAL SERVICE LESS THAN 50 KW SERVICE CLASSIFICATION"]
["MONTHLY RATES AND CHARGES - Delivery Component"]
["Service Charge",null,null,null,null,null,null,"$",33.270000000000003,null,"2_P_MSC"]
["Distribution Volumetric Rate",null,null,null,null,null,null,"$/kWh",1.01E-2,null,"2_P_VC"]
["Low Voltage Service Rate",null,null,null,null,null,null,"$/kWh",1E-3,null,"2_P_LVrate"]
["Rate Rider for Deferral/Variance Account Disposition (2010) – Effective until April 30, 2014",null,null,null,null,null,null,"$/kWh",-1.2999999999999999E-3,null,"2_P_VC_Rate_Rider_kWh_1"]
["Retail Transmission Rate - Network Service Rate",null,null,null,null,null,null,"$/kWh",6.0000000000000001E-3,null,"2_P_RTSR_Network"]
["Retail Transmission Rate - Line and Transformation Connection Service Rate",null,null,null,null,null,null,"$/kWh",3.0999999999999999E-3,null,"2_P_RTSR_Connection"]
["Rate Rider for Smart Meter Incremental Revenue Requirement – in effect until the effective date of the\nnext cost of service-based rate order\n",null,null,null,null,null,null,"$",7.02,null,"2_P_MSC_Rate_Rider_1"]
["Rate Rider for Tax Change (2013) - effective until April 30, 2014",null,null,null,null,null,null,"$/kWh",-2.0000000000000001E-4,null,"2_P_VC_Rate_Rider_kWh_2"]
["Rate Rider  for Smart Metering Entity Charge - effective until October 31, 2018",null,null,null,null,null,null,"$",0.79,null,"2_P_MSC_Rate_Rider_2"]
[]
[]
[]
[]
[]
[]
[]
[]
[]
[]
[]
[]
[]
[]
[]
[]
[]
["MONTHLY RATES AND CHARGES - Regulatory Component"]
["Wholesale Market Service Rate",null,null,null,null,null,null,"$/kWh",4.4000000000000003E-3,null,"2_P_WMSR"]
["Rural Rate Protection Charge",null,null,null,null,null,null,"$/kWh",1.1999999999999999E-3,null,"2_P_RRPC"]
["Standard Supply Service - Administrative Charge (if applicable)",null,null,null,null,null,null,"$",0.25,null,"2_P_SSS"]
[]
[]
[]
[]
["GENERAL SERVICE 50 TO 4,999 KW SERVICE CLASSIFICATION"]
["MONTHLY RATES AND CHARGES - Delivery Component"]
["Service Charge",null,null,null,null,null,null,"$",186.23,null,"3_P_MSC"]
["Distribution Volumetric Rate",null,null,null,null,null,null,"$/kW",2.1926999999999999,null,"3_P_VC"]
["Low Voltage Service Rate",null,null,null,null,null,null,"$/kW",0.39989999999999998,null,"3_P_LVrate"]
["Rate Rider for Deferral/Variance Account Disposition (2010) – Effective until April 30, 2014",null,null,null,null,null,null,"$/kW",-0.50539999999999996,null,"3_P_VC_Rate_Rider_kW_1"]
["Retail Transmission Rate - Network Service Rate",null,null,null,null,null,null,"$/kW",2.4552,null,"3_P_RTSR_Network"]
["Retail Transmission Rate - Line and Transformation Connection Service Rate",null,null,null,null,null,null,"$/kW",1.2283999999999999,null,"3_P_RTSR_Connection"]
["Rate Rider for Tax Change (2013) - effective until April 30, 2014",null,null,null,null,null,null,"$/kW",-2.8799999999999999E-2,null,"3_P_VC_Rate_Rider_kW_2"]
[]
[]
[]
[]
[]
[]
[]
[]
[]
[]
[]
[]
[]
[]
[]
[]
[]
[]
[]
["MONTHLY RATES AND CHARGES - Regulatory Component"]
["Wholesale Market Service Rate",null,null,null,null,null,null,"$/kWh",4.4000000000000003E-3,null,"3_P_WMSR"]
["Rural Rate Protection Charge",null,null,null,null,null,null,"$/kWh",1.1999999999999999E-3,null,"3_P_RRPC"]
["Standard Supply Service - Administrative Charge (if applicable)",null,null,null,null,null,null,"$",0.25,null,"3_P_SSS"]
[]
[]
[]
[]
["UNMETERED SCATTERED LOAD SERVICE CLASSIFICATION"]
["MONTHLY RATES AND CHARGES - Delivery Component"]
["Service Charge (per connection)",null,null,null,null,null,null,"$",6.34,null,"4_P_MSC"]
["Distribution Volumetric Rate",null,null,null,null,null,null,"$/kWh",8.8999999999999999E-3,null,"4_P_VC"]
["Low Voltage Service Charge",null,null,null,null,null,null,"$/kWh",1E-3,null,"4_P_LVrate"]
["Rate Rider for Deferral/Variance Account Disposition (2010) – Effective until April 30, 2014",null,null,null,null,null,null,"$/kWh",-1E-3,null,"4_P_VC_Rate_Rider_kWh_1"]
["Retail Transmission Rate - Network Service Rate",null,null,null,null,null,null,"$/kWh",6.0000000000000001E-3,null,"4_P_RTSR_Network"]
["Retail Transmission Rate - Line and Transformation Connection Service Rate",null,null,null,null,null,null,"$/kWh",3.0999999999999999E-3,null,"4_P_RTSR_Connection"]
["Rate Rider for Tax Change (2013) - effective until April 30, 2014",null,null,null,null,null,null,"$/kWh",-4.0000000000000002E-4,null,"4_P_VC_Rate_Rider_kWh_2"]
[]
[]
[]
[]
[]
[]
[]
[]
[]
[]
[]
[]
[]
[]
[]
[]
[]
[]
[]
["MONTHLY RATES AND CHARGES - Regulatory Component"]
["Wholesale Market Service Rate",null,null,null,null,null,null,"$/kWh",4.4000000000000003E-3,null,"4_P_WMSR"]
["Rural Rate Protection Charge",null,null,null,null,null,null,"$/kWh",1.1999999999999999E-3,null,"4_P_RRPC"]
["Standard Supply Service - Administrative Charge (if applicable)",null,null,null,null,null,null,"$",0.25,null,"4_P_SSS"]
[]
[]
[]
[]
["SENTINEL LIGHTING SERVICE CLASSIFICATION"]
["MONTHLY RATES AND CHARGES - Delivery Component"]
["Service Charge (per connection)",null,null,null,null,null,null,"$",3.32,null,"5_P_MSC"]
["Distribution Volumetric Rate",null,null,null,null,null,null,"$/kW",12.9468,null,"5_P_VC"]
["Low Voltage Service Charge",null,null,null,null,null,null,"$/kW",0.31559999999999999,null,"5_P_LVrate"]
["Rate Rider for Deferral/Variance Account Disposition (2010) – Effective until April 30, 2014",null,null,null,null,null,null,"$/kW",-0.48330000000000001,null,"5_P_VC_Rate_Rider_kW_1"]
["Retail Transmission Rate - Network Service Rate",null,null,null,null,null,null,"$/kW",1.8609,null,"5_P_RTSR_Network"]
["Retail Transmission Rate - Line and Transformation Connection Service Rate",null,null,null,null,null,null,"$/kW",0.96960000000000002,null,"5_P_RTSR_Connection"]
["Rate Rider for Tax Change (2013) - effective until April 30, 2014",null,null,null,null,null,null,"$/kW",-0.24440000000000001,null,"5_P_VC_Rate_Rider_kW_2"]
[]
[]
[]
[]
[]
[]
[]
[]
[]
[]
[]
[]
[]
[]
[]
[]
[]
[]
[]
["MONTHLY RATES AND CHARGES - Regulatory Component"]
["Wholesale Market Service Rate",null,null,null,null,null,null,"$/kWh",4.4000000000000003E-3,null,"5_P_WMSR"]
["Rural Rate Protection Charge",null,null,null,null,null,null,"$/kWh",1.1999999999999999E-3,null,"5_P_RRPC"]
["Standard Supply Service - Administrative Charge (if applicable)",null,null,null,null,null,null,"$",0.25,null,"5_P_SSS"]
[]
[]
[]
[]
["STREET LIGHTING SERVICE CLASSIFICATION"]
["MONTHLY RATES AND CHARGES - Delivery Component"]
["Service Charge (per connection)",null,null,null,null,null,null,"$",1.51,null,"6_P_MSC"]
["Distribution Volumetric Rate",null,null,null,null,null,null,"$/kW",8.3560999999999996,null,"6_P_VC"]
["Low Voltage Service Charge",null,null,null,null,null,null,"$/kW",0.30909999999999999,null,"6_P_LVrate"]
["Rate Rider for Deferral/Variance Account Disposition (2010) – Effective until April 30, 2014",null,null,null,null,null,null,"$/kW",-0.44919999999999999,null,"6_P_VC_Rate_Rider_kW_1"]
["Rate Rider for Deferral/Variance Account Disposition (2012) – Effective until April 30, 2014",null,null,null,null,null,null,"$/kW",-0.2056,null,"6_P_VC_Rate_Rider_kW_2"]
["Rate Rider for Global Adjustment Sub-Account Disposition (2012) – Effective until April 30, 2014 Applicable only for Non-RPP Customers",null,null,null,null,null,null,"$/kW",0.60880000000000001,null,"6_P_VC_GA_Rate_Rider_kW_1"]
["Retail Transmission Rate - Network Service Rate",null,null,null,null,null,null,"$/kW",1.8515999999999999,null,"6_P_RTSR_Network"]
["Retail Transmission Rate - Line and Transformation Connection Service Rate",null,null,null,null,null,null,"$/kW",0.94950000000000001,null,"6_P_RTSR_Connection"]
["Rate Rider for Tax Change (2013) - effective until April 30, 2014",null,null,null,null,null,null,"$/kW",-0.1366,null,"6_P_VC_Rate_Rider_kW_3"]
[]
[]
[]
[]
[]
[]
[]
[]
[]
[]
[]
[]
[]
[]
[]
[]
[]
["MONTHLY RATES AND CHARGES - Regulatory Component"]
["Wholesale Market Service Rate",null,null,null,null,null,null,"$/kWh",4.4000000000000003E-3,null,"6_P_WMSR"]
["Rural Rate Protection Charge",null,null,null,null,null,null,"$/kWh",1.1999999999999999E-3,null,"6_P_RRPC"]
["Standard Supply Service - Administrative Charge (if applicable)",null,null,null,null,null,null,"$",0.25,null,"6_P_SSS"]
[]
[]
[]
[]
["MICROFIT SERVICE CLASSIFICATION"]
["MONTHLY RATES AND CHARGES - Delivery Component"]
["Service Charge",null,null,null,null,null,null,"$",5.4,null,"7_P_MSC"]

{"sheet":"12. Summary Sheet","index":14,"n_rows":105,"n_cols":27,"rows_kept":105,"cut":false,"hidden":false,"merged":[]}
[null,null,null,null,null,null,null,null,null,null,null,null,null,null,null,null,null,null,null,null,null,null,null,null,3,3,"≥"]
[null,null,null,null,null,null,null,null,null,null,null,null,null,null,null,null,null,null,null,null,null,null,null,null,null,"February"]
[null,null,null,null,null,null,null,null,null,null,null,null,null,null,null,null,null,null,null,null,null,null,null,null,null,"March"]
[null,null,null,null,null,null,null,null,null,null,null,null,null,null,null,null,null,null,null,null,null,null,null,null,null,"April"]
[null,null,null,null,null,null,null,null,null,null,null,null,null,null,null,null,null,null,null,null,null,null,null,null,null,"May"]
[null,null,null,null,null,null,null,null,null,null,null,null,null,null,null,null,null,null,null,null,null,null,null,null,null,"June"]
[null,null,null,null,null,null,null,null,null,null,null,null,null,null,null,null,null,null,null,null,null,null,null,null,null,"July"]
[null,null,null,null,null,null,null,null,null,null,null,null,null,null,null,null,null,null,null,null,null,null,null,null,null,"August"]
[null,null,null,null,null,null,null,null,null,null,null,null,null,null,null,null,null,null,null,null,null,null,null,null,null,"September"]
[null,null,null,null,null,null,null,null,null,null,null,null,null,null,null,null,null,null,null,null,null,null,null,null,null,"October"]
["The following table provides applicants with a class to class comparison of current vs. proposed rates.",null,null,null,null,null,null,null,null,null,null,null,null,null,null,null,null,null,null,null,null,null,null,null,null,"November"]
[null,null,null,null,null,null,null,null,null,null,null,null,null,null,null,null,null,null,null,null,null,null,null,null,null,"December"]
[]
[]
["Current Rates",null,null,null,"Proposed Rates"]
["Rate Description","Unit","Amount",null,"Rate Description","Unit","Amount"]
["Residential",null,null,null,"Residential"]
["Service Charge","$",16.260000000000002,null,"Service Charge","$",16.260000000000002]
["Distribution Volumetric Rate","$/kWh",1.4E-2,null,"Distribution Volumetric Rate","$/kWh",1.4E-2]
["Low Voltage Service Rate","$/kWh",1.1000000000000001E-3,null,"Low Voltage Service Rate","$/kWh",1.1000000000000001E-3]
["Rate Rider for Deferral/Variance Account Disposition (2010) – Effective until April 30, 2014","$/kWh",-1.2999999999999999E-3,null,"Rate Rider for Deferral/Variance Account Disposition (2010) – Effective until April 30, 2014","$/kWh",-1.2999999999999999E-3]
["Rate Rider for Deferral/Variance Account Disposition (2012) – Effective until April 30, 2013","$/kWh",null,null,"Retail Transmission Rate - Network Service Rate","$/kWh",6.4999999999999997E-3]
["Rate Rider for Global Adjustment Sub-Account Disposition (2012) – Effective until April 30, 2013 Applicable only for Non-RPP Customers","$/kWh",1.6999999999999999E-3,null,"Retail Transmission Rate - Line and Transformation Connection Service Rate","$/kWh",3.3999999999999998E-3]
["Rate Rider for Tax Adjustments - Effective until April 30, 2013","$/kWh",-2.9999999999999997E-4,null,"Rate Rider for Smart Meter Incremental Revenue Requirement – in effect until the effective date of the\nnext cost of service-based rate order\n","$",2.84]
["Retail Transmission Rate - Network Service Rate","$/kWh",5.5999999999999999E-3,null,"Rate Rider for Tax Change (2013) - effective until April 30, 2014","$/kWh",-2.9999999999999997E-4]
["Retail Transmission Rate - Line and Transformation Connection Service Rate","$/kWh",3.2000000000000002E-3,null,"Rate Rider for Smart Metering Entity Charge - effective until October 31, 2018","$",0.79]
["Rider for Disposition of Residual Historical Smart Meter Costs – effective until April 30, 2013","$",-1.21,null,"Wholesale Market Service Rate","$/kWh",4.4000000000000003E-3]
["Rate Rider for Smart Meter Incremental Revenue Requirement – in effect until the effective date of the\nnext cost of service-based rate order\n","$",2.84,null,"Rural Rate Protection Charge","$/kWh",1.1999999999999999E-3]
["Wholesale Market Service Rate","$/kWh",5.1999999999999998E-3,null,"Standard Supply Service - Administrative Charge (if applicable)","$",0.25]
["Rural Rate Protection Charge - effective until April 30, 2012"]
["Rural Rate Protection Charge - effective on and after May 1, 2012","$/kWh",1.1000000000000001E-3]
["Standard Supply Service - Administrative Charge (if applicable)","$",0.25]
["General Service Less Than 50 kW",null,null,null,"General Service Less Than 50 kW"]
["Service Charge","$",33.11,null,"Service Charge","$",33.270000000000003]
["Distribution Volumetric Rate","$/kWh",1.01E-2,null,"Distribution Volumetric Rate","$/kWh",1.01E-2]
["Low Voltage Service Rate","$/kWh",1E-3,null,"Low Voltage Service Rate","$/kWh",1E-3]
["Rate Rider for Deferral/Variance Account Disposition (2010) – Effective until April 30, 2014","$/kWh",-1.2999999999999999E-3,null,"Rate Rider for Deferral/Variance Account Disposition (2010) – Effective until April 30, 2014","$/kWh",-1.2999999999999999E-3]
["Rate Rider for Deferral/Variance Account Disposition (2012) – Effective until April 30, 2013","$/kWh",-8.9999999999999998E-4,null,"Retail Transmission Rate - Network Service Rate","$/kWh",6.0000000000000001E-3]
["Rate Rider for Global Adjustment Sub-Account Disposition (2012) – Effective until April 30, 2013 Applicable only for Non-RPP Customers","$/kWh",1.6999999999999999E-3,null,"Retail Transmission Rate - Line and Transformation Connection Service Rate","$/kWh",3.0999999999999999E-3]
["Rate Rider for Tax Adjustments - Effective until April 30, 2013","$/kWh",-2.0000000000000001E-4,null,"Rate Rider for Smart Meter Incremental Revenue Requirement – in effect until the effective date of the\nnext cost of service-based rate order\n","$",7.02]
["Retail Transmission Rate - Network Service Rate","$/kWh",5.1999999999999998E-3,null,"Rate Rider for Tax Change (2013) - effective until April 30, 2014","$/kWh",-2.0000000000000001E-4]
["Retail Transmission Rate - Line and Transformation Connection Service Rate","$/kWh",2.8999999999999998E-3,null,"Rate Rider  for Smart Metering Entity Charge - effective until October 31, 2018","$",0.79]
["Rate Rider for Disposition of Residual Historical Smart Meter Costs – effective until April 30, 2013                   ","$",5.77,null,"Wholesale Market Service Rate","$/kWh",4.4000000000000003E-3]
["Rate Rider for Smart Meter Incremental Revenue Requirement – in effect until the effective date of the\nnext cost of service-based rate order\n","$",7.02,null,"Rural Rate Protection Charge","$/kWh",1.1999999999999999E-3]
["Wholesale Market Service Rate","$/kWh",5.1999999999999998E-3,null,"Standard Supply Service - Administrative Charge (if applicable)","$",0.25]
["Rural Rate Protection Charge - effective until April 30, 2012"]
["Rural Rate Protection Charge - effective on and after May 1, 2012","$/kWh",1.1000000000000001E-3]
["Standard Supply Service - Administrative Charge (if applicable)","$",0.25]
["General Service 50 to 4,999 kW",null,null,null,"General Service 50 to 4,999 kW"]
["Service Charge","$",185.34,null,"Service Charge","$",186.23]
["Distribution Volumetric Rate","$/kW",2.1821999999999999,null,"Distribution Volumetric Rate","$/kW",2.1926999999999999]
["Low Voltage Service Rate","$/kW",0.39989999999999998,null,"Low Voltage Service Rate","$/kW",0.39989999999999998]
["Rate Rider for Deferral/Variance Account Disposition (2010) – Effective until April 30, 2014","$/kW",-0.50539999999999996,null,"Rate Rider for Deferral/Variance Account Disposition (2010) – Effective until April 30, 2014","$/kW",-0.50539999999999996]
["Rate Rider for Deferral/Variance Account Disposition (2012) – Effective until April 30, 2013","$/kW",-0.76349999999999996,null,"Retail Transmission Rate - Network Service Rate","$/kW",2.4552]
["Rate Rider for Global Adjustment Sub-Account Disposition (2012) – Effective until April 30, 2013 Applicable only for Non-RPP Customers","$/kW",0.72350000000000003,null,"Retail Transmission Rate - Line and Transformation Connection Service Rate","$/kW",1.2283999999999999]
["Rate Rider for Tax Adjustments - Effective until April 30, 2013","$/kW",-2.86E-2,null,"Rate Rider for Tax Change (2013) - effective until April 30, 2014","$/kW",-2.8799999999999999E-2]
["Retail Transmission Rate - Network Service Rate","$/kW",2.1107999999999998,null,"Wholesale Market Service Rate","$/kWh",4.4000000000000003E-3]
["Retail Transmission Rate - Line and Transformation Connection Service Rate","$/kW",1.1463000000000001,null,"Rural Rate Protection Charge","$/kWh",1.1999999999999999E-3]
["Wholesale Market Service Rate","$/kWh",5.1999999999999998E-3,null,"Standard Supply Service - Administrative Charge (if applicable)","$",0.25]
["Rural Rate Protection Charge - effective until April 30, 2012"]
["Rural Rate Protection Charge - effective on and after May 1, 2012","$/kWh",1.1000000000000001E-3]
["Standard Supply Service - Administrative Charge (if applicable)","$",0.25]
["Unmetered Scattered Load",null,null,null,"Unmetered Scattered Load"]
["Service Charge (per connection)","$",6.31,null,"Service Charge (per connection)","$",6.34]
["Distribution Volumetric Rate","$/kWh",8.8999999999999999E-3,null,"Distribution Volumetric Rate","$/kWh",8.8999999999999999E-3]
["Low Voltage Service Charge","$/kWh",1E-3,null,"Low Voltage Service Charge","$/kWh",1E-3]
["Rate Rider for Deferral/Variance Account Disposition (2010) – Effective until April 30, 2014","$/kWh",-1E-3,null,"Rate Rider for Deferral/Variance Account Disposition (2010) – Effective until April 30, 2014","$/kWh",-1E-3]
["Rate Rider for Deferral/Variance Account Disposition (2012) – Effective until April 30, 2013","$/kWh",2.0000000000000001E-4,null,"Retail Transmission Rate - Network Service Rate","$/kWh",6.0000000000000001E-3]
["Rate Rider for Tax Adjustments - Effective until April 30, 2013","$/kWh",-4.0000000000000002E-4,null,"Retail Transmission Rate - Line and Transformation Connection Service Rate","$/kWh",3.0999999999999999E-3]
["Retail Transmission Rate - Network Service Rate","$/kWh",5.1999999999999998E-3,null,"Rate Rider for Tax Change (2013) - effective until April 30, 2014","$/kWh",-4.0000000000000002E-4]
["Retail Transmission Rate - Line and Transformation Connection Service Rate","$/kWh",2.8999999999999998E-3,null,"Wholesale Market Service Rate","$/kWh",4.4000000000000003E-3]
["Wholesale Market Service Rate","$/kWh",5.1999999999999998E-3,null,"Rural Rate Protection Charge","$/kWh",1.1999999999999999E-3]
["Rural Rate Protection Charge - effective until April 30, 2012",null,null,null,"Standard Supply Service - Administrative Charge (if applicable)","$",0.25]
["Rural Rate Protection Charge - effective on and after May 1, 2012","$/kWh",1.1000000000000001E-3]
["Standard Supply Service - Administrative Charge (if applicable)","$",0.25]
["Sentinel Lighting",null,null,null,"Sentinel Lighting"]
["Service Charge (per connection)","$",2.81,null,"Service Charge (per connection)","$",3.32]
["Distribution Volumetric Rate","$/kW",10.9656,null,"Distribution Volumetric Rate","$/kW",12.9468]
["Low Voltage Service Charge","$/kW",0.31559999999999999,null,"Low Voltage Service Charge","$/kW",0.31559999999999999]
["Rate Rider for Deferral/Variance Account Disposition (2010) – Effective until April 30, 2014","$/kW",-0.48330000000000001,null,"Rate Rider for Deferral/Variance Account Disposition (2010) – Effective until April 30, 2014","$/kW",-0.48330000000000001]
["Rate Rider for Deferral/Variance Account Disposition (2012) – Effective until April 30, 2013","$/kW",0.29770000000000002,null,"Retail Transmission Rate - Network Service Rate","$/kW",1.8609]
["Rate Rider for Global Adjustment Sub-Account Disposition (2012) – Effective until April 30, 2013 Applicable only for Non-RPP Customers","$/kW",0.62429999999999997,null,"Retail Transmission Rate - Line and Transformation Connection Service Rate","$/kW",0.96960000000000002]
["Rate Rider for Tax Adjustments - Effective until April 30, 2013","$/kW",-0.2029,null,"Rate Rider for Tax Change (2013) - effective until April 30, 2014","$/kW",-0.24440000000000001]
["Retail Transmission Rate - Network Service Rate","$/kW",1.5999000000000001,null,"Wholesale Market Service Rate","$/kWh",4.4000000000000003E-3]
["Retail Transmission Rate - Line and Transformation Connection Service Rate","$/kW",0.90480000000000005,null,"Rural Rate Protection Charge","$/kWh",1.1999999999999999E-3]
["Wholesale Market Service Rate","$/kWh",5.1999999999999998E-3,null,"Standard Supply Service - Administrative Charge (if applicable)","$",0.25]
["Rural Rate Protection Charge - effective until April 30, 2012"]
["Rural Rate Protection Charge - effective on and after May 1, 2012","$/kWh",1.1000000000000001E-3]
["Standard Supply Service - Administrative Charge (if applicable)","$",0.25]
["Street Lighting",null,null,null,"Street Lighting"]
["Service Charge (per connection)","$",1.26,null,"Service Charge (per connection)","$",1.51]
["Distribution Volumetric Rate","$/kW",6.9657,null,"Distribution Volumetric Rate","$/kW",8.3560999999999996]
["Low Voltage Service Charge","$/kW",0.30909999999999999,null,"Low Voltage Service Charge","$/kW",0.30909999999999999]
["Rate Rider for Deferral/Variance Account Disposition (2012) – Effective until April 30, 2013","$/kW",-0.44919999999999999,null,"Rate Rider for Deferral/Variance Account Disposition (2010) – Effective until April 30, 2014","$/kW",-0.44919999999999999]
["Rate Rider for Deferral/Variance Account Disposition (2012) – Effective until April 30, 2013","$/kW",-0.2056,null,"Rate Rider for Deferral/Variance Account Disposition (2012) – Effective until April 30, 2014","$/kW",-0.2056]
["Rate Rider for Global Adjustment Sub-Account Disposition (2012) – Effective until April 30, 2014 Applicable only for Non-RPP Customers","$/kW",0.60880000000000001,null,"Rate Rider for Global Adjustment Sub-Account Disposition (2012) – Effective until April 30, 2014 Applicable only for Non-RPP Customers","$/kW",0.60880000000000001]
["Rate Rider for Tax Adjustments - Effective until April 30, 2013","$/kW",-0.1108,null,"Retail Transmission Rate - Network Service Rate","$/kW",1.8515999999999999]
["Retail Transmission Rate - Network Service Rate","$/kW",1.5919000000000001,null,"Retail Transmission Rate - Line and Transformation Connection Service Rate","$/kW",0.94950000000000001]
["Retail Transmission Rate - Line and Transformation Connection Service Rate","$/kW",0.8861,null,"Rate Rider for Tax Change (2013) - effective until April 30, 2014","$/kW",-0.1366]
["Wholesale Market Service Rate","$/kWh",5.1999999999999998E-3,null,"Wholesale Market Service Rate","$/kWh",4.4000000000000003E-3]
["Rural Rate Protection Charge - effective until April 30, 2012",null,null,null,"Rural Rate Protection Charge","$/kWh",1.1999999999999999E-3]
["Rural Rate Protection Charge - effective on and after May 1, 2012","$/kWh",1.1000000000000001E-3,null,"Standard Supply Service - Administrative Charge (if applicable)","$",0.25]
["Standard Supply Service - Administrative Charge (if applicable)","$",0.25]
["MicroFit",null,null,null,"MicroFit"]
["Service Charge","$",5.25,null,"Service Charge","$",5.4]

{"sheet":"13. Final Tariff Schedule","index":15,"n_rows":331,"n_cols":27,"rows_kept":331,"cut":false,"hidden":false,"merged":[[84,0,84,5],[21,0,21,8],[22,0,22,8],[2,0,2,8],[11,0,17,7],[18,0,18,8],[19,0,19,8],[20,0,20,8],[44,0,44,5],[45,0,45,5],[47,0,47,5],[48,0,48,5],[46,0,46,5],[23,0,23,8],[24,0,24,8],[27,0,27,8],[31,0,31,8],[33,0,33,8],[35,0,35,8],[37,0,37,8],[42,0,42,5],[41,0,41,5],[43,0,43,5],[49,0,49,5],[202,0,202,5],[203,0,203,5],[204,0,204,5],[77,0,77,5],[78,0,78,5],[169,0,169,5],[148,0,148,5],[117,0,117,5],[97,0,97,8],[99,0,99,8],[101,0,101,8],[146,0,146,5],[190,0,190,8],[141,0,141,5],[142,0,142,5],[107,0,107,5],[108,0,108,5],[109,0,109,5],[110,0,110,5],[111,0,111,5],[86,0,86,5],[79,0,79,5],[80,0,80,5],[82,0,82,5],[206,0,206,5],[207,0,207,5],[209,0,209,5],[113,0,113,5],[115,0,115,5],[128,0,128,8],[130,0,130,8],[132,0,132,8],[144,0,144,5],[138,0,138,5],[139,0,139,5],[140,0,140,5],[143,0,143,5],[192,0,192,8],[194,0,194,8],[175,0,175,5],[177,0,177,5],[179,0,179,5],[170,0,170,5],[171,0,171,5],[172,0,172,5],[173,0,173,5],[200,0,200,5],[201,0,201,5],[51,0,51,5],[55,0,55,5],[60,0,60,8],[64,0,64,8],[66,0,66,8],[68,0,68,8],[70,0,70,8],[81,0,81,5],[53,0,53,5],[74,0,74,5],[75,0,75,5],[76,0,76,5],[54,0,54,5],[87,0,87,5],[88,0,88,5],[93,0,93,8],[103,0,103,8],[112,0,112,5],[118,0,118,5],[119,0,119,5],[124,0,124,8],[134,0,134,8],[208,0,208,5],[214,0,214,5],[215,0,215,5],[220,0,220,8],[230,0,230,8],[234,0,234,5],[149,0,149,5],[150,0,150,5],[155,0,155,8],[165,0,165,8],[174,0,174,5],[180,0,180,5],[181,0,181,5],[186,0,186,8],[196,0,196,8],[226,0,226,8],[228,0,228,8],[159,0,159,8],[161,0,161,8],[163,0,163,8],[211,0,211,5],[213,0,213,5],[224,0,224,8],[205,0,205,5]]}
[null,null,null,null,null,null,null,null,null,null,null,null,null,null,null,null,null,null,null,null,null,null,null,null,3,3,"≥"]
[null,null,null,null,null,null,null,null,null,null,null,null,null,null,null,null,null,null,null,null,null,null,null,null,null,"February"]
[null,null,null,null,null,null,null,null,null,null,null,null,null,null,null,null,null,null,null,null,null,null,null,null,null,"March"]
[null,null,null,null,null,null,null,null,null,null,null,null,null,null,null,null,null,null,null,null,null,null,null,null,null,"April"]
[null,null,null,null,null,null,null,null,null,null,null,null,null,null,null,null,null,null,null,null,null,null,null,null,null,"May"]
[null,null,null,null,null,null,null,null,null,null,null,null,null,null,null,null,null,null,null,null,null,null,null,null,null,"June"]
[null,null,null,null,null,null,null,null,null,null,null,null,null,null,null,null,null,null,null,null,null,null,null,null,null,"July"]
[null,null,null,null,null,null,null,null,null,null,null,null,null,null,null,null,null,null,null,null,null,null,null,null,null,"August"]
[null,null,null,null,null,null,null,null,null,null,null,null,null,null,null,null,null,null,null,null,null,null,null,null,null,"September"]
[null,null,null,null,null,null,null,null,null,null,null,null,null,null,null,null,null,null,null,null,null,null,null,null,null,"October"]
[null,null,null,null,null,null,null,null,null,null,null,null,null,null,null,null,null,null,null,null,null,null,null,null,null,"November"]
["The following is a complete Tariff Schedule based on the information entered in this model.  Please review.                    Note:  This worksheet is unlocked and the print margins, row heights, number formats, etc. can be adjusted.",null,null,null,null,null,null,null,null,null,null,null,null,null,null,null,null,null,null,null,null,null,null,null,null,"December"]
[]
[]
[]
[]
[]
[]
[{"$f":"'1. Information Sheet'!F14","v":"Orangeville Hydro Limited"}]
["TARIFF OF RATES AND CHARGES"]
[{"$f":"\"Effective and Implementation Date \" & TEXT('1. Information Sheet'!F26, \"mmmm dd, yyyy\")","v":"Effective and Implementation Date May 01, 2013"}]
[]
["This schedule supersedes and replaces all previously"]
["approved schedules of Rates, Charges and Loss Factors"]
[{"$f":"'1. Information Sheet'!F18","v":"EB-2012-0155"}]
["RESIDENTIAL SERVICE CLASSIFICATION"]
[]
["This classification refers to the supply of electrical energy to residential customers residing in detached, semi detached, townhouse (freehold or condominium) dwelling units duplexes or triplexes.  Basic connection is defined as\n100 amp 12/240 volt overhead service.  Further servicing details are available in the distributor’s Conditions of\nService.\n"]
[]
["APPLICATION"]
[]
["The application of these rates and charges shall be in accordance with the Licence of the Distributor and any Code or Order of the Board, and amendments thereto as approved by the Board, which may be applicable to the administration of this schedule."]
[]
["No rates and charges for the distribution of electricity and charges to meet the costs of any work or service done or furnished for the purpose of the distribution of electricity shall be made except as permitted by this schedule, unless required by the Distributor’s Licence or a Code or Order of the Board, and amendments thereto as approved by the Board, or as specified herein."]
[]
["Unless specifically noted, this schedule does not contain any charges for the electricity commodity, be it under the\nRegulated Price Plan, a contract with a retailer or the wholesale market price, as applicable.\n"]
[]
["It should be noted that this schedule does not list any charges, assessments or credits that are required by law to be invoiced by a distributor and that are not subject to Board approval, such as the Debt Retirement Charge, the Global Adjustment, the Ontario Clean Energy Benefit and the HST."]
[]
["MONTHLY RATES AND CHARGES - Delivery Component"]
[]
["Service Charge",null,null,null,null,null,null,"$",16.260000000000002]
["Distribution Volumetric Rate",null,null,null,null,null,null,"$/kWh",1.4E-2]
["Low Voltage Service Rate",null,null,null,null,null,null,"$/kWh",1.1000000000000001E-3]
["Rate Rider for Deferral/Variance Account Disposition (2010) – Effective until April 30, 2014",null,null,null,null,null,null,"$/kWh",-1.2999999999999999E-3]
["Retail Transmission Rate - Network Service Rate",null,null,null,null,null,null,"$/kWh",6.4999999999999997E-3]
["Retail Transmission Rate - Line and Transformation Connection Service Rate",null,null,null,null,null,null,"$/kWh",3.3999999999999998E-3]
["Rate Rider for Smart Meter Incremental Revenue Requirement – in effect until the effective date of the\nnext cost of service-based rate order\n",null,null,null,null,null,null,"$",2.84]
["Rate Rider for Tax Change (2013) - effective until April 30, 2014",null,null,null,null,null,null,"$/kWh",-2.9999999999999997E-4]
["Rate Rider for Smart Metering Entity Charge - effective until October 31, 2018",null,null,null,null,null,null,"$",0.79]
[]
["MONTHLY RATES AND CHARGES - Regulatory Component"]
[]
["Wholesale Market Service Rate",null,null,null,null,null,null,"$/kWh",4.4000000000000003E-3]
["Rural Rate Protection Charge",null,null,null,null,null,null,"$/kWh",1.1999999999999999E-3]
["Standard Supply Service - Administrative Charge (if applicable)",null,null,null,null,null,null,"$",0.25]
[]
[]
["GENERAL SERVICE LESS THAN 50 KW SERVICE CLASSIFICATION"]
[]
["This classification refers to a non-residential account taking electricity at 750 volts or less whose monthly peak demand is less than or expected to be less than 50 kW.  Further servicing details are available in our Conditions of Service."]
[]
["APPLICATION"]
[]
["The application of these rates and charges shall be in accordance with the Licence of the Distributor and any Code or Order of the Board, and amendments thereto as approved by the Board, which may be applicable to the administration of this schedule."]
[]
["No rates and charges for the distribution of electricity and charges to meet the costs of any work or service done or furnished for the purpose of the distribution of electricity shall be made except as permitted by this schedule, unless required by the Distributor’s Licence or a Code or Order of the Board, and amendments thereto as approved by the Board, or as specified herein."]
[]
["Unless specifically noted, this schedule does not contain any charges for the electricity commodity, be it under the Regulated Price Plan, a contract with a retailer or the wholesale market price, as applicable."]
[]
["It should be noted that this schedule does not list any charges, assessments or credits that are required by law to be invoiced by a distributor and that are not subject to Board approval, such as the Debt Retirement Charge, the Global Adjustment, the Ontario Clean Energy Benefit and the HST."]
[]
["MONTHLY RATES AND CHARGES - Delivery Component"]
[]
["Service Charge",null,null,null,null,null,null,"$",33.270000000000003]
["Distribution Volumetric Rate",null,null,null,null,null,null,"$/kWh",1.01E-2]
["Low Voltage Service Rate",null,null,null,null,null,null,"$/kWh",1E-3]
["Rate Rider for Deferral/Variance Account Disposition (2010) – Effective until April 30, 2014",null,null,null,null,null,null,"$/kWh",-1.2999999999999999E-3]
["Retail Transmission Rate - Network Service Rate",null,null,null,null,null,null,"$/kWh",6.0000000000000001E-3]
["Retail Transmission Rate - Line and Transformation Connection Service Rate",null,null,null,null,null,null,"$/kWh",3.0999999999999999E-3]
["Rate Rider for Smart Meter Incremental Revenue Requirement – in effect until the effective date of the\nnext cost of service-based rate order\n",null,null,null,null,null,null,"$",7.02]
["Rate Rider for Tax Change (2013) - effective until April 30, 2014",null,null,null,null,null,null,"$/kWh",-2.0000000000000001E-4]
["Rate Rider  for Smart Metering Entity Charge - effective until October 31, 2018",null,null,null,null,null,null,"$",0.79]
[]
["MONTHLY RATES AND CHARGES - Regulatory Component"]
[]
["Wholesale Market Service Rate",null,null,null,null,null,null,"$/kWh",4.4000000000000003E-3]
["Rural Rate Protection Charge",null,null,null,null,null,null,"$/kWh",1.1999999999999999E-3]
["Standard Supply Service - Administrative Charge (if applicable)",null,null,null,null,null,null,"$",0.25]
[]
[]
["GENERAL SERVICE 50 TO 4,999 KW SERVICE CLASSIFICATION"]
[]
["This classification refers to a non-residential account whose monthly average peak demand is equal to or greater than, or is expected to be equal to or greater than, 50 kW but less than 5000 kW.  Further servicing details are available in our Conditions of Service."]
[]
["APPLICATION"]
[]
["The application of these rates and charges shall be in accordance with the Licence of the Distributor and any Code or Order of the Board, and amendments thereto as approved by the Board, which may be applicable to the administration of this schedule."]
[]
["No rates and charges for the distribution of electricity and charges to meet the costs of any work or service done or furnished for the purpose of the distribution of electricity shall be made except as permitted by this schedule, unless required by the Distributor’s Licence or a Code or Order of the Board, and amendments thereto as approved by the Board, or as specified herein."]
[]
["Unless specifically noted, this schedule does not contain any charges for the electricity commodity, be it under the Regulated Price Plan, a contract with a retailer or the wholesale market price, as applicable."]
[]
["It should be noted that this schedule does not list any charges, assessments or credits that are required by law to be invoiced by a distributor and that are not subject to Board approval, such as the Debt Retirement Charge, the Global Adjustment, the Ontario Clean Energy Benefit and the HST."]
[]
["MONTHLY RATES AND CHARGES - Delivery Component"]
[]
["Service Charge",null,null,null,null,null,null,"$",186.23]
["Distribution Volumetric Rate",null,null,null,null,null,null,"$/kW",2.1926999999999999]
["Low Voltage Service Rate",null,null,null,null,null,null,"$/kW",0.39989999999999998]
["Rate Rider for Deferral/Variance Account Disposition (2010) – Effective until April 30, 2014",null,null,null,null,null,null,"$/kW",-0.50539999999999996]
["Retail Transmission Rate - Network Service Rate",null,null,null,null,null,null,"$/kW",2.4552]
["Retail Transmission Rate - Line and Transformation Connection Service Rate",null,null,null,null,null,null,"$/kW",1.2283999999999999]
["Rate Rider for Tax Change (2013) - effective until April 30, 2014",null,null,null,null,null,null,"$/kW",-2.8799999999999999E-2]
[]
["MONTHLY RATES AND CHARGES - Regulatory Component"]
[]
["Wholesale Market Service Rate",null,null,null,null,null,null,"$/kWh",4.4000000000000003E-3]
["Rural Rate Protection Charge",null,null,null,null,null,null,"$/kWh",1.1999999999999999E-3]
["Standard Supply Service - Administrative Charge (if applicable)",null,null,null,null,null,null,"$",0.25]
[]
[]
["UNMETERED SCATTERED LOAD SERVICE CLASSIFICATION"]
[]
["This classification refers to an account taking electricity at 750 volts or less whose average monthly maximum demand is less than, or is forecast to be less than, 50 kW and the consumption is unmetered.  Such connections include cable TV power packs, bus shelters, telephone booths, traffic lights, railway crossings, etc.  The level of the consumption will be agreed to by the distributor and the customer, based on detailed manufacturer information/documentation with regard to electrical consumption of the unmetered load or periodic monitoring of actual consumption.  Further servicing details are available in our Conditions of Service."]
[]
["APPLICATION"]
[]
["The application of these rates and charges shall be in accordance with the Licence of the Distributor and any Code or Order of the Board, and amendments thereto as approved by the Board, which may be applicable to the administration of this schedule."]
[]
["No rates and charges for the distribution of electricity and charges to meet the costs of any work or service done or furnished for the purpose of the distribution of electricity shall be made except as permitted by this schedule, unless required by the Distributor’s Licence or a Code or Order of the Board, and amendments thereto as approved by the Board, or as specified herein."]
[]
["Unless specifically noted, this schedule does not contain any charges for the electricity commodity, be it under the Regulated Price Plan, a contract with a retailer or the wholesale market price, as applicable."]
[]
["It should be noted that this schedule does not list any charges, assessments or credits that are required by law to be invoiced by a distributor and that are not subject to Board approval, such as the Debt Retirement Charge, the Global Adjustment, the Ontario Clean Energy Benefit and the HST."]
[]
["MONTHLY RATES AND CHARGES - Delivery Component"]
[]
["Service Charge (per connection)",null,null,null,null,null,null,"$",6.34]
["Distribution Volumetric Rate",null,null,null,null,null,null,"$/kWh",8.8999999999999999E-3]
["Low Voltage Service Charge",null,null,null,null,null,null,"$/kWh",1E-3]
["Rate Rider for Deferral/Variance Account Disposition (2010) – Effective until April 30, 2014",null,null,null,null,null,null,"$/kWh",-1E-3]
["Retail Transmission Rate - Network Service Rate",null,null,null,null,null,null,"$/kWh",6.0000000000000001E-3]
["Retail Transmission Rate - Line and Transformation Connection Service Rate",null,null,null,null,null,null,"$/kWh",3.0999999999999999E-3]
["Rate Rider for Tax Change (2013) - effective until April 30, 2014",null,null,null,null,null,null,"$/kWh",-4.0000000000000002E-4]
[]
["MONTHLY RATES AND CHARGES - Regulatory Component"]
[]
["Wholesale Market Service Rate",null,null,null,null,null,null,"$/kWh",4.4000000000000003E-3]
["Rural Rate Protection Charge",null,null,null,null,null,null,"$/kWh",1.1999999999999999E-3]
["Standard Supply Service - Administrative Charge (if applicable)",null,null,null,null,null,null,"$",0.25]
[]
[]
["SENTINEL LIGHTING SERVICE CLASSIFICATION"]
[]
["This classification refers to accounts that are an unmetered lighting load supplied to a sentinel light.  Further servicing details are available in the distributor’s Conditions of Service."]
[]
["APPLICATION"]
[]
["The application of these rates and charges shall be in accordance with the Licence of the Distributor and any Code or Order of the Board, and amendments thereto as approved by the Board, which may be applicable to the administration of this schedule."]
[]
["No rates and charges for the distribution of electricity and charges to meet the costs of any work or service done or furnished for the purpose of the distribution of electricity shall be made except as permitted by this schedule, unless required by the Distributor’s Licence or a Code or Order of the Board, and amendments thereto as approved by the Board, or as specified herein."]
[]
["Unless specifically noted, this schedule does not contain any charges for the electricity commodity, be it under the Regulated Price Plan, a contract with a retailer or the wholesale market price, as applicable."]
[]
["It should be noted that this schedule does not list any charges, assessments or credits that are required by law to be invoiced by a distributor and that are not subject to Board approval, such as the Debt Retirement Charge,  the Global Adjustment, the Ontario Clean Energy Benefit and the HST."]
[]
["MONTHLY RATES AND CHARGES - Delivery Component"]
[]
["Service Charge (per connection)",null,null,null,null,null,null,"$",3.32]
["Distribution Volumetric Rate",null,null,null,null,null,null,"$/kW",12.9468]
["Low Voltage Service Charge",null,null,null,null,null,null,"$/kW",0.31559999999999999]
["Rate Rider for Deferral/Variance Account Disposition (2010) – Effective until April 30, 2014",null,null,null,null,null,null,"$/kW",-0.48330000000000001]
["Retail Transmission Rate - Network Service Rate",null,null,null,null,null,null,"$/kW",1.8609]
["Retail Transmission Rate - Line and Transformation Connection Service Rate",null,null,null,null,null,null,"$/kW",0.96960000000000002]
["Rate Rider for Tax Change (2013) - effective until April 30, 2014",null,null,null,null,null,null,"$/kW",-0.24440000000000001]
[]
["MONTHLY RATES AND CHARGES - Regulatory Component"]
[]
["Wholesale Market Service Rate",null,null,null,null,null,null,"$/kWh",4.4000000000000003E-3]
["Rural Rate Protection Charge",null,null,null,null,null,null,"$/kWh",1.1999999999999999E-3]
["Standard Supply Service - Administrative Charge (if applicable)",null,null,null,null,null,null,"$",0.25]
[]
[]
["STREET LIGHTING SERVICE CLASSIFICATION"]
[]
["This classification refers to accounts concerning roadway lighting for a Municipality, Regional Municipality, and/or the Ministry of Transportation.  This lighting will be controlled by photocells.  The consumption for these customers will be based on the calculated connected load times as established in the approved OEB Street Lighting Load Shape Template.  Further servicing details are available in the distributor’s Conditions of Service."]
[]
["APPLICATION"]
[]
["The application of these rates and charges shall be in accordance with the Licence of the Distributor and any Code or Order of the Board, and amendments thereto as approved by the Board, which may be applicable to the administration of this schedule."]
[]
["No rates and charges for the distribution of electricity and charges to meet the costs of any work or service done or furnished for the purpose of the distribution of electricity shall be made except as permitted by this schedule, unless required by the Distributor’s Licence or a Code or Order of the Board, and amendments thereto as approved by the Board, or as specified herein."]
[]
["Unless specifically noted, this schedule does not contain any charges for the electricity commodity, be it under the Regulated Price Plan, a contract with a retailer or the wholesale market price, as applicable."]
[]
["It should be noted that this schedule does not list any charges, assessments or credits that are required by law to be invoiced by a distributor and that are not subject to Board approval, such as the Debt Retirement Charge, charges for Ministry of Energy Conservation and Renewable Energy Program, the Global Adjustment, the Ontario Clean Energy Benefit and the HST."]
[]
["MONTHLY RATES AND CHARGES - Delivery Component"]
[]
["Service Charge (per connection)",null,null,null,null,null,null,"$",1.51]
["Distribution Volumetric Rate",null,null,null,null,null,null,"$/kW",8.3560999999999996]
["Low Voltage Service Charge",null,null,null,null,null,null,"$/kW",0.30909999999999999]
["Rate Rider for Deferral/Variance Account Disposition (2010) – Effective until April 30, 2014",null,null,null,null,null,null,"$/kW",-0.44919999999999999]
["Rate Rider for Deferral/Variance Account Disposition (2012) – Effective until April 30, 2014",null,null,null,null,null,null,"$/kW",-0.2056]
["Rate Rider for Global Adjustment Sub-Account Disposition (2012) – Effective until April 30, 2014 "]
["Applicable only for Non-RPP Customers",null,null,null,null,null,null,"$/kW",0.60880000000000001]
["Retail Transmission Rate - Network Service Rate",null,null,null,null,null,null,"$/kW",1.8515999999999999]
["Retail Transmission Rate - Line and Transformation Connection Service Rate",null,null,null,null,null,null,"$/kW",0.94950000000000001]
["Rate Rider for Tax Change (2013) - effective until April 30, 2014",null,null,null,null,null,null,"$/kW",-0.1366]
[]
["MONTHLY RATES AND CHARGES - Regulatory Component"]
[]
["Wholesale Market Service Rate",null,null,null,null,null,null,"$/kWh",4.4000000000000003E-3]
["Rural Rate Protection Charge",null,null,null,null,null,null,"$/kWh",1.1999999999999999E-3]
["Standard Supply Service - Administrative Charge (if applicable)",null,null,null,null,null,null,"$",0.25]
[]
[]
["MICROFIT SERVICE CLASSIFICATION"]
[]
["This classification applies to an electricity generation facility contracted under the Ontario Power Authority’s microFIT program and connected to the distributor’s distribution system.  Further servicing details are available in the distributor’s Conditions of Service."]
[]
["APPLICATION"]
[]
["The application of these rates and charges shall be in accordance with the Licence of the Distributor and any Code or Order of the Board, and amendments thereto as approved by the Board, which may be applicable to the administration of this schedule."]
[]
["No rates and charges for the distribution of electricity and charges to meet the costs of any work or service done or furnished for the purpose of the distribution of electricity shall be made except as permitted by this schedule, unless required by the Distributor’s Licence or a Code or Order of the Board, and amendments thereto as approved by the Board, or as specified herein."]
[]
["Unless specifically noted, this schedule does not contain any charges for the electricity commodity, be it under the Regulated Price Plan, a contract with a retailer or the wholesale market price, as applicable."]
[]
["It should be noted that this schedule does not list any charges, assessments or credits that are required by law to be invoiced by a distributor and that are not subject to Board approval, such as the Debt Retirement Charge, the Global Adjustment, the Ontario Clean Energy Benefit and the HST."]
[]
["MONTHLY RATES AND CHARGES - Delivery Component"]
[]
["Service Charge",null,null,null,null,null,null,"$",5.4]
[]
[]
["ALLOWANCES"]
[]
["Transformer Allowance for Ownership - per kW of billing demand/month",null,null,null,null,null,null,"$/kW",-0.6]
["Primary Metering Allowance for transformer losses – applied to measured demand and energy",null,null,null,null,null,null,"%",-1]
[]
["SPECIFIC SERVICE CHARGES"]
[]
["APPLICATION"]
[]
["The application of these rates and charges shall be in accordance with the Licence of the Distributor and any Code or"]
["Order of the Board, and amendments thereto as approved by the Board, which may be applicable to the "]
["administration of this schedule"]
[]
["No charges to meet the costs of any work or service done or furnished for the purpose of the distribution of electricity"]
["shall be made except as permitted by this schedule, unless required by the Distributor’s Licence or a Code or Order"]
["of the Board, and amendments thereto as approved by the Board, or as specified herein. "]
[]
["It should be noted that this schedule does not list any charges, assessments, or credits that are required by law to be"]
["invoiced by a distributor and that are not subject to Board approval, such as the Debt Retirement Charge, charges for"]
["the Ministry of Energy Conservation and Renewable Energy Program, the Global Adjustment, the Ontario Clean "]
["Energy Benefit and the HST.   "]
[]
["Customer Administration"]
[]
["Arrears certificate",null,null,null,null,null,null,"$",15]
["Pulling Post Dated Cheques",null,null,null,null,null,null,"$",15]
["Notification charge",null,null,null,null,null,null,"$",15]
["Account History",null,null,null,null,null,null,"$",15]
["Credit Reference/credit check (plus credit agency costs)",null,null,null,null,null,null,"$",15]
["Returned cheque charge (plus bank charges)",null,null,null,null,null,null,"$",15]
["Charge to certify cheque",null,null,null,null,null,null,"$",15]
["Account set up charge/change of occupancy charge (plus credit agency costs if applicable – Residential)",null,null,null,null,null,null,"$",30]
["Meter dispute charge plus Measurement Canada fees (if meter found correct)",null,null,null,null,null,null,"$",30]
["Special meter reads",null,null,null,null,null,null,"$",30]
[]
[]
["Non-Payment of Account"]
[]
["Late Payment – per month",null,null,null,null,null,null,"%",1.5]
["Late Payment – per annum",null,null,null,null,null,null,"%",19.559999999999999]
["Collection of account charge – no disconnection",null,null,null,null,null,null,"$",30]
["Disconnect/Reconnect at meter – during regular hours",null,null,null,null,null,null,"$",65]
["Disconnect/Reconnect at meter – after regular hours",null,null,null,null,null,null,"$",185]
["Disconnect/Reconnect at pole – during regular hours",null,null,null,null,null,null,"$",185]
["Disconnect/Reconnect Charge – At Pole – After Hours",null,null,null,null,null,null,"$",415]
["Temporary Service – Install & remove – overhead – no transformer",null,null,null,null,null,null,"$",500]
["Temporary Service Install & Remove – Underground – No Transformer",null,null,null,null,null,null,"$",300]
["Temporary service installation and removal – overhead – with transformer",null,null,null,null,null,null,"$",1000]
["Specific Charge for Access to the Power Poles - $/pole/year",null,null,null,null,null,null,"$",22.35]
[]
["RETAIL SERVICE CHARGES (if applicable)"]
[]
["The application of these rates and charges shall be in accordance with the Licence of the Distributor and any Code or"]
["Order of the Board, and amendments thereto as approved by the Board, which may be applicable to the "]
["administration of this schedule."]
[]
["No rates and charges for the distribution of electricity and charges to meet the costs of any work or service done or"]
["furnished for the purpose of the distribution of electricity shall be made except as permitted by this schedule, unless "]
["required by the Distributor’s Licence or a Code or Order of the Board, and amendments thereto as approved by the "]
["Board, or as specified herein. "]
[]
["Unless specifically noted, this schedule does not contain any charges for the electricity commodity, be it under the"]
["Regulated Price Plan, a contract with a retailer or the wholesale market price, as applicable"]
[]
["It should be noted that this schedule does not list any charges, assessments, or credits that are required by law to be"]
["invoiced by a distributor and that are not subject to Board approval, such as the Debt Retirement Charge, charges for"]
["the Ministry of Energy Conservation and Renewable Energy Program, the Global Adjustment, the Ontario Clean "]
["Energy Benefit and the HST.   "]
[]
["Retail Service Charges refer to services provided by a distributor to retailers or customers related  "]
["to the supply of competitive electricity"]
[]
[]
["One-time charge, per retailer, to establish the service agreement between the distributor and the retailer",null,null,null,null,null,null,"$",100]
["Monthly Fixed Charge, per retailer",null,null,null,null,null,null,"$",20]
["Monthly Variable Charge, per customer, per retailer",null,null,null,null,null,null,"$/cust.",0.5]
["Distributor-consolidated billing charge, per customer, per retailer",null,null,null,null,null,null,"$/cust.",0.3]
["Retailer-consolidated billing credit, per customer, per retailer",null,null,null,null,null,null,"$/cust.",-0.3]
["Service Transaction Requests (STR) "]
["Request fee, per request, applied to the requesting party",null,null,null,null,null,null,"$",0.25]
["Processing fee, per request, applied to the requesting party",null,null,null,null,null,null,"$",0.5]
["Request for customer information as outlined in Section 10.6.3 and Chapter 11 of the Retail"]
["Settlement Code directly to retailers and customers, if not delivered electronically through the"]
["Electronic Business Transaction (EBT) system, applied to the requesting party "]
["Up to twice a year",null,null,null,null,null,null,"$","no charge"]
["More than twice a year, per request (plus incremental delivery costs)",null,null,null,null,null,null,"$",2]
[]
["LOSS FACTORS"]
[]
["If the distributor is not capable of prorating changed loss factors jointly with distribution rates, the revised loss factors"]
["will be implemented upon the first subsequent billing for each billing cycle."]
[]
["Total Loss Factor – Secondary Metered Customer < 5,000 kW",null,null,null,null,null,null,null,1.0468]
["Total Loss Factor – Primary Metered Customer < 5,000 kW",null,null,null,null,null,null,null,1.0363]

{"sheet":"14. Bill Impacts","index":16,"n_rows":59,"n_cols":27,"rows_kept":59,"cut":false,"hidden":false,"merged":[[42,6,42,7],[43,6,43,7],[44,6,44,7],[50,6,50,7],[45,6,45,7],[46,6,46,7],[47,6,47,7],[48,6,48,7],[49,6,49,7],[10,0,10,9],[34,6,34,7],[31,6,31,7],[32,6,32,7],[33,6,33,7],[23,6,23,7],[22,6,22,7],[25,6,25,7],[26,6,26,7],[27,6,27,7],[41,6,41,7],[12,0,12,2],[21,6,21,7],[20,1,20,3],[20,4,20,7],[29,6,29,7],[30,6,30,7],[35,6,35,7],[36,6,36,7],[37,6,37,7],[38,6,38,7],[39,6,39,7],[40,6,40,7],[54,6,54,7],[55,6,55,7],[58,0,58,8],[51,6,51,7],[52,6,52,7],[53,6,53,7]]}
[null,null,null,null,null,null,null,null,null,null,null,null,null,null,null,null,null,null,null,null,null,null,null,null,null,{"$f":"MATCH(A13, '3. Rate Class Selection'!B19:B40,0)","v":1},{"$f":"VLOOKUP(A13, lists!AO:AP,2,0)","v":"kWh"}]
[]
[]
[]
[]
[]
[]
[]
[]
[]
["Choose a Rate Class from the drop-down menu below and click UPDATE.\nFor Street Lighting and USL classes, please ensure that the number of customers is manually entered into cells B30 and B31.  \nClick the UPDATE button to refresh the sheet."]
[]
["Residential",null,null,null,null,{"$f":"IF(ISERROR(SEARCH(\"MicroFit\",A13,1))=FALSE,\"Bill impact presentation for this class does not exist.\", \"\")","v":""}]
[]
["Consumption",800,"kWh",null,{"$f":"IF(AA1 = \"kWh\", \"\", \"kW\")","v":""}]
["RPP Tier One",750,"kWh"]
["Load Factor"]
["Loss Factor",1.0468]
[]
[]
[null,"CURRENT ESTIMATED BILL",null,null,"PROPOSED ESTIMATED BILL"]
[null,"Volume","Current Rate ($)","Current Charge ($)","Volume","Proposed Rate ($)","Proposed Charge ($)",null,"Change ($)","Change (%)","% of Total RPP Bill","% of Total TOU Bill"]
["Energy First Tier (kWh)",750,7.4999999999999997E-2,{"$f":"B23*C23","v":56.25},{"$f":"B23","v":750},{"$f":"C23","v":7.4999999999999997E-2},{"$f":"E23*F23","v":56.25},null,{"$f":"G23-D23","v":0},{"$f":"I23/D23","v":0},{"$f":"G23/G50","v":0.48496040783230465}]
["Energy Second Tier (kWh)",87.439999999999941,8.7999999999999995E-2,{"$f":"B24*C24","v":7.694719999999994},{"$f":"B24","v":87.439999999999941},{"$f":"C24","v":8.7999999999999995E-2},{"$f":"E24*F24","v":7.694719999999994},null,{"$f":"G24-D24","v":0},{"$f":"I24/D24","v":0},{"$f":"G24/G50","v":6.6340169766318013E-2}]
[]
["TOU - Off Peak",{"$f":"0.64*$B$15*$B$18","v":535.96159999999998},6.5000000000000002E-2,{"$f":"C26*B26","v":34.837504000000003},{"$f":"B26","v":535.96159999999998},{"$f":"C26","v":6.5000000000000002E-2},{"$f":"F26*E26","v":34.837504000000003},null,{"$f":"G26-D26","v":0},{"$f":"I26/D26","v":0},null,{"$f":"G26/G56","v":0.29116163344687279}]
["TOU - Mid Peak",{"$f":"0.18*$B$15*$B$18","v":150.73919999999998},0.1,{"$f":"C27*B27","v":15.073919999999999},{"$f":"B27","v":150.73919999999998},{"$f":"C27","v":0.1},{"$f":"F27*E27","v":15.073919999999999},1.5073920000000001,{"$f":"G27-D27","v":0},{"$f":"I27/D27","v":0},null,{"$f":"G27/G56","v":0.12598339908758918}]
["TOU - On Peak",{"$f":"0.18*$B$15*$B$18","v":150.73919999999998},0.11700000000000001,17.636486399999999,150.73919999999998,0.11700000000000001,{"$f":"F28*E28","v":17.636486399999999},2.0634689088,0,{"$f":"I28/D28","v":0},null,{"$f":"G28/G56","v":0.14740057693247932}]
[]
["Service Charge",1,16.260000000000002,16.260000000000002,{"$f":"B30","v":1},16.260000000000002,{"$f":"F30*E30","v":16.260000000000002},264.38760000000008,0,{"$f":"I30/D30","v":0},{"$f":"G30/G50","v":0.14018588855739153},{"$f":"G30/G56","v":0.13589630760705909}]
["Service Charge Rate Rider(s)",1,1.63,1.63,{"$f":"B31","v":1},3.63,{"$f":"F31*E31","v":3.63},{"$f":"G31*F31","v":13.1769},2,1.2269938650306749,{"$f":"G31/G50","v":3.1296111652111394E-2},{"$f":"G31/G56","v":3.0338474576483667E-2}]
["Distribution Volumetric Rate",800,1.4E-2,11.200000000000001,{"$f":"B32","v":800},1.4E-2,11.200000000000001,0.15680000000000002,0,0,{"$f":"G32/G50","v":9.6561005648387779E-2},{"$f":"G32/G56","v":9.3606312742869735E-2}]
["Low Voltage Volumetric Rate",800,1.1000000000000001E-3,0.88,{"$f":"B33","v":800},1.1000000000000001E-3,0.88,9.6800000000000011E-4,0,0,{"$f":"G33/G50","v":7.5869361580876106E-3},{"$f":"G33/G56","v":7.3547817155111923E-3}]
["Distribution Volumetric Rate Rider(s)",800,-1.5999999999999999E-3,-1.2799999999999998,800,-1.5999999999999999E-3,-1.2799999999999998,2.0479999999999995E-3,0,0,{"$f":"G34/G50","v":-1.1035543502672886E-2},{"$f":"G34/G56","v":-1.0697864313470824E-2}]
["Total:  Distribution",null,null,{"$f":"ROUND(SUM(D30:D34),2)","v":28.69},null,null,{"$f":"ROUND(SUM(G30:G34),2)","v":30.69},null,{"$f":"G35-D35","v":2},6.9710700592540947E-2,{"$f":"G35/G50","v":0.26459439851330541},{"$f":"G35/G56","v":0.25649801232845282}]
["Retail Transmission Rate - Network Service Rate",837.43999999999994,5.5999999999999999E-3,4.6900000000000004,837.43999999999994,6.4999999999999997E-3,5.44,null,0.75,0.1599147121535181,{"$f":"G36/G50","v":4.6901059886359779E-2},{"$f":"G36/G56","v":4.546592333225101E-2}]
["Retail Transmission Rate - Line and Transformation Connection Service Rate",837.43999999999994,3.2000000000000002E-3,2.68,837.43999999999994,3.3999999999999998E-3,2.85,null,0.16999999999999993,6.3432835820895497E-2,{"$f":"G37/G50","v":2.4571327330170104E-2},{"$f":"G37/G56","v":2.3819463510462387E-2}]
["Total:  Retail Transmission",null,null,{"$f":"SUM(D36:D37)","v":7.370000000000001},null,null,{"$f":"SUM(G36:G37)","v":8.2900000000000009},null,{"$f":"ROUND(G38 - D38,2)","v":0.92},0.12483039348710989,{"$f":"G38/G50","v":7.1472387216529876E-2},{"$f":"G38/G56","v":6.9285386842713403E-2}]
["Sub-Total:  Delivery (Distribution and Retail Transmission)",null,null,{"$f":"SUM(D38,D35)","v":36.06},null,null,{"$f":"SUM(G38,G35)","v":38.980000000000004},null,{"$f":"G39 - D39","v":2.9200000000000017},8.0976150859678353E-2,{"$f":"G39/G50","v":0.33606678572983534},{"$f":"G39/G56","v":0.32578339917116628}]
["Wholesale Market Service Rate ",837.43999999999994,5.1999999999999998E-3,{"$f":"B40*C40","v":4.3546879999999994},{"$f":"B40","v":837.43999999999994},5.1999999999999998E-3,{"$f":"E40*F40","v":4.3546879999999994},null,{"$f":"G40-D40","v":0},0,{"$f":"G40/G50","v":3.7544022550443423E-2},{"$f":"G40/G56","v":3.6395204180859092E-2}]
["Rural Rate Protection Charge",837.43999999999994,1.1000000000000001E-3,{"$f":"B41*C41","v":0.921184},837.43999999999994,1.1000000000000001E-3,{"$f":"E41*F41","v":0.921184},null,{"$f":"G41-D41","v":0},0,{"$f":"G41/G50","v":7.94200477028611E-3},{"$f":"G41/G56","v":7.6989854997971162E-3}]
["Standard Supply Service – Administration Charge (if applicable)",1,0.25,0.25,1,0.25,{"$f":"E42*F42","v":0.25},null,0,0,{"$f":"G42/G50","v":2.1553795903657986E-3},{"$f":"G42/G56","v":2.0894266237247707E-3}]
["Sub-Total:  Regulatory",null,null,{"$f":"SUM(D40:D42)","v":5.5258719999999997},null,null,{"$f":"SUM(G40:H42)","v":5.5258719999999997},null,{"$f":"G43-D43","v":0},0,{"$f":"G43/G50","v":4.7641406911095335E-2},{"$f":"G43/G56","v":4.6183616304380976E-2}]
["Debt Retirement Charge (DRC)",800,7.0000000000000001E-3,5.6000000000000005,{"$f":"B44","v":800},{"$f":"C44","v":7.0000000000000001E-3},{"$f":"E44*F44","v":5.6000000000000005},null,0,0,{"$f":"G44/G50","v":4.828050282419389E-2},{"$f":"G44/G56","v":4.6803156371434868E-2}]
[]
["Total Bill on RPP (before taxes)",null,null,111.13,null,null,114.05,null,{"$f":"G46-D46","v":2.9200000000000017},{"$f":"I46/D46","v":2.6275533159362926E-2},{"$f":"G46/G50","v":0.98328416912487715}]
["HST",null,0.13,{"$f":"C47*D46","v":14.446899999999999},null,{"$f":"C47","v":0.13},{"$f":"F47*G46","v":14.826499999999999},null,{"$f":"G47-D47","v":0.37959999999999994},{"$f":"I47/D47","v":2.6275533159362905E-2},{"$f":"G47/G50","v":0.12782694198623404}]
["Total Bill (including HST)",null,null,{"$f":"D47+D46","v":125.57689999999999},null,null,{"$f":"G47+G46","v":128.87649999999999},null,{"$f":"G48-D48","v":3.2995999999999981},{"$f":"I48/D48","v":2.6275533159362895E-2},{"$f":"G48/G50","v":1.1111111111111112}]
["Ontario Clean Energy Benefit (OCEB)",null,-0.1,{"$f":"-0.1*D48","v":-12.557690000000001},null,{"$f":"C49","v":-0.1},{"$f":"-0.1*G48","v":-12.887650000000001},null,{"$f":"G49-D49","v":-0.32995999999999981},{"$f":"I49/D49","v":2.6275533159362891E-2},{"$f":"G49/G50","v":-0.11111111111111113}]
["Total Bill on RPP (including OCEB)",null,null,{"$f":"D48+D49","v":113.01920999999999},null,null,{"$f":"G48+G49","v":115.98884999999999},null,{"$f":"G50-D50","v":2.9696399999999983},{"$f":"I50/D50","v":2.6275533159362895E-2},{"$f":"G50/G50","v":1}]
[]
["Total Bill on TOU (before taxes)",null,null,114.73,null,null,117.65,null,{"$f":"G52-D52","v":2.9200000000000017},{"$f":"I52/D52","v":2.5451059008106004E-2},null,{"$f":"G52/G56","v":0.98328416912487704}]
["HST",null,0.13,{"$f":"C53*D52","v":14.914900000000001},null,{"$f":"C53","v":0.13},{"$f":"F53*G52","v":15.294500000000001},null,{"$f":"G53-D53","v":0.37959999999999994},{"$f":"I53/D53","v":2.5451059008105983E-2},null,{"$f":"G53/G56","v":0.12782694198623401}]
["Total Bill (including HST)",null,null,{"$f":"D53+D52","v":129.64490000000001},null,null,{"$f":"G53+G52","v":132.94450000000001},null,{"$f":"G54-D54","v":3.2995999999999981},{"$f":"I54/D54","v":2.5451059008105972E-2},null,{"$f":"G54/G56","v":1.1111111111111112}]
["Ontario Clean Energy Benefit (OCEB)",null,-0.1,{"$f":"-0.1*D54","v":-12.964490000000001},null,{"$f":"C55","v":-0.1},{"$f":"-0.1*G54","v":-13.294450000000001},null,{"$f":"G55-D55","v":-0.32995999999999981},{"$f":"I55/D55","v":2.5451059008105969E-2},null,{"$f":"G55/G56","v":-0.11111111111111112}]
["Total Bill on TOU (including OCEB)",null,null,{"$f":"D54+D55","v":116.68041000000001},null,null,{"$f":"G54+G55","v":119.65005000000001},null,{"$f":"G56-D56","v":2.9696399999999983},{"$f":"I56/D56","v":2.5451059008105972E-2},null,{"$f":"G56/G56","v":1}]
[]
[]
["Applicants must provide bill impacts for residential at 800 kWh and GS<50kW at 2000 kWh. In addition, their filing should cover the range that is relevant\nto their service territory, class by class. A general guideline of consumption levels follows:\n\nResidential (kWh) - 100, 250, 500, 800, 1000, 1500, 2000\nGS<50kW (kWh) - 1000, 2000, 5000, 10000, 15000\nGS>50kW (kW) 100, 500, 1000\nLarge User - range appropriate for utility\nStreet/Sentinel Lighting Classes and USL - 150 kWh and 1 kW, range appropriate for utility.\n"]

{"sheet":"lists","index":17,"n_rows":133,"n_cols":55,"rows_kept":133,"cut":false,"hidden":true,"merged":[[13,51,13,52],[14,51,14,52],[15,51,15,52],[16,51,16,52],[17,51,17,52],[12,51,12,52],[1,51,1,52],[0,51,0,52],[11,51,11,52],[10,51,10,52],[9,51,9,52],[8,51,8,52],[7,51,7,52],[5,51,5,52],[4,51,4,52],[3,51,3,52],[2,51,2,52],[6,51,6,52]]}
["Residential","Embedded Distributor",{"$f":"COUNTA(B1:B17)","v":4},null,null,null,null,null,"Distribution Volumetric Rate",null,null,"Loss Factors",null,"Units","Units1","Units2",null,null,null,null,null,null,null,null,null,"Account History","Account set up charge/change of occupancy charge (plus credit agency costs if applicable)","Total Loss Factor – Embedded Distributor – Hydro One Networks Inc.",null,null,null,null,null,null,null,null,null,null,"Algoma Power Inc.",null,"Embedded Distributor","kW",null,null,null,"Sub-Total:  Delivery (Distribution and Retail Transmission)"]
["Residential - Time of Use","General Service 3,000 to 4,999 kW",null,null,null,null,null,null,"GEA Rate Rider - Effective Until December 31, 2012",null,null,"Total Loss Factor – Primary Metered Customer",null,"$","$/kWh","$",null,null,null,null,null,null,null,null,null,"Account set up charge/change of occupancy charge","Administrative Billing Charge","Total Loss Factor – Primary Metered Customer",null,null,null,null,null,null,null,null,null,null,"Atikokan Hydro Inc.",null,"Farms – Single Phase energy-billed [F1]","kWh",null,null,null,"Wholesale Market Service Rate ",null,null,{"$f":"AU2*AV2","v":0},{"$f":"AU2","v":0},0,{"$f":"AX2*AY2","v":0},null,{"$f":"AZ2-AW2","v":0},{"$f":"BB2/AW2","v":{"$error":"#DIV/0!"}}]
["Residential Regular","General Service 1,000 to 4,999 kW",null,null,null,null,null,null,"Green Energy Act Initiatives Funding Adder",null,null,"Total Loss Factor – Primary Metered Customer < 5,000 kW",null,"$/kWh","$/kW","%",null,null,null,null,null,null,"MSC",null,null,"Account set up charge/change of occupancy charge (plus credit agency costs if applicable – Residential)","Bell Canada Pole Rentals","Total Loss Factor – Primary Metered Customer < 5,000 kW",null,null,null,null,null,null,null,null,null,null,"Attawapiskat Power Corporation",null,"Farms – Three Phase energy-billed [F3]","kWh",null,null,null,"Rural Rate Protection Charge",null,null,{"$f":"AU3*AV3","v":0},0,0,{"$f":"AX3*AY3","v":0},null,{"$f":"AZ3-AW3","v":0},{"$f":"BB3/AW3","v":{"$error":"#DIV/0!"}}]
["Residential Urban","General Service Equal To Or Greater Than 1,500 kW - Interval Metered",null,null,null,null,null,null,"Green Energy Act Plan Funding Adder – Effective until March 31, 2013",null,null,"Total Loss Factor – Primary Metered Customer > 5,000 kW",null,"$/kW","$/kVA",null,null,null,null,null,null,null,"SM_Rate_Adder",null,null,"Account set up charge/change of occupancy charge (plus credit agency costs if applicable)","Clearance Pole Attachment charge $/pole/year","Total Loss Factor – Primary Metered Customer > 5,000 kW",null,null,null,null,null,null,null,null,null,null,"Bluewater Power Distribution Corp.",null,"General Service  50 to 2,499 kW","kW",null,null,null,"Standard Supply Service – Administration Charge (if applicable)",null,null,0,0,0,{"$f":"AX4*AY4","v":0},null,0,{"$error":"#DIV/0!"}]
["General Service Less Than 50 kW",null,null,null,null,null,null,null,"Low Voltage Service Charge",null,null,"Total Loss Factor – Secondary Metered Customer",null,"$/kVA",null,null,null,null,null,null,null,null,"MSC_Rate_Rider_",null,null,"Arrears certificate","Collection of account charge – no disconnection","Total Loss Factor – Secondary Metered Customer",null,null,null,null,null,null,null,null,null,null,"Brant County Power",null,"General Service - Commercial","kW",null,null,null,"Sub-Total:  Regulatory",null,null,{"$f":"SUM(AW2:AW4)","v":0},null,null,{"$f":"SUM(AZ2:BA4)","v":0},null,{"$f":"AZ5-AW5","v":0},{"$error":"#DIV/0!"}]
["General Service Less Than 50 kW – Single Phase energy-billed [G1]",null,null,null,null,null,null,null,"Low Voltage Service Rate",null,null,"Total Loss Factor – Secondary Metered Customer < 5,000 kW",null,null,null,null,null,null,null,null,null,null,"VC",null,null,"Arrears certificate (credit reference)","Collection of account charge – no disconnection – after regular hours","Total Loss Factor – Secondary Metered Customer < 5,000 kW",null,null,null,null,null,null,null,null,null,null,"Brantford Power Inc.",null,"General Service - Institutional","kW",null,null,null,"Debt Retirement Charge (DRC)",null,null,0,{"$f":"AU6","v":0},{"$f":"AV6","v":0},{"$f":"AX6*AY6","v":0},null,0,{"$error":"#DIV/0!"}]
[null,null,null,null,null,null,null,null,"Low Voltage Volumetric Rate"]
["General Service Less Than 50 kW – Three Phase energy-billed [G3]",null,null,null,null,null,null,null,null,null,null,"Total Loss Factor – Secondary Metered Customer > 5,000 kW",null,null,null,null,null,null,null,null,null,null,"VC_Rate_Rider_",null,null,"Charge to certify cheque","Collection of account charge – no disconnection - during regular business hours","Total Loss Factor – Secondary Metered Customer > 5,000 kW",null,null,null,null,null,null,null,null,null,null,"Burlington Hydro Inc.",null,"General Service 1,000 to 2,999 kW","kW",null,null,null,"Total Bill on RPP (before taxes)",null,null,null,null,null,null,null,{"$f":"AZ8-AW8","v":0}]
["General Service Less Than 50 kW – Transmission Class energy-billed [T]",null,null,null,null,null,null,null,"Minimum Distribution Charge – per KW of maximum billing demand in the previous 11 months",null,null,"Distribution Loss Factor - Secondary Metered Customer < 5,000 kW",null,null,null,null,null,null,null,null,null,null,"VC_GA_Rate_Rider_kW_",null,null,"Collection of Account Charge – No Disconnection","Collection of account charge – no disconnection – during regular hours",null,null,null,null,null,null,null,null,null,null,null,"Cambridge and North Dumfries Hydro",null,"General Service 1,000 to 4,999 kW","kW",null,null,null,"HST",null,null,{"$f":"AV9*AW8","v":0},null,{"$f":"AV9","v":0},{"$f":"AY9*AZ8","v":0},null,{"$f":"AZ9-AW9","v":0},{"$f":"BB9/AW9","v":{"$error":"#DIV/0!"}}]
["General Service Less Than 50 kW – Urban energy-billed [UG]",null,null,null,null,null,null,null,"Monthly Distribution Wheeling Service Rate – Dedicated LV Line",null,null,"Distribution Loss Factor - Secondary Metered Customer > 5,000 kW",null,null,null,null,null,null,null,null,null,null,"VC_LV_Rate",null,null,"Credit Card Convenience Charge","Collection/Disconnection/Load Limiter/Reconnection – if in Community",null,null,null,null,null,null,null,null,null,null,null,"Canadian Niagara Power Inc. – Eastern Ontario Power/Fort Erie/Port Colborne",null,"General Service 1,000 to 4,999 kW - Interval Meters","kW",null,null,null,"Total Bill (including HST)",null,null,{"$f":"AW9+AW8","v":0},null,null,{"$f":"AZ9+AZ8","v":0},null,{"$f":"AZ10-AW10","v":0},{"$f":"BB10/AW10","v":{"$error":"#DIV/0!"}}]
["General Service  50 to 2,499 kW",null,null,null,null,null,null,null,"Monthly Distribution Wheeling Service Rate – Hydro One Networks",null,null,"Distribution Loss Factor - Primary Metered Customer < 5,000 kW",null,null,null,null,null,null,null,null,null,null,"RTSR_Network",null,null,"Credit check (plus credit agency costs)","Credit Card Convenience Charge",null,null,null,null,null,null,null,null,null,null,null,"Centre Wellington Hydro Ltd.",null,"General Service 1,000 To 4,999 kW (co-generation)","kW",null,null,null,"Ontario Clean Energy Benefit (OCEB)",null,null,{"$f":"-0.1*AW10","v":0},null,{"$f":"AV11","v":0},{"$f":"-0.1*AZ10","v":0},null,{"$f":"AZ11-AW11","v":0},{"$f":"BB11/AW11","v":{"$error":"#DIV/0!"}}]
["General Service - Commercial",null,null,null,null,null,null,null,"Monthly Distribution Wheeling Service Rate – Shared LV Line",null,null,"Distribution Loss Factor - Primary Metered Customer > 5,000 kW",null,null,null,null,null,null,null,null,null,null,"RTSR_Connection",null,null,"Credit reference Letter","Disconnect/Reconnect at meter – after regular hours",null,null,null,null,null,null,null,null,null,null,null,"Chapleau Public Utilities Corporation",null,"General Service 1,500 to 4,999 kW","kW",null,null,null,"Total Bill on RPP (including OCEB)",null,null,{"$f":"AW10+AW11","v":0},null,null,{"$f":"AZ10+AZ11","v":0},null,{"$f":"AZ12-AW12","v":0},{"$f":"BB12/AW12","v":{"$error":"#DIV/0!"}}]
[null,null,null,null,null,null,null,null,"Monthly Distribution Wheeling Service Rate – Waterloo North Hydro"]
["General Service - Institutional",null,null,null,null,null,null,null,null,null,null,"Total Loss Factor - Embedded Distributor",null,null,null,null,null,null,null,null,null,null,"RTSR_Network_Interval",null,null,"Credit reference/credit check (plus credit agency costs – General Service)","Disconnect/Reconnect at meter – during regular hours",null,null,null,null,null,null,null,null,null,null,null,"COLLUS Power Corp.",null,"General Service 2,500 to 4,999 kW","kW",null,null,null,"Total Bill on TOU (before taxes)",null,null,null,null,null,null,null,{"$f":"AZ14-AW14","v":0}]
["General Service 1,000 to 2,999 kW",null,null,null,null,null,null,null,"Rate Rider for Capital Gain",null,null,"Total Loss Factor – Embedded Distributor – Hydro One Networks Inc.",null,null,null,null,null,null,null,null,null,null,"RTSR_Connection_Interval",null,null,"Credit Reference/credit check (plus credit agency costs)","Disconnect/Reconnect at pole – after regular hours",null,null,null,null,null,null,null,null,null,null,null,"Cooperative Hydro Embrun Inc.",null,"General Service 3,000 to 4,999 kW","kW",null,null,null,"HST",null,null,{"$f":"AV15*AW14","v":0},null,{"$f":"AV15","v":0},{"$f":"AY15*AZ14","v":0},null,{"$f":"AZ15-AW15","v":0},{"$f":"BB15/AW15","v":{"$error":"#DIV/0!"}}]
["General Service 1,000 to 4,999 kW",null,null,null,null,null,null,null,"Rate Rider for Capital Gain – Effective until April 30, 2014",null,null,null,null,null,null,null,null,null,null,null,null,null,"RTSR_Network_Interval_GR1000kW",null,null,"Dispute Test – Commercial self contained -- MC","Disconnect/Reconnect at pole – during regular hours",null,null,null,null,null,null,null,null,null,null,null,"E.L.K. Energy Inc.",null,"General Service 3,000 to 4,999 kW - Intermediate Use","kW",null,null,null,"Total Bill (including HST)",null,null,{"$f":"AW15+AW14","v":0},null,null,{"$f":"AZ15+AZ14","v":0},null,{"$f":"AZ16-AW16","v":0},{"$f":"BB16/AW16","v":{"$error":"#DIV/0!"}}]
["General Service 1,000 to 4,999 kW - Interval Meters",null,null,null,null,null,null,null,"Rate Rider for Deferral/Variance Account Disposition",null,null,null,null,null,null,null,null,null,null,null,null,null,"RTSR_Connection_Interval_GR1000kW",null,null,"Dispute Test – Commercial TT -- MC","Disconnect/Reconnect Charge – At Meter – After Hours",null,null,null,null,null,null,null,null,null,null,null,"Enersource Hydro Mississauga Inc.",null,"General Service 3,000 to 4,999 kW - Interval Metered","kW",null,null,null,"Ontario Clean Energy Benefit (OCEB)",null,null,{"$f":"-0.1*AW16","v":0},null,{"$f":"AV17","v":0},{"$f":"-0.1*AZ16","v":0},null,{"$f":"AZ17-AW17","v":0},{"$f":"BB17/AW17","v":{"$error":"#DIV/0!"}}]
["General Service 1,000 To 4,999 kW (co-generation)",null,null,null,null,null,null,null,"Rate Rider for Deferral/Variance Account Disposition (2009)",null,null,null,null,null,null,null,null,null,null,null,null,null,"RTSR_Line_Connection",null,null,"Dispute Test – Residential","Disconnect/Reconnect Charge – At Meter – During Regular Hours",null,null,null,null,null,null,null,null,null,null,null,"Entegrus Powerlines Inc.",null,"General Service 3,000 to 4,999 kW - Time of Use","kW",null,null,null,"Total Bill on TOU (including OCEB)",null,null,{"$f":"AW16+AW17","v":0},null,null,{"$f":"AZ16+AZ17","v":0},null,{"$f":"AZ18-AW18","v":0},{"$f":"BB18/AW18","v":{"$error":"#DIV/0!"}}]
["General Service 1,500 to 4,999 kW",null,null,null,null,null,null,null,"Rate Rider for Deferral/Variance Account Disposition (2010)",null,null,null,null,null,null,null,null,null,null,null,null,null,"RTSR_Transformer_Connection",null,null,"Duplicate Invoices for previous billing","Disconnect/Reconnect Charge – At Pole – After Hours",null,null,null,null,null,null,null,null,null,null,null,"ENWIN Utilities Ltd.",null,"General Service 50 to 1,000 kW","kW"]
["General Service 2,500 to 4,999 kW",null,null,null,null,null,null,null,"Rate Rider for Deferral/Variance Account Disposition (2010) – Applicable only for Wholesale Market Participants",null,null,null,null,null,null,null,null,null,null,null,null,null,"WMSR",null,null,"Easement Letter","Disconnect/Reconnect Charge – At Pole – During Regular Hours",null,null,null,null,null,null,null,null,null,null,null,"Erie Thames Powerlines Corp.",null,"General Service 50 to 1,000 kW - Interval Meters","kW"]
["General Service 3,000 to 4,999 kW",null,null,null,null,null,null,null,"Rate Rider for Deferral/Variance Account Disposition (2010) – Effective until April 30, 2012",null,null,null,null,null,null,null,null,null,null,null,null,null,"RRRP",null,null,"Income Tax Letter","Disconnect/Reconnect Charges for non payment of account - At Meter After Hours",null,null,null,null,null,null,null,null,null,null,null,"Espanola Regional Hydro Distribution Corporation",null,"General Service 50 to 1,000 kW - Non Interval Meters","kW"]
["General Service 3,000 to 4,999 kW - Intermediate Use",null,null,null,null,null,null,null,"Rate Rider for Deferral/Variance Account Disposition (2010) – Effective until April 30, 2014",null,null,null,null,null,null,null,null,null,null,null,null,null,"SPC",null,null,"Interval Meter Interrogation","Disconnect/Reconnect charges for non payment of account – at meter after regular hours",null,null,null,null,null,null,null,null,null,null,null,"Essex Powerlines Corporation",null,"General Service 50 to 1,499 kW","kW"]
["General Service 3,000 to 4,999 kW - Interval Metered",null,null,null,null,null,null,null,"Rate Rider for Deferral/Variance Account Disposition (2010) – Effective until December 31, 2014",null,null,null,null,null,null,null,null,null,null,null,null,null,"DRC",null,null,"Interval meter request change","Disconnect/Reconnect Charges for non payment of account - At Meter During Regular Hours",null,null,null,null,null,null,null,null,null,null,null,"Festival Hydro Inc.",null,"General Service 50 to 1,499 kW - Interval Metered","kW"]
["General Service 3,000 to 4,999 kW - Time of Use",null,null,null,null,null,null,null,"Rate Rider for Deferral/Variance Account Disposition (2011)",null,null,null,null,null,null,null,null,null,null,null,null,null,"SSS",null,null,"Legal letter","Disconnect/Reconnect charges for non payment of account – at meter during regular hours",null,null,null,null,null,null,null,null,null,null,null,"Fort Albany Power Corporation",null,"General Service 50 to 2,999 kW","kW"]
["General Service 50 to 1,000 kW",null,null,null,null,null,null,null,"Rate Rider for Deferral/Variance Account Disposition (2011) – Applicable only for Wholesale Market Participants",null,null,null,null,null,null,null,null,null,null,null,null,null,"SFLF",null,null,"Legal letter charge","Disconnect/Reconnect charges for non payment of account – at pole after regular hours",null,null,null,null,null,null,null,null,null,null,null,"Fort Frances Power Corporation",null,"General Service 50 to 2,999 kW - Interval Metered","kW"]
["General Service 50 to 1,000 kW - Interval Meters","January",null,null,null,null,null,null,"Rate Rider for Deferral/Variance Account Disposition (2011) – Effective until April 30, 2014",null,null,null,null,null,null,null,null,null,null,null,null,null,"DLF_Secondary_LT_5000kW",null,null,"Meter dispute charge plus Measurement Canada fees (if meter found correct)","Disconnect/Reconnect charges for non payment of account – at pole during regular hours",null,null,null,null,null,null,null,null,null,null,null,"Greater Sudbury Hydro Inc.",null,"General Service 50 to 2,999 kW - Time of Use","kW"]
["General Service 50 to 1,000 kW - Non Interval Meters","February",null,null,null,null,null,null,"Rate Rider for Deferral/Variance Account Disposition (2012) – Effective until December 31, 2012",null,null,null,null,null,null,null,null,null,null,null,null,null,"DLF_Secondary_GT_5000kW",null,null,"Notification charge","Disconnect/Reconnection for >300 volts - after regular hours",null,null,null,null,null,null,null,null,null,null,null,"Grimsby Power Inc.",null,"General Service 50 to 4,999 kW","kW"]
["General Service 50 to 1,499 kW","March",null,null,null,null,null,null,"Rate Rider for Deferral/Variance Account Disposition (2012) – Effective until March 31, 2013",null,null,null,null,null,null,null,null,null,null,null,null,null,"DLF_Primary_LT_5000kW",null,null,"Pulling Post Dated Cheques","Disconnect/Reconnection for >300 volts - during regular hours",null,null,null,null,null,null,null,null,null,null,null,"Guelph Hydro Electric Systems Inc.",null,"General Service 50 to 4,999 kW – Interval Metered","kW"]
["General Service 50 to 1,499 kW - Interval Metered","April",null,null,null,null,null,null,"Rate Rider for Deferral/Variance Account Disposition (2012) – Effective until April 30, 2013",null,null,null,null,null,null,null,null,null,null,null,null,null,"DLF_Primary_GT_5000kW",null,null,"Request for other billing information","Disposal of Concrete Poles",null,null,null,null,null,null,null,null,null,null,null,"Haldimand County Hydro Inc.",null,"General Service 50 to 4,999 kW - Time of Use","kW"]
["General Service 50 to 2,999 kW","May",null,null,null,null,null,null,"Rate Rider for Deferral/Variance Account Disposition (2012) – Effective until April 30, 2014",null,null,null,null,null,null,null,null,null,null,null,null,null,"TLF_Secondary_LT_5000kW",null,null,"Returned cheque (plus bank charges)","Dispute Test – Commercial TT -- MC",null,null,null,null,null,null,null,null,null,null,null,"Halton Hills Hydro Inc.",null,"General Service 50 to 4,999 kW (CoGeneration)","kW"]
["General Service 50 to 2,999 kW - Interval Metered","June",null,null,null,null,null,null,"Rate Rider for Deferral/Variance Account Disposition (2012) – Effective until December 31, 2013",null,null,null,null,null,null,null,null,null,null,null,null,null,"TLF_Secondary_GT_5000kW",null,null,"Returned cheque charge (plus bank charges)","Install/Remove load control device – after regular hours",null,null,null,null,null,null,null,null,null,null,null,"Hearst Power Distribution Co. Ltd.",null,"General Service 50 to 4,999 kW (formerly Time of Use)","kW"]
["General Service 50 to 2,999 kW - Time of Use","July",null,null,null,null,null,null,"Rate Rider for Disposition of Post Retirement Actuarial Gain – Effective until March 31, 2025",null,null,null,null,null,null,null,null,null,null,null,null,null,"TLF_Primary_LT_5000kW",null,null,"Special Billing Service (aggregation)","Install/Remove load control device – during regular hours",null,null,null,null,null,null,null,null,null,null,null,"Horizon Utilities Corporation",null,"General Service 50 to 499 kW","kW"]
["General Service 50 to 4,999 kW","August",null,null,null,null,null,null,"Rate Rider for Disposition of PILs Deferral/Variance Account – Effective until March 31, 2016",null,null,null,null,null,null,null,null,null,null,null,null,null,"TLF_Primary_GT_5000kW",null,null,"Special Billing Service (sub-metering charge per meter)","Interval Meter Interrogation",null,null,null,null,null,null,null,null,null,null,null,"Hydro 2000 Inc.",null,"General Service 50 to 699 kW","kW"]
["General Service 50 to 4,999 kW – Interval Metered","September",null,null,null,null,null,null,"Rate Rider for Foregone Incremental Revenue",null,null,null,null,null,null,null,null,null,null,null,null,null,"TLF_EmbeddedDistributor",null,null,"Special meter reads","Interval Meter Load Management Tool Charge $/month",null,null,null,null,null,null,null,null,null,null,null,"Hydro Hawkesbury Inc.",null,"General Service 50 to 999 kW","kW"]
["General Service 50 to 4,999 kW - Time of Use","October",null,null,null,null,null,null,"Rate Rider for Foregone Incremental Revenue for Low Voltage Service",null,null,null,null,null,null,null,null,null,null,null,null,null,null,null,null,"Statement of Account","Interval meter request change",null,null,null,null,null,null,null,null,null,null,null,"Hydro One Brampton Networks Inc.",null,"General Service 50 to 999 kW - Interval Metered","kW"]
["General Service 50 to 4,999 kW (CoGeneration)","November",null,null,null,null,null,null,"Rate Rider for Foregone Revenue Recovery",null,null,null,null,null,null,null,null,null,null,null,null,null,null,null,null,"Unprocessed Payment Charge (plus bank charges)","Late Payment – per annum",null,null,null,null,null,null,null,null,null,null,null,"Hydro One Networks Inc.",null,"General Service 500 to 4,999 kW","kW"]
["General Service 50 to 4,999 kW (formerly Time of Use)","December",null,null,null,null,null,null,"Rate Rider for Foregone Revenue Recovery (2012) - Effective Until December 31, 2012",null,null,null,null,null,null,null,null,null,null,null,null,null,null,null,null,null,"Late Payment – per month",null,null,null,null,null,null,null,null,null,null,null,"Hydro One Remote Communities Inc.",null,"General Service 700 to 4,999 kW","kW"]
["General Service 50 to 499 kW",null,null,null,null,null,null,null,"Rate Rider for Recovery of Foregone Revenue – Effective until December 31, 2012",null,null,null,null,null,null,null,null,null,null,null,null,null,null,null,null,null,"Layout fees",null,null,null,null,null,null,null,null,null,null,null,"Hydro Ottawa Limited",null,"General Service Equal To Or Greater Than 1,500 kW","kW"]
["General Service 50 to 699 kW",null,null,null,null,null,null,null,"Rate Rider for Global Adjustment Sub-Account (2010) – Applicable only for Non-RPP Customers",null,null,null,null,null,null,null,null,null,null,null,null,null,null,null,null,null,"Meter dispute charge plus Measurement Canada fees (if meter found correct)",null,null,null,null,null,null,null,null,null,null,null,"Innisfil Hydro Dist. Systems Limited",null,"General Service Equal To Or Greater Than 1,500 kW - Interval Metered","kW"]
["General Service 50 to 999 kW",null,null,null,null,null,null,null,"Rate Rider for Global Adjustment Sub-Account (2010) – Applicable only for Non-RPP Customers – Effective until April 30, 2012",null,null,null,null,null,null,null,null,null,null,null,null,null,null,null,null,null,"Meter Interrogation Charge",null,null,null,null,null,null,null,null,null,null,null,"Kashechewan Power Corporation",null,"General Service Greater Than 1,000 kW","kW"]
["General Service 50 to 999 kW - Interval Metered",null,null,null,null,null,null,null,"Rate Rider for Global Adjustment Sub-Account (2011) – Applicable only for Non-RPP Customers",null,null,null,null,null,null,null,null,null,null,null,null,null,null,null,null,null,"Missed Service Appointment",null,null,null,null,null,null,null,null,null,null,null,"Kenora Hydro Electric Corporation Ltd.",null,"General Service Intermediate 1,000 To 4,999 kW","kW"]
["General Service 500 to 4,999 kW",null,null,null,null,null,null,null,"Rate Rider for Global Adjustment Sub-Account (2012) – Applicable only for Non-RPP Customers – Effective until December 31, 2013  ",null,null,null,null,null,null,null,null,null,null,null,null,null,null,null,null,null,"Norfolk Pole Rentals – Billed",null,null,null,null,null,null,null,null,null,null,null,"Kingston Hydro Corporation",null,"General Service Intermediate Rate Class 1,000 To 4,999 kW (formerly General Service > 50 kW Customers)","kW"]
["General Service 700 to 4,999 kW",null,null,null,null,null,null,null,"Rate Rider for Global Adjustment Sub-Account Disposition – Applicable only for Non-RPP Customers",null,null,null,null,null,null,null,null,null,null,null,null,null,null,null,null,null,"Optional Interval/TOU Meter charge $/month",null,null,null,null,null,null,null,null,null,null,null,"Kitchener-Wilmot Hydro Inc.",null,"General Service Intermediate Rate Class 1,000 To 4,999 kW (formerly Large Use Customers)","kW"]
["General Service Equal To Or Greater Than 1,500 kW",null,null,null,null,null,null,null,"Rate Rider for Global Adjustment Sub-Account Disposition (2010 credit) – Applicable only for Non-RPP Customers",null,null,null,null,null,null,null,null,null,null,null,null,null,null,null,null,null,"Overtime Locate",null,null,null,null,null,null,null,null,null,null,null,"Lakefront Utilities Inc.",null,"General Service Less Than 50 kW","kWh"]
["General Service Equal To Or Greater Than 1,500 kW - Interval Metered",null,null,null,null,null,null,null,"Rate Rider for Global Adjustment Sub-Account Disposition (2010 recalculated) – Applicable only for Non-RPP Customers",null,null,null,null,null,null,null,null,null,null,null,null,null,null,null,null,null,"Owner Requested Disconnection/Reconnection – after regular hours",null,null,null,null,null,null,null,null,null,null,null,"Lakeland Power Distribution Ltd.",null,"General Service Less Than 50 kW – Single Phase energy-billed [G1]","kWh"]
["General Service Greater Than 1,000 kW",null,null,null,null,null,null,null,"Rate Rider for Global Adjustment Sub-Account Disposition (2010) – Effective until April 30, 2012 Applicable only for Non-RPP Customers",null,null,null,null,null,null,null,null,null,null,null,null,null,null,null,null,null,"Owner Requested Disconnection/Reconnection – during regular hours",null,null,null,null,null,null,null,null,null,null,null,"London Hydro Inc.",null,"General Service Less Than 50 kW – Three Phase energy-billed [G3]","kWh"]
["General Service Intermediate 1,000 To 4,999 kW",null,null,null,null,null,null,null,"Rate Rider for Global Adjustment Sub-Account Disposition (2010) – Effective until April 30, 2014 Applicable only for Non-RPP Customers",null,null,null,null,null,null,null,null,null,null,null,null,null,null,null,null,null,"Returned cheque (plus bank charges)",null,null,null,null,null,null,null,null,null,null,null,"Midland Power Utility Corporation",null,"General Service Less Than 50 kW – Transmission Class energy-billed [T]","kWh"]
["General Service Intermediate Rate Class 1,000 To 4,999 kW (formerly General Service > 50 kW Customers)",null,null,null,null,null,null,null,"Rate Rider for Global Adjustment Sub-Account Disposition (2011) – Applicable only for Non-RPP Customers and excluding Wholesale Market Participants",null,null,null,null,null,null,null,null,null,null,null,null,null,null,null,null,null,"Rural system expansion / line connection fee",null,null,null,null,null,null,null,null,null,null,null,"Milton Hydro Distribution Inc.",null,"General Service Less Than 50 kW – Urban energy-billed [UG]","kWh"]
["General Service Intermediate Rate Class 1,000 To 4,999 kW (formerly Large Use Customers)",null,null,null,null,null,null,null,"Rate Rider for Global Adjustment Sub-Account Disposition (2011) – Effective until April 30, 2014 Applicable only for Non-RPP Customers",null,null,null,null,null,null,null,null,null,null,null,null,null,null,null,null,null,"Same Day Open Trench",null,null,null,null,null,null,null,null,null,null,null,"Newmarket – Tay Power Distribution Ltd.",null,"General Service Single Phase – G1","kW"]
["Large Use",null,null,null,null,null,null,null,"Rate Rider for Global Adjustment Sub-Account Disposition (2012) – Effective until March 31, 2013 Applicable only for Non-RPP Customers",null,null,null,null,null,null,null,null,null,null,null,null,null,null,null,null,null,"Scheduled Day Open Trench",null,null,null,null,null,null,null,null,null,null,null,"Niagara Peninsula Energy Inc.",null,"General Service Three Phase – G3","kW"]
["Large Use - 3TS",null,null,null,null,null,null,null,"Rate Rider for Global Adjustment Sub-Account Disposition (2012) – Effective until April 30, 2013 Applicable only for Non-RPP Customers",null,null,null,null,null,null,null,null,null,null,null,null,null,null,null,null,null,"Service call – after regular hours",null,null,null,null,null,null,null,null,null,null,null,"Niagara-on-the-Lake Hydro Inc.",null,"Intermediate With Self Generation","kW"]
["Large Use - Ford Annex",null,null,null,null,null,null,null,"Rate Rider for Global Adjustment Sub-Account Disposition (2012) – Effective until April 30, 2014 Applicable only for Non-RPP Customers",null,null,null,null,null,null,null,null,null,null,null,null,null,null,null,null,null,"Service call – customer owned equipment",null,null,null,null,null,null,null,null,null,null,null,"Norfolk Power Distribution Ltd.",null,"Large Use","kW"]
["Large Use - Regular",null,null,null,null,null,null,null,"Rate Rider for Lost Revenue Adjustment Mechanism (LRAM) Recovery",null,null,null,null,null,null,null,null,null,null,null,null,null,null,null,null,null,"Service Call – Customer-owned Equipment – After Regular Hours",null,null,null,null,null,null,null,null,null,null,null,"North Bay Hydro Distribution Limited",null,"Large Use - 3TS","kW"]
["Large Use > 5000 kW",null,null,null,null,null,null,null,"Rate Rider for Lost Revenue Adjustment Mechanism (LRAM) Recovery – Effective until April 30, 2013",null,null,null,null,null,null,null,null,null,null,null,null,null,null,null,null,null,"Service Call – Customer-owned Equipment – During Regular Hours",null,null,null,null,null,null,null,null,null,null,null,"Northern Ontario Wires Inc.",null,"Large Use - Ford Annex","kW"]
["MicroFit",null,null,null,null,null,null,null,"Rate Rider for Lost Revenue Adjustment Mechanism (LRAM) Recovery – Effective until April 30, 2014",null,null,null,null,null,null,null,null,null,null,null,null,null,null,null,null,null,"Service Charge for onsite interrogation of interval meter due to customer phone line failure - required weekly until line repaired $ 6",null,null,null,null,null,null,null,null,null,null,null,"Oakville Hydro Distribution Inc.",null,"Large Use - Regular","kW"]
["Sentinel Lighting",null,null,null,null,null,null,null,"Rate Rider for Lost Revenue Adjustment Mechanism (LRAM) Recovery – Effective until December 31, 2012",null,null,null,null,null,null,null,null,null,null,null,null,null,null,null,null,null,"Service Layout - Commercial",null,null,null,null,null,null,null,null,null,null,null,"Orangeville Hydro Limited",null,"Large Use > 5000 kW","kW"]
["Stand-By",null,null,null,null,null,null,null,"Rate Rider for Lost Revenue Adjustment Mechanism (LRAM) Recovery (2010)",null,null,null,null,null,null,null,null,null,null,null,null,null,null,null,null,null,"Service Layout - ResidentiaI",null,null,null,null,null,null,null,null,null,null,null,"Orillia Power Distribution Corp.",null,"MicroFit","$"]
["Street Lighting",null,null,null,null,null,null,null,"Rate Rider for Lost Revenue Adjustment Mechanism (LRAM) Recovery (2011)",null,null,null,null,null,null,null,null,null,null,null,null,null,null,null,null,null,"Special Billing Service (sub-metering charge per meter)",null,null,null,null,null,null,null,null,null,null,null,"Oshawa PUC Networks Inc.",null,"Residential","kWh"]
["Unmetered Scattered Load",null,null,null,null,null,null,null,"Rate Rider for Lost Revenue Adjustment Mechanism (LRAM) Recovery / Shared Savings Mechanism (SSM) Recovery",null,null,null,null,null,null,null,null,null,null,null,null,null,null,null,null,null,"Special meter reads",null,null,null,null,null,null,null,null,null,null,null,"Ottawa River Power Corporation",null,"Residential - Hensall","kWh"]
["Embedded Distributor",null,null,null,null,null,null,null,"Rate Rider for Lost Revenue Adjustment Mechanism (LRAM) Recovery / Shared Savings Mechanism (SSM) Recovery – Effective until April 30, 2015",null,null,null,null,null,null,null,null,null,null,null,null,null,null,null,null,null,"Specific Charge for Access to the Power Poles - $/pole/year",null,null,null,null,null,null,null,null,null,null,null,"Parry Sound Power Corporation",null,"Residential – High Density [R1]","kWh"]
["Farms – Single Phase energy-billed [F1]",null,null,null,null,null,null,null,"Rate Rider for Lost Revenue Adjustment Mechanism (LRAM) Recovery / Shared Savings Mechanism (SSM) Recovery (2009)",null,null,null,null,null,null,null,null,null,null,null,null,null,null,null,null,null,"Specific Charge for Bell Canada Access to the Power Poles – per pole/year",null,null,null,null,null,null,null,null,null,null,null,"Peterborough Distribution Inc.",null,"Residential – Normal Density [R2]","kWh"]
["Farms – Three Phase energy-billed [F3]",null,null,null,null,null,null,null,"Rate Rider for Lost Revenue Adjustment Mechanism (LRAM) Recovery / Shared Savings Mechanism (SSM) Recovery (2010)",null,null,null,null,null,null,null,null,null,null,null,null,null,null,null,null,null,"Switching for company maintenance – Charge based on Time and Materials",null,null,null,null,null,null,null,null,null,null,null,"PowerStream Inc.",null,"Residential - Time of Use","kWh"]
["General Service Single Phase – G1",null,null,null,null,null,null,null,"Rate Rider for Lost Revenue Adjustment Mechanism (LRAM) Recovery / Shared Savings Mechanism (SSM) Recovery (2011)",null,null,null,null,null,null,null,null,null,null,null,null,null,null,null,null,null,"Temporary Service – Install & remove – overhead – no transformer",null,null,null,null,null,null,null,null,null,null,null,"PUC Distribution Inc.",null,"Residential – Urban [UR]","kWh"]
["General Service Three Phase – G3",null,null,null,null,null,null,null,"Rate Rider for Lost Revenue Adjustment Mechanism (LRAM) Recovery / Shared Savings Mechanism (SSM) Recovery (2012)",null,null,null,null,null,null,null,null,null,null,null,null,null,null,null,null,null,"Temporary Service – Install & remove – overhead – with transformer",null,null,null,null,null,null,null,null,null,null,null,"Renfrew Hydro Inc.",null,"Residential Regular","kWh"]
["Intermediate With Self Generation",null,null,null,null,null,null,null,"Rate Rider for Lost Revenue Adjustment Mechanism (LRAM) Recovery / Shared Savings Mechanism (SSM) Recovery (2012) - Effective until April 30, 2013",null,null,null,null,null,null,null,null,null,null,null,null,null,null,null,null,null,"Temporary Service – Install & remove – underground – no transformer",null,null,null,null,null,null,null,null,null,null,null,"Rideau St. Lawrence Distribution Inc.",null,"Residential Suburban","kWh"]
["Residential - Hensall",null,null,null,null,null,null,null,"Rate Rider for Lost Revenue Adjustment Mechanism (LRAM) Recovery / Shared Savings Mechanism (SSM) Recovery (2012) – Effective until April 30, 2014",null,null,null,null,null,null,null,null,null,null,null,null,null,null,null,null,null,"Temporary service install & remove – overhead – no transformer",null,null,null,null,null,null,null,null,null,null,null,"St. Thomas Energy Inc.",null,"Residential Suburban Seasonal","kWh"]
["Residential – High Density [R1]",null,null,null,null,null,null,null,"Rate Rider for Lost Revenue Adjustment Mechanism (LRAM) Recovery (2011) – Effective until December 31, 2012",null,null,null,null,null,null,null,null,null,null,null,null,null,null,null,null,null,"Temporary Service Install & Remove – Overhead – With Transformer",null,null,null,null,null,null,null,null,null,null,null,"Sioux Lookout Hydro Inc.",null,"Residential Suburban Year Round","kWh"]
["Residential – Normal Density [R2]",null,null,null,null,null,null,null,"Rate Rider for Lost Revenue Adjustment Mechanism (LRAM) Recovery (2012) – Effective until December 31, 2012",null,null,null,null,null,null,null,null,null,null,null,null,null,null,null,null,null,"Temporary Service Install & Remove – Underground – No Transformer",null,null,null,null,null,null,null,null,null,null,null,"Thunder Bay Hydro Electricity Distribution",null,"Residential Urban","kWh"]
["Residential – Urban [UR]",null,null,null,null,null,null,null,"Rate Rider for Lost Revenue Adjustment Mechanism (LRAM) Recovery/Shared Savings Mechanism (SSM) Recovery – Effective until March 31, 2016",null,null,null,null,null,null,null,null,null,null,null,null,null,null,null,null,null,"Temporary service installation and removal – overhead – no transformer",null,null,null,null,null,null,null,null,null,null,null,"Tillsonburg Hydro Inc.",null,"Residential Urban Year-Round","kWh"]
["Residential Suburban",null,null,null,null,null,null,null,"Rate Rider for Recalculated Deferral/Variance Account Disposition (2010)",null,null,null,null,null,null,null,null,null,null,null,null,null,null,null,null,null,"Temporary service installation and removal – overhead – with transformer",null,null,null,null,null,null,null,null,null,null,null,"Toronto Hydro-Electric System Limited",null,"Seasonal Residential – High Density [R3]","kWh"]
["Residential Suburban Seasonal",null,null,null,null,null,null,null,"Rate Rider for Recovery of Foregone Revenue",null,null,null,null,null,null,null,null,null,null,null,null,null,null,null,null,null,"Temporary service installation and removal – underground – no transformer",null,null,null,null,null,null,null,null,null,null,null,"Veridian Connections Inc.",null,"Seasonal Residential – Normal Density [R4]","kWh"]
["Residential Suburban Year Round",null,null,null,null,null,null,null,"Rate Rider for Recovery of Foregone Revenue – Effective until December 31, 2012",null,null,null,null,null,null,null,null,null,null,null,null,null,null,null,null,null,null,null,null,null,null,null,null,null,null,null,null,null,"Wasaga Distribution Inc.",null,"Seasonal Residential – R4","kWh"]
["Residential Urban Year-Round",null,null,null,null,null,null,null,"Rate Rider for Recovery of Incremental Capital Costs",null,null,null,null,null,null,null,null,null,null,null,null,null,null,null,null,null,null,null,null,null,null,null,null,null,null,null,null,null,"Waterloo North Hydro Inc.",null,"Sentinel Lighting","kW"]
["Seasonal Residential – High Density [R3]",null,null,null,null,null,null,null,"Rate Rider for Recovery of Late Payment – Effective until April 30, 2012 ",null,null,null,null,null,null,null,null,null,null,null,null,null,null,null,null,null,null,null,null,null,null,null,null,null,null,null,null,null,"Welland Hydro Electric System Corp.",null,"Small Commercial and USL - per connection","kW"]
["Seasonal Residential – Normal Density [R4]",null,null,null,null,null,null,null,"Rate Rider for Recovery of Late Payment Penalty Litigation Costs",null,null,null,null,null,null,null,null,null,null,null,null,null,null,null,null,null,null,null,null,null,null,null,null,null,null,null,null,null,"Wellington North Power Inc.",null,"Small Commercial and USL - per meter","kW"]
["Seasonal Residential – R4",null,null,null,null,null,null,null,"Rate Rider for Recovery of Late Payment Penalty Litigation Costs (per connection)",null,null,null,null,null,null,null,null,null,null,null,null,null,null,null,null,null,null,null,null,null,null,null,null,null,null,null,null,null,"West Coast Huron Energy Inc.",null,"Standard A General Service Air Access","kW"]
["Small Commercial and USL - per connection",null,null,null,null,null,null,null,"Rate Rider for Recovery of Late Payment Penalty Litigation Costs – Effective until April 30, 2012",null,null,null,null,null,null,null,null,null,null,null,null,null,null,null,null,null,null,null,null,null,null,null,null,null,null,null,null,null,"Westario Power Inc.",null,"Standard A General Service Road/Rail","kW"]
["Small Commercial and USL - per meter",null,null,null,null,null,null,null,"Rate Rider for Recovery of Stranded Meter Assets",null,null,null,null,null,null,null,null,null,null,null,null,null,null,null,null,null,null,null,null,null,null,null,null,null,null,null,null,null,"Whitby Hydro Electric Corporation",null,"Standard A Residential Air Access","kW"]
["Standard A General Service Air Access",null,null,null,null,null,null,null,"Rate Rider for Recovery of Stranded Meter Assets – Effective until March 31, 2016",null,null,null,null,null,null,null,null,null,null,null,null,null,null,null,null,null,null,null,null,null,null,null,null,null,null,null,null,null,"Woodstock Hydro Services Inc.",null,"Standard A Residential Road/Rail","kW"]
["Standard A General Service Road/Rail",null,null,null,null,null,null,null,"Rate Rider for Recovery of Stranded Meter Assets – Effective until December 31, 2012",null,null,null,null,null,null,null,null,null,null,null,null,null,null,null,null,null,null,null,null,null,null,null,null,null,null,null,null,null,null,null,"Stand-By","kW"]
["Standard A Residential Air Access",null,null,null,null,null,null,null,"Rate Rider for Regulatory Asset Recovery",null,null,null,null,null,null,null,null,null,null,null,null,null,null,null,null,null,null,null,null,null,null,null,null,null,null,null,null,null,null,null,"Standby - General Service 1,000 - 5,000 kW","kW"]
["Standard A Residential Road/Rail",null,null,null,null,null,null,null,"Rate Rider for Recovery of Residual Historical Smart Meter Costs – Effective until March 31, 2013",null,null,null,null,null,null,null,null,null,null,null,null,null,null,null,null,null,null,null,null,null,null,null,null,null,null,null,null,null,null,null,"Standby - General Service 50 - 1,000 kW","kW"]
["Standby - General Service 1,000 - 5,000 kW",null,null,null,null,null,null,null,"Rate Rider for Return of Revenue Sufficiency",null,null,null,null,null,null,null,null,null,null,null,null,null,null,null,null,null,null,null,null,null,null,null,null,null,null,null,null,null,null,null,"Standby - Large Use","kW"]
["Standby - General Service 50 - 1,000 kW",null,null,null,null,null,null,null,"Rate Rider for Return of Transformer Ownership Allowance Sufficiency",null,null,null,null,null,null,null,null,null,null,null,null,null,null,null,null,null,null,null,null,null,null,null,null,null,null,null,null,null,null,null,"Standby Distribution Service","kW"]
["Standby - Large Use",null,null,null,null,null,null,null,"Rate Rider for Smart Meter Incremental Revenue Requirement – in effect until the Effective date of the next cost of service application",null,null,null,null,null,null,null,null,null,null,null,null,null,null,null,null,null,null,null,null,null,null,null,null,null,null,null,null,null,null,null,"Standby Power","kW"]
["Standby Distribution Service",null,null,null,null,null,null,null,"Rate Rider for Tax Adjustments - Effective until April 30, 2013",null,null,null,null,null,null,null,null,null,null,null,null,null,null,null,null,null,null,null,null,null,null,null,null,null,null,null,null,null,null,null,"Standby Power - APPROVED ON AN INTERIM BASIS","kW"]
["Standby Power",null,null,null,null,null,null,null,"Rate Rider for Tax Adjustments – Effective until December 31, 2012",null,null,null,null,null,null,null,null,null,null,null,null,null,null,null,null,null,null,null,null,null,null,null,null,null,null,null,null,null,null,null,"Standby Power – INTERIM APPROVAL","kW"]
["Standby Power - APPROVED ON AN INTERIM BASIS",null,null,null,null,null,null,null,"Rate Rider for Tax Change",null,null,null,null,null,null,null,null,null,null,null,null,null,null,null,null,null,null,null,null,null,null,null,null,null,null,null,null,null,null,null,"Standby Power General Service 1,500 to 4,999 kW","kW"]
["Standby Power – INTERIM APPROVAL",null,null,null,null,null,null,null,"Rate Rider for Tax Change – Effective until April 30, 2012",null,null,null,null,null,null,null,null,null,null,null,null,null,null,null,null,null,null,null,null,null,null,null,null,null,null,null,null,null,null,null,"Standby Power General Service 50 to 1,499 kW","kW"]
["Standby Power General Service 1,500 to 4,999 kW",null,null,null,null,null,null,null,"Rate Rider for Tax Change – Effective until April 30, 2013",null,null,null,null,null,null,null,null,null,null,null,null,null,null,null,null,null,null,null,null,null,null,null,null,null,null,null,null,null,null,null,"Standby Power General Service Large Use","kW"]
["Standby Power General Service 50 to 1,499 kW",null,null,null,null,null,null,null,"Rate Rider for Tax Change – Hydro One Networks",null,null,null,null,null,null,null,null,null,null,null,null,null,null,null,null,null,null,null,null,null,null,null,null,null,null,null,null,null,null,null,"Street Lighting","kW"]
["Standby Power General Service Large Use",null,null,null,null,null,null,null,"Rate Rider for Tax Change – Waterloo North Hydro",null,null,null,null,null,null,null,null,null,null,null,null,null,null,null,null,null,null,null,null,null,null,null,null,null,null,null,null,null,null,null,"Unmetered Scattered Load","kWh"]
["Westport Sewage Treatment Plant",null,null,null,null,null,null,null,"Rate Rider for Tax Change Dedicated LV Line",null,null,null,null,null,null,null,null,null,null,null,null,null,null,null,null,null,null,null,null,null,null,null,null,null,null,null,null,null,null,null,"Westport Sewage Treatment Plant","kW"]
["Year-Round Residential – R2",null,null,null,null,null,null,null,"Rate Rider for Tax Change Shared LV Line",null,null,null,null,null,null,null,null,null,null,null,null,null,null,null,null,null,null,null,null,null,null,null,null,null,null,null,null,null,null,null,"Year-Round Residential – R2","kWh"]
[null,null,null,null,null,null,null,null,"Rate Rider for Z-Factor Recovery"]
[null,null,null,null,null,null,null,null,"Rate Rider for Z-Factor Recovery - Effective Until April 30,2013"]
[null,null,null,null,null,null,null,null,"Retail Transmission Rate - Line and Transformation Connection Service Rate"]
[null,null,null,null,null,null,null,null,"Retail Transmission Rate - Line and Transformation Connection Service Rate - (less than 1,000 kW)"]
[null,null,null,null,null,null,null,null,"Retail Transmission Rate - Line and Transformation Connection Service Rate - Interval Metered"]
[null,null,null,null,null,null,null,null,"Retail Transmission Rate - Line and Transformation Connection Service Rate - Interval Metered (1,000 to 4,999 kW)"]
[null,null,null,null,null,null,null,null,"Retail Transmission Rate - Line and Transformation Connection Service Rate - Interval Metered (less than 1,000 kW)"]
[null,null,null,null,null,null,null,null,"Retail Transmission Rate - Line and Transformation Connection Service Rate - Interval Metered < 1,000 kW"]
[null,null,null,null,null,null,null,null,"Retail Transmission Rate - Line and Transformation Connection Service Rate - Interval Metered > 1,000 kW"]
[null,null,null,null,null,null,null,null,"Retail Transmission Rate - Line and Transformation Connection Service Rate - Interval Metered ≥ 1,000kW"]
[null,null,null,null,null,null,null,null,"Retail Transmission Rate - Line Connection Service Rate"]
[null,null,null,null,null,null,null,null,"Retail Transmission Rate - Network Service Rate"]
[null,null,null,null,null,null,null,null,"Retail Transmission Rate - Network Service Rate - (less than 1,000 kW)"]
[null,null,null,null,null,null,null,null,"Retail Transmission Rate - Network Service Rate - Interval Metered"]
[null,null,null,null,null,null,null,null,"Retail Transmission Rate - Network Service Rate - Interval Metered (1,000 to 4,999 kW)"]
[null,null,null,null,null,null,null,null,"Retail Transmission Rate - Network Service Rate - Interval Metered (less than 1,000 kW)"]
[null,null,null,null,null,null,null,null,"Retail Transmission Rate - Network Service Rate - Interval Metered < 1,000 kW"]
[null,null,null,null,null,null,null,null,"Retail Transmission Rate - Network Service Rate - Interval Metered > 1,000 kW"]
[null,null,null,null,null,null,null,null,"Retail Transmission Rate - Network Service Rate - Interval Metered ≥ 1,000 kW"]
[null,null,null,null,null,null,null,null,"Retail Transmission Rate - Transformation Connection Service Rate"]
[null,null,null,null,null,null,null,null,"Rural Rate Protection Charge"]
[null,null,null,null,null,null,null,null,"Rural Rate Protection Charge – Effective on and after May 1, 2012"]
[null,null,null,null,null,null,null,null,"Service Charge"]
[null,null,null,null,null,null,null,null,"Service Charge - Effective Until April 30, 2013"]
[null,null,null,null,null,null,null,null,"Service Charge (Based on 30 day month)"]
[null,null,null,null,null,null,null,null,"Service Charge (per account)"]
[null,null,null,null,null,null,null,null,"Service Charge (per connection)"]
[null,null,null,null,null,null,null,null,"Service Charge (per customer)"]
[null,null,null,null,null,null,null,null,"Service Charge (per light)"]
[null,null,null,null,null,null,null,null,"Service Charge for metered account"]
[null,null,null,null,null,null,null,null,"Smart Grid Rate Adder"]
[null,null,null,null,null,null,null,null,"Smart Meter Disposition Rider 2 – Effective until next cost of service application"]
[null,null,null,null,null,null,null,null,"Smart Meter Disposition Rider 3 – Effective until next cost of service application"]
[null,null,null,null,null,null,null,null,"Smart Meter Funding Adder"]
[null,null,null,null,null,null,null,null,"Smart Meter Funding Adder – Effective until March 31, 2012"]
[null,null,null,null,null,null,null,null,"Smart Meter Funding Adder – Effective Until December 31, 2012"]
[null,null,null,null,null,null,null,null,"Smart Meter Funding Adder – Effective until October 31, 2012"]
[null,null,null,null,null,null,null,null,"Standard Supply Service – Administrative Charge (if Applicable)"]
[null,null,null,null,null,null,null,null,"Wholesale Market Service Rate"]